Ref No,Fund Type,Dept,Cost Centre Description    ,Description    ,Creditor Name    ,GL Code Net Amount,Payment date        
2,Revenue,CAHD,Central - Commissioned Services,Permanent Residential,1 St Georges House,13333.52, 09-Mar-2021
3,Revenue,CAHD,CSC - LAC Housing Support Grants,Grants to Voluntary Bodies,1625 Independent People,3343.00, 29-Mar-2021
4,Revenue,CAHD,Supporting People Programme,Grants to Voluntary Bodies,1625 Independent People,15167.00, 01-Mar-2021
5,Revenue,CAHD,CSC - Care Leavers Independent Living,Adults - Family Support,1625 Independent People,605.54, 12-Mar-2021
6,Revenue,CAHD,South - Commissioned Services,Permanent Residential,2Nd Floor Building,5630.76, 09-Mar-2021
7,Revenue,CAHD,South - Commissioned Services,Permanent Residential,2Nd Floor Building,2806.12, 09-Mar-2021
8,Revenue,CAHD,Central - Commissioned Services,Other Small Contracts,3 Trees Community Support Ltd,5273.78, 15-Mar-2021
9,Revenue,CAHD,Central - Commissioned Services,Supported Living,3 Trees Community Support Ltd,5152.98, 15-Mar-2021
10,Revenue,CAHD,Central - Commissioned Services,Other Small Contracts,3 Trees Community Support Ltd,7336.49, 15-Mar-2021
11,Revenue,CAHD,Central - Commissioned Services,Supported Living,3 Trees Community Support Ltd,2941.12, 15-Mar-2021
12,Revenue,CAHD,Central - Commissioned Services,Other Small Contracts,3 Trees Community Support Ltd,7362.88, 17-Mar-2021
13,Revenue,CAHD,Central - Commissioned Services,Supported Living,3 Trees Community Support Ltd,2936.16, 17-Mar-2021
14,Revenue,CAHD,Central - Commissioned Services,Other Small Contracts,3 Trees Community Support Ltd,7491.35, 19-Mar-2021
15,Revenue,CAHD,Central - Commissioned Services,Supported Living,3 Trees Community Support Ltd,2934.02, 19-Mar-2021
16,Revenue,CAHD,Central - Commissioned Services,Other Small Contracts,3 Trees Community Support Ltd,7512.28, 31-Mar-2021
17,Revenue,CAHD,Central - Commissioned Services,Supported Living,3 Trees Community Support Ltd,2929.06, 31-Mar-2021
18,Revenue,CAHD,South - Commissioned Services,Permanent Nursing,3Rd Floor  The Aspect,3593.88, 09-Mar-2021
19,Revenue,CAHD,North - Community based support,Permanent Nursing,3Rd Floor  The Aspect,3234.72, 09-Mar-2021
20,Revenue,CAHD,South - Commissioned Services,Permanent Nursing,3Rd Floor  The Aspect,2287.36, 09-Mar-2021
21,Revenue,CAHD,Central - Commissioned Services,Permanent Residential,5Th Floor Harlech Court,15254.92, 09-Mar-2021
22,Revenue,CAHD,18-25 Year Olds,Permanent Residential,5Th Floor Harlech Court,18219.32, 09-Mar-2021
23,Revenue,CAHD,18-25 Year Olds,Respite Planned - Residential,5Th Floor Harlech Court,29140.86, 09-Mar-2021
24,Revenue,CAHD,18-25 Year Olds,Respite Planned - Residential,5Th Floor Harlech Court,28646.95, 09-Mar-2021
25,Revenue,CAHD,18-25 Year Olds,Respite Planned - Residential,5Th Floor Harlech Court,27927.31, 09-Mar-2021
26,Revenue,CAHD,18-25 Year Olds,Respite Planned - Residential,5Th Floor Harlech Court,23213.90, 09-Mar-2021
27,Revenue,CAHD,18-25 Year Olds,Respite Planned - Residential,5Th Floor Harlech Court,22247.18, 09-Mar-2021
28,Revenue,CAHD,18-25 Year Olds,Respite Planned - Residential,5Th Floor Harlech Court,22226.08, 09-Mar-2021
29,Revenue,CAHD,18-25 Year Olds,Respite Planned - Residential,5Th Floor Harlech Court,20827.15, 09-Mar-2021
30,Revenue,CAHD,18-25 Year Olds,Respite Planned - Residential,5Th Floor Harlech Court,20827.15, 09-Mar-2021
31,Revenue,CAHD,18-25 Year Olds,Respite Planned - Residential,5Th Floor Harlech Court,20250.43, 09-Mar-2021
32,Revenue,CAHD,18-25 Year Olds,Respite Planned - Residential,5Th Floor Harlech Court,19407.12, 09-Mar-2021
33,Revenue,CAHD,18-25 Year Olds,Respite Planned - Residential,5Th Floor Harlech Court,16793.04, 09-Mar-2021
34,Revenue,CAHD,18-25 Year Olds,Respite Planned - Residential,5Th Floor Harlech Court,16793.04, 09-Mar-2021
35,Revenue,CAHD,18-25 Year Olds,Respite Planned - Residential,5Th Floor Harlech Court,16093.71, 09-Mar-2021
36,Revenue,CAHD,18-25 Year Olds,Respite Planned - Residential,5Th Floor Harlech Court,16093.71, 09-Mar-2021
37,Revenue,CAHD,18-25 Year Olds,Respite Planned - Residential,5Th Floor Harlech Court,14673.67, 09-Mar-2021
38,Revenue,CAHD,18-25 Year Olds,Respite Planned - Residential,5Th Floor Harlech Court,13335.65, 09-Mar-2021
39,Revenue,CAHD,18-25 Year Olds,Respite Planned - Residential,5Th Floor Harlech Court,9466.89, 09-Mar-2021
40,Revenue,CAHD,18-25 Year Olds,Respite Planned - Residential,5Th Floor Harlech Court,2963.48, 09-Mar-2021
41,Revenue,CAHD,18-25 Year Olds,Respite Planned - Residential,5Th Floor Harlech Court,1893.38, 09-Mar-2021
42,Revenue,CAHD,South - Commissioned Services,Permanent Residential,5Th Floor Harlech Court,17000.48, 09-Mar-2021
43,Revenue,CAHD,South - Commissioned Services,Permanent Residential,5Th Floor Harlech Court,10627.92, 09-Mar-2021
44,Revenue,CAHD,S28A cases,Permanent Residential,5Th Floor Harlech Court,11122.76, 09-Mar-2021
45,Revenue,CAHD,South - Commissioned Services,Permanent Residential,5Th Floor Harlech Court,11665.12, 09-Mar-2021
46,Revenue,CAHD,North - Community based support,Permanent Residential,5Th Floor Harlech Court,12498.56, 09-Mar-2021
47,Revenue,CAHD,North - Community based support,Permanent Residential,5Th Floor Harlech Court,10537.24, 09-Mar-2021
48,Revenue,CAHD,North - Community based support,Permanent Residential,5Th Floor Harlech Court,9071.12, 09-Mar-2021
49,Revenue,CAHD,18-25 Year Olds,Day Care / Social Activities,A+bility Ltd,1230.00, 23-Mar-2021
50,Revenue,CAHD,EARLY YEARS DEPRIVATION PAYMENT,Preventative Assistance,Abacus Pre School @ Mangotsfield,578.34, 22-Mar-2021
51,Revenue,CAHD,Verification of EYFSP Assessment,External Lecturers Fees,ABC Does Limited,1500.00, 22-Mar-2021
52,Revenue,CAHD,South - Commissioned Services,Permanent Nursing,Acacia House,2996.00, 09-Mar-2021
53,Revenue,CAHD,Post 16 High Needs Placements,Other Private Contractors,Access To Music Ltd,737.00, 24-Mar-2021
54,Revenue,CAHD,Post 16 High Needs Placements,Other Private Contractors,Access To Music Ltd,3841.36, 31-Mar-2021
55,Revenue,CAHD,Post 16 High Needs Placements,Other Private Contractors,Access To Music Ltd,3841.36, 31-Mar-2021
56,Revenue,CAHD,Mental Health and Emotional Wellbeing,Training Expenses,Ace Wellbeing Ltd,850.00, 04-Mar-2021
57,Revenue,CAHD,CSC - Residential Placements,Permanent Residential,Acorn Care & Education Ltd,3693.48, 04-Mar-2021
58,Revenue,CAHD,CSC - Residential Placements,Permanent Residential,Acorn Care & Education Ltd,16460.37, 04-Mar-2021
59,Revenue,CAHD,CSC - Residential Placements,Permanent Residential,Acorn Care & Education Ltd,3693.45, 04-Mar-2021
60,Revenue,CAHD,CSC - Residential Placements,Permanent Residential,Acorn Care & Education Ltd,16460.37, 04-Mar-2021
61,Revenue,CAHD,CSC - Residential Placements,Permanent Residential,Acorn Care & Education Ltd,3693.45, 04-Mar-2021
62,Revenue,CAHD,CSC - Residential Placements,Permanent Residential,Acorn Care & Education Ltd,16460.37, 02-Mar-2021
63,Revenue,CAHD,CSC - Residential Placements,Permanent Residential,Acorn Care & Education Ltd,3693.45, 02-Mar-2021
64,Revenue,CAHD,Jointly Funded H&SC Packages,Permanent Residential,Acorn Care Providers,2310.92, 09-Mar-2021
65,Revenue,CAHD,Section 117 Placements MH Younger,Permanent Residential,Acorn Care Providers,5481.28, 09-Mar-2021
66,Revenue,CAHD,North - S117,Permanent Residential,Acorn Care Providers,3978.00, 09-Mar-2021
67,Revenue,CAHD,Jointly Funded H&SC Packages,Permanent Residential,Acorn Care Providers,2142.00, 09-Mar-2021
68,Revenue,CAHD,MH Purchasing - Younger,Permanent Residential,Acorn Care Providers,6382.04, 09-Mar-2021
69,Revenue,CAHD,Jointly Funded H&SC Packages,Permanent Residential,Acorn Care Providers,3436.48, 09-Mar-2021
70,Revenue,CAHD,MH Purchasing - Younger,Permanent Residential,Acorn Care Providers,6266.88, 09-Mar-2021
71,Revenue,CAHD,Covid - ASC - Infection Control,Grants to Voluntary Bodies,Acorn Care Providers,5574.88, 11-Mar-2021
72,Revenue,CAHD,Covid  - Workforce capacity,Grants to Voluntary Bodies,Acorn Care Providers,798.55, 25-Mar-2021
73,Revenue,CAHD,Training - Adult Services,Training Expenses,Acorn Health & Safety Limited,477.00, 29-Mar-2021
74,Revenue,CAHD,Training - Adult Services,Training Expenses,Acorn Health & Safety Limited,477.00, 17-Mar-2021
75,Revenue,CAHD,CSC - Agency Fostering,Foster Parent Allowances,Action for Children,3519.88, 19-Mar-2021
76,Revenue,CAHD,18-25 Year Olds,Permanent Residential,Action on Hearing Loss,5091.08, 09-Mar-2021
77,Revenue,CAHD,18-25 Year Olds,Permanent Residential,Action on Hearing Loss,28000.94, 09-Mar-2021
78,Revenue,CAHD,South Glos Users in South Glos Homes,Permanent Nursing,Administration And Revenue Centre,1622.79, 09-Mar-2021
79,Revenue,CAHD,North - Community based support,Respite Emergency - Residential,Administration And Revenue Centre,797.90, 09-Mar-2021
80,Revenue,CAHD,North - Community based support,Permanent Nursing,Administration And Revenue Centre,4293.77, 09-Mar-2021
81,Revenue,CAHD,North - Community based support,Fees & Charges Income - General,Administration And Revenue Centre,1539.19, 09-Mar-2021
82,Revenue,CAHD,South - Commissioned Services,Permanent Nursing,Administration And Revenue Centre,2445.96, 09-Mar-2021
83,Revenue,CAHD,South - Commissioned Services,Permanent Nursing,Administration And Revenue Centre,2445.96, 09-Mar-2021
84,Revenue,CAHD,South Glos Users in South Glos Homes,Permanent Nursing,Administration And Revenue Centre,735.68, 09-Mar-2021
85,Revenue,CAHD,South - Commissioned Services,Permanent Residential,Administration And Revenue Centre,2511.80, 09-Mar-2021
86,Revenue,CAHD,South Glos Users in South Glos Homes,Permanent Nursing,Administration And Revenue Centre,735.68, 09-Mar-2021
87,Revenue,CAHD,South - Commissioned Services,Permanent Nursing,Administration And Revenue Centre,2949.60, 09-Mar-2021
88,Revenue,CAHD,South Glos Users in South Glos Homes,Permanent Nursing,Administration And Revenue Centre,735.68, 09-Mar-2021
89,Revenue,CAHD,South Glos Users in South Glos Homes,Permanent Nursing,Administration And Revenue Centre,735.68, 09-Mar-2021
90,Revenue,CAHD,South - Commissioned Services,Respite Planned - Residential,Administration And Revenue Centre,2850.00, 09-Mar-2021
91,Revenue,CAHD,South - Commissioned Services,Respite Planned - Residential,Administration And Revenue Centre,1938.00, 09-Mar-2021
92,Revenue,CAHD,South Glos Users in South Glos Homes,Permanent Nursing,Administration And Revenue Centre,735.68, 09-Mar-2021
93,Revenue,CAHD,South - Commissioned Services,Permanent Residential,Administration And Revenue Centre,3366.00, 09-Mar-2021
94,Revenue,CAHD,South Glos Users in South Glos Homes,Permanent Nursing,Administration And Revenue Centre,525.49, 09-Mar-2021
95,Revenue,CAHD,South - Commissioned Services,Permanent Nursing,Administration And Revenue Centre,2924.56, 09-Mar-2021
96,Revenue,CAHD,South - Commissioned Services,Respite Emergency - Residential,Administration And Revenue Centre,3756.86, 09-Mar-2021
97,Revenue,CAHD,South - Commissioned Services,Respite Emergency - Residential,Administration And Revenue Centre,2087.14, 09-Mar-2021
98,Revenue,CAHD,South - Commissioned Services,Permanent Residential,Administration And Revenue Centre,3200.00, 09-Mar-2021
99,Revenue,CAHD,North - Community based support,Respite Planned - Residential,Administration And Revenue Centre,971.43, 09-Mar-2021
100,Revenue,CAHD,South - Commissioned Services,Permanent Residential,Administration And Revenue Centre,3569.43, 09-Mar-2021
101,Revenue,CAHD,South - Commissioned Services,Permanent Residential,Administration And Revenue Centre,3224.00, 09-Mar-2021
102,Revenue,CAHD,South Glos Users in South Glos Homes,Permanent Nursing,Administration And Revenue Centre,721.24, 09-Mar-2021
103,Revenue,CAHD,South - Commissioned Services,Respite Planned - Nursing,Administration And Revenue Centre,974.00, 09-Mar-2021
104,Revenue,CAHD,South - Commissioned Services,Permanent Nursing,Administration And Revenue Centre,2511.80, 09-Mar-2021
105,Revenue,CAHD,South Glos Users in South Glos Homes,Permanent Nursing,Administration And Revenue Centre,735.68, 09-Mar-2021
106,Revenue,CAHD,South - Commissioned Services,Permanent Nursing,Administration And Revenue Centre,2445.96, 09-Mar-2021
107,Revenue,CAHD,South Glos Users in South Glos Homes,Permanent Nursing,Administration And Revenue Centre,735.68, 09-Mar-2021
108,Revenue,CAHD,South - Commissioned Services,Permanent Nursing,Administration And Revenue Centre,2445.96, 09-Mar-2021
109,Revenue,CAHD,South Glos Users in South Glos Homes,Permanent Nursing,Administration And Revenue Centre,735.68, 09-Mar-2021
110,Revenue,CAHD,South - Commissioned Services,Permanent Residential,Administration And Revenue Centre,3190.56, 09-Mar-2021
111,Revenue,CAHD,South - Commissioned Services,Permanent Nursing,Administration And Revenue Centre,2445.96, 09-Mar-2021
112,Revenue,CAHD,South Glos Users in South Glos Homes,Permanent Nursing,Administration And Revenue Centre,735.68, 09-Mar-2021
113,Revenue,CAHD,South - Commissioned Services,Respite Emergency - Residential,Administration And Revenue Centre,3762.00, 09-Mar-2021
114,Revenue,CAHD,South - Commissioned Services,Respite Emergency - Residential,Administration And Revenue Centre,1026.00, 09-Mar-2021
115,Revenue,CAHD,South - Commissioned Services,Permanent Residential,Administration And Revenue Centre,2949.60, 09-Mar-2021
116,Revenue,CAHD,South Glos Users in South Glos Homes,Permanent Nursing,Administration And Revenue Centre,735.68, 09-Mar-2021
117,Revenue,CAHD,Central - Commissioned Services,Permanent Nursing,Administration And Revenue Centre,3400.00, 09-Mar-2021
118,Revenue,CAHD,Covid 19- Spend on behalf of NHS,Respite Planned - Residential,Administration And Revenue Centre,4457.14, 09-Mar-2021
119,Revenue,CAHD,South - Commissioned Services,Other Small Contracts,Advantedge Commercial Finance Limited,1205.28, 17-Mar-2021
120,Revenue,CAHD,South - Commissioned Services,Other Small Contracts,Advantedge Commercial Finance Limited,651.24, 17-Mar-2021
121,Revenue,CAHD,South - Commissioned Services,Other Small Contracts,Advantedge Commercial Finance Limited,670.68, 17-Mar-2021
122,Revenue,CAHD,South - Commissioned Services,Other Small Contracts,Advantedge Commercial Finance Limited,972.00, 17-Mar-2021
123,Revenue,CAHD,South - Commissioned Services,Other Small Contracts,Advantedge Commercial Finance Limited,748.44, 16-Mar-2021
124,Revenue,CAHD,South - Commissioned Services,Other Small Contracts,Advantedge Commercial Finance Limited,549.18, 17-Mar-2021
125,Revenue,CAHD,South - Commissioned Services,Other Small Contracts,Advantedge Commercial Finance Limited,801.90, 18-Mar-2021
126,Revenue,CAHD,South - Commissioned Services,Other Small Contracts,Advantedge Commercial Finance Limited,1351.08, 18-Mar-2021
127,Revenue,CAHD,South - Commissioned Services,Day Care / Social Activities,Age Concern,634.08, 09-Mar-2021
128,Revenue,CAHD,Central - Commissioned Services,Day Care / Social Activities,Age Concern,546.72, 09-Mar-2021
129,Revenue,CAHD,Central - Commissioned Services,Day Care / Social Activities,Age Concern,546.72, 09-Mar-2021
130,Revenue,CAHD,South - Commissioned Services,Other Small Contracts,Agincare UK Limited,1207.50, 17-Mar-2021
131,Revenue,CAHD,South - Commissioned Services,Other Small Contracts,Agincare UK Limited,1231.65, 12-Mar-2021
132,Revenue,CAHD,Younger MH non-res purchasing,Other Small Contracts,Agincare UK Limited,77.28, 12-Mar-2021
133,Revenue,CAHD,South - Commissioned Services,Other Small Contracts,Agincare UK Limited,1164.03, 29-Mar-2021
134,Revenue,CAHD,Younger MH non-res purchasing,Other Small Contracts,Agincare UK Limited,57.96, 29-Mar-2021
135,Revenue,CAHD,South - Commissioned Services,Other Small Contracts,Agincare UK Limited,1207.50, 29-Mar-2021
136,Revenue,CAHD,Younger MH non-res purchasing,Other Small Contracts,Agincare UK Limited,154.56, 29-Mar-2021
137,Revenue,CAHD,South - Commissioned Services,Other Small Contracts,Agincare UK Limited,1164.03, 31-Mar-2021
138,Revenue,CAHD,Younger MH non-res purchasing,Other Small Contracts,Agincare UK Limited,154.56, 31-Mar-2021
139,Revenue,CAHD,Extra Care Housing,Private & Voluntary Home Care,Agincare UK Limited,24448.84, 01-Mar-2021
140,Revenue,CAHD,Extra Care Housing,Private & Voluntary Home Care,Agincare UK Limited,11763.39, 01-Mar-2021
141,Revenue,CAHD,Extra Care Housing,Private & Voluntary Home Care,Agincare UK Limited,29078.70, 04-Mar-2021
142,Revenue,CAHD,Extra Care Housing,Private & Voluntary Home Care,Agincare UK Limited,1813.84, 05-Mar-2021
143,Revenue,CAHD,Covid 19- Spend on behalf of NHS,Project Funding,Agincare UK Limited,3320.00, 30-Mar-2021
144,Revenue,CAHD,Covid  - Workforce capacity,Grants to Voluntary Bodies,Agincare UK Limited,6548.13, 08-Mar-2021
145,Revenue,CAHD,Statemented Support Payments to OLAs,Other L.A.s - General,Air Balloon Hill Primary After school Holiday Club,801.92, 23-Mar-2021
146,Revenue,CAHD,CSC - Adoption Support Fund,Post Adoption,Individual,645.00, 05-Mar-2021
147,Revenue,CAHD,Covid 19 -Adult Social Care,Other Small Contracts,AliMo Care Ltd,9.56, 03-Mar-2021
148,Revenue,CAHD,South - Commissioned Services,Other Small Contracts,AliMo Care Ltd,583.16, 03-Mar-2021
149,Revenue,CAHD,North - Community based support,Other Small Contracts,AliMo Care Ltd,124.28, 03-Mar-2021
150,Revenue,CAHD,Covid 19 -Adult Social Care,Other Small Contracts,AliMo Care Ltd,9.56, 12-Mar-2021
151,Revenue,CAHD,South - Commissioned Services,Other Small Contracts,AliMo Care Ltd,626.18, 12-Mar-2021
152,Revenue,CAHD,North - Community based support,Other Small Contracts,AliMo Care Ltd,105.16, 12-Mar-2021
153,Revenue,CAHD,Covid 19 -Adult Social Care,Other Small Contracts,AliMo Care Ltd,9.56, 23-Mar-2021
154,Revenue,CAHD,South - Commissioned Services,Other Small Contracts,AliMo Care Ltd,635.74, 23-Mar-2021
155,Revenue,CAHD,North - Community based support,Other Small Contracts,AliMo Care Ltd,119.50, 23-Mar-2021
156,Revenue,CAHD,Covid 19- Spend on behalf of NHS,Project Funding,AliMo Care Ltd,1600.00, 30-Mar-2021
157,Revenue,CAHD,Covid  - Workforce capacity,Grants to Voluntary Bodies,AliMo Care Ltd,2954.64, 11-Mar-2021
158,Revenue,CAHD,Covid - ASC - Infection Control,Grants to Voluntary Bodies,Alina Homecare Services Limited,2610.60, 04-Mar-2021
159,Revenue,CAHD,Covid - ASC - Infection Control,Grants to Voluntary Bodies,Alina Homecare Services Limited,2610.60, 04-Mar-2021
160,Revenue,CAHD,Covid  - Workforce capacity,Grants to Voluntary Bodies,Alina Homecare Services Limited,1197.83, 08-Mar-2021
161,Revenue,CAHD,North - Community based support,Permanent Nursing,Allambie Court,1397.61, 09-Mar-2021
162,Revenue,CAHD,North - Community based support,Fees & Charges Income - General,Allambie Court,757.08, 09-Mar-2021
163,Revenue,CAHD,Central - Commissioned Services,Permanent Residential,Alvony House Residential Care Home,3000.00, 09-Mar-2021
164,Revenue,CAHD,CSC - Residential Placements,Permanent Residential,Amberleigh Care Ltd,15752.00, 30-Mar-2021
165,Revenue,CAHD,CSC - Residential Placements,Permanent Residential,Amberleigh Care Ltd,17439.71, 25-Mar-2021
166,Revenue,CAHD,CSC - Residential Placements,Permanent Residential,Amberleigh Care Ltd,17439.71, 25-Mar-2021
167,Revenue,CAHD,CSC - Residential Placements,Permanent Residential,Ambito Care and Education,19920.87, 05-Mar-2021
168,Revenue,CAHD,CSC - Residential Placements,Permanent Residential,Ambito Care and Education,19930.88, 03-Mar-2021
169,Revenue,CAHD,Early Years High Needs Support,Other Private Contractors,Ambourne House Day Nursery,780.90, 23-Mar-2021
170,Revenue,CAHD,North - Community based support,Permanent Nursing,Amerind Grove Nursing Home,2706.32, 09-Mar-2021
171,Revenue,CAHD,CSC - Agency Fostering,Foster Parent Allowances,Amicus Foster Care Ltd,4406.84, 05-Mar-2021
172,Revenue,CAHD,CSC - Agency Fostering,Foster Parent Allowances,Amicus Foster Care Ltd,4332.27, 05-Mar-2021
173,Revenue,CAHD,EARLY YEARS DISABILITY  ACCES FUND,Preventative Assistance,Anchor Day Nursery Ltd,615.00, 16-Mar-2021
174,Revenue,CAHD,Supporting People Programme,Grants to Voluntary Bodies,Anchor Hanover Group,1039.00, 01-Mar-2021
175,Revenue,CAHD,Supporting People Programme,Grants to Voluntary Bodies,Anchor Hanover Group,847.00, 01-Mar-2021
176,Revenue,CAHD,Training Budget - Children`s Social Serv,Training Expenses,Individual,525.00, 26-Mar-2021
177,Revenue,CAHD,"Strategy, Advice and Public Protection",Radio Pager/Mobile Phones,Applied Satellite Technology Systems Ltd,765.31, 18-Mar-2021
178,Revenue,CAHD,Younger MH non-res purchasing,Supported Living,Arch Care Rehab Services Ltd,529.76, 25-Mar-2021
179,Revenue,CAHD,Younger MH non-res purchasing,Supported Living,Archcare Rehab Limited,1957.40, 09-Mar-2021
180,Revenue,CAHD,North - Community based support,Permanent Nursing,Argentum Lodge,4000.00, 09-Mar-2021
181,Revenue,CAHD,South - Commissioned Services,Permanent Residential,Ash View House,5529.44, 09-Mar-2021
182,Revenue,CAHD,Jointly Funded H&SC Packages,Permanent Residential,Ash View House,1133.64, 09-Mar-2021
183,Revenue,CAHD,S117 Placements PCT,Permanent Residential,Ash View House,7707.44, 09-Mar-2021
184,Revenue,CAHD,North - Community based support,Permanent Residential,Ash View House,7099.52, 09-Mar-2021
185,Revenue,CAHD,North - Community based support,Permanent Residential,Ash View House,7120.00, 09-Mar-2021
186,Revenue,CAHD,Section 117 Placements MH Younger,Permanent Residential,Ash View House,5022.60, 09-Mar-2021
187,Revenue,CAHD,Jointly Funded H&SC Packages,Permanent Residential,Ash View House,2152.60, 09-Mar-2021
188,Revenue,CAHD,South - S117,Permanent Residential,Ash View House,6826.64, 09-Mar-2021
189,Revenue,CAHD,South - Commissioned Services,Permanent Residential,Ash View House,6747.84, 09-Mar-2021
190,Revenue,CAHD,Drug and Alcohol Programme,Rent,Ashville Asset Management Limited,1244.55, 25-Mar-2021
191,Revenue,CAHD,Drug and Alcohol Programme,Rent,Ashville Asset Management Limited,4550.00, 25-Mar-2021
192,Revenue,CAHD,Supporting People Programme,Grants to Voluntary Bodies,Aspects and Milestones Trust,3441.00, 01-Mar-2021
193,Revenue,CAHD,Supporting People Programme,Grants to Voluntary Bodies,Aspects and Milestones Trust,1725.00, 01-Mar-2021
194,Revenue,CAHD,ASC Rapid Testing Fund,Grants to Voluntary Bodies,Aspirations Support Bristol Limited,9393.65, 25-Mar-2021
195,Revenue,CAHD,CSC - Care Leavers Independent Living,Adults - Family Support,Aspirations Support Bristol Limited,15419.68, 05-Mar-2021
196,Revenue,CAHD,CSC - Care Leavers Independent Living,Adults - Family Support,Aspirations Support Bristol Limited,15419.68, 25-Mar-2021
197,Revenue,CAHD,Covid 19- Spend on behalf of NHS,Project Funding,Aspire Care SW Limited,600.00, 30-Mar-2021
198,Revenue,CAHD,Covid  - Workforce capacity,Grants to Voluntary Bodies,Aspire Care SW Limited,2395.66, 18-Mar-2021
199,Revenue,CAHD,CSC - Vinney Green Secure Unit,Mechanical & Electrical Maintenance,Assa Abloy Limited,1229.00, 25-Mar-2021
200,Revenue,CAHD,Education Psychology,Advertising for Recruitment,Association of Educational Psychologists,700.00, 19-Mar-2021
201,Revenue,CAHD,South - Commissioned Services,Adults - Family Support,Ategi Limited,2025.75, 01-Mar-2021
202,Revenue,CAHD,Shared Lives,Other Supplies & Services,Ategi Limited,53502.00, 31-Mar-2021
203,Revenue,CAHD,South - Commissioned Services,Adults - Family Support,Ategi Limited,17773.52, 03-Mar-2021
204,Revenue,CAHD,South - Commissioned Services,Adults - Family Support,Ategi Limited,17153.28, 31-Mar-2021
205,Revenue,CAHD,CSC - Legal Fees,Legal Fees,Individual,1000.00, 08-Mar-2021
206,Revenue,CAHD,South - Commissioned Services,Permanent Residential,Autism Specialised Care Homes,6506.88, 09-Mar-2021
207,Revenue,CAHD,Younger Adult Mental Health,Health Services (Third Party Payments),Avon & Wiltshire Mental Health,1693.33, 26-Mar-2021
208,Revenue,CAHD,Younger Adult Mental Health,Health Services (Third Party Payments),Avon & Wiltshire Mental Health,43749.00, 22-Mar-2021
209,Revenue,CAHD,Younger Adult Mental Health,Health Services (Third Party Payments),Avon & Wiltshire Mental Health,1693.33, 26-Mar-2021
210,Revenue,CAHD,TSG Practice Placements,Training Expenses,Avon & Wiltshire Mental Health,700.00, 31-Mar-2021
211,Revenue,CAHD,South - Commissioned Services,Permanent Nursing,Avon Lodge Care Centre,4341.36, 09-Mar-2021
212,Revenue,CAHD,South Glos Users in South Glos Homes,Permanent Nursing,Avon Lodge Care Centre,735.68, 09-Mar-2021
213,Revenue,CAHD,South Glos Users in South Glos Homes,Permanent Nursing,Avon Lodge Care Centre,735.68, 09-Mar-2021
214,Revenue,CAHD,South Glos Users in South Glos Homes,Permanent Nursing,Avon Lodge Care Centre,5780.34, 09-Mar-2021
215,Revenue,CAHD,South - Commissioned Services,Permanent Nursing,Avon Lodge Care Centre,923.82, 09-Mar-2021
216,Revenue,CAHD,South - Commissioned Services,Fees & Charges Income - General,Avon Lodge Care Centre,830.54, 09-Mar-2021
217,Revenue,CAHD,South Glos Users in South Glos Homes,Permanent Nursing,Avon Lodge Care Centre,735.68, 09-Mar-2021
218,Revenue,CAHD,South Glos Users in South Glos Homes,Permanent Nursing,Avon Lodge Care Centre,735.68, 09-Mar-2021
219,Revenue,CAHD,South - Commissioned Services,Permanent Nursing,Avon Lodge Care Centre,4537.76, 09-Mar-2021
220,Revenue,CAHD,South Glos Users in South Glos Homes,Permanent Nursing,Avon Lodge Care Centre,735.68, 09-Mar-2021
221,Revenue,CAHD,South Glos Users in South Glos Homes,Permanent Nursing,Avon Lodge Care Centre,735.68, 09-Mar-2021
222,Revenue,CAHD,Covid 19- Spend on behalf of NHS,Respite Planned - Nursing,Avon Lodge Care Centre,9742.86, 09-Mar-2021
223,Revenue,CAHD,Covid 19- Spend on behalf of NHS,Respite Planned - Nursing,Avon Lodge Care Centre,4400.00, 09-Mar-2021
224,Revenue,CAHD,South - Commissioned Services,Permanent Nursing,Avon Lodge Care Centre,3264.00, 09-Mar-2021
225,Revenue,CAHD,South Glos Users in South Glos Homes,Permanent Nursing,Avon Lodge Care Centre,735.68, 09-Mar-2021
226,Revenue,CAHD,South - Commissioned Services,Fees & Charges Income - General,Avon Lodge Care Centre,1897.89, 09-Mar-2021
227,Revenue,CAHD,South - Commissioned Services,Permanent Nursing,Avon Lodge Care Centre,4311.16, 09-Mar-2021
228,Revenue,CAHD,South Glos Users in South Glos Homes,Permanent Nursing,Avon Lodge Care Centre,735.68, 09-Mar-2021
229,Revenue,CAHD,South - Commissioned Services,Permanent Nursing,Avon Lodge Care Centre,6796.43, 09-Mar-2021
230,Revenue,CAHD,South - Commissioned Services,Permanent Nursing,Avon Lodge Care Centre,3460.00, 09-Mar-2021
231,Revenue,CAHD,Covid 19- Spend on behalf of NHS,Respite Planned - Nursing,Avon Lodge Care Centre,2571.43, 09-Mar-2021
232,Revenue,CAHD,South - Commissioned Services,Permanent Nursing,Avon Lodge Care Centre,4347.88, 09-Mar-2021
233,Revenue,CAHD,South Glos Users in South Glos Homes,Permanent Nursing,Avon Lodge Care Centre,735.68, 09-Mar-2021
234,Revenue,CAHD,Covid 19- Spend on behalf of NHS,Respite Planned - Residential,Avon Lodge Care Centre,4400.00, 09-Mar-2021
235,Revenue,CAHD,Covid 19- Spend on behalf of NHS,Respite Planned - Residential,Avon Lodge Care Centre,4085.71, 09-Mar-2021
236,Revenue,CAHD,Covid 19- Spend on behalf of NHS,Respite Planned - Residential,Avon Lodge Care Centre,3528.57, 09-Mar-2021
237,Revenue,CAHD,South Glos Users in South Glos Homes,Permanent Nursing,Avon Lodge Care Centre,735.68, 09-Mar-2021
238,Revenue,CAHD,South Glos Users in South Glos Homes,Permanent Nursing,Avon Lodge Care Centre,735.68, 09-Mar-2021
239,Revenue,CAHD,Covid 19- Spend on behalf of NHS,Respite Planned - Nursing,Avon Lodge Care Centre,7228.57, 09-Mar-2021
240,Revenue,CAHD,Covid 19- Spend on behalf of NHS,Respite Planned - Nursing,Avon Lodge Care Centre,4400.00, 09-Mar-2021
241,Revenue,CAHD,South - Commissioned Services,Permanent Nursing,Avon Lodge Care Centre,4403.84, 09-Mar-2021
242,Revenue,CAHD,South Glos Users in South Glos Homes,Permanent Nursing,Avon Lodge Care Centre,735.68, 09-Mar-2021
243,Revenue,CAHD,South - Commissioned Services,Permanent Nursing,Avon Lodge Care Centre,6107.14, 09-Mar-2021
244,Revenue,CAHD,South - Commissioned Services,Permanent Nursing,Avon Lodge Care Centre,3800.00, 09-Mar-2021
245,Revenue,CAHD,South - Commissioned Services,Respite Planned - Nursing,Avon Lodge Care Centre,1606.43, 09-Mar-2021
246,Revenue,CAHD,South - Commissioned Services,Permanent Nursing,Avon Lodge Care Centre,4311.16, 09-Mar-2021
247,Revenue,CAHD,South Glos Users in South Glos Homes,Permanent Nursing,Avon Lodge Care Centre,735.68, 09-Mar-2021
248,Revenue,CAHD,Covid 19- Spend on behalf of NHS,Respite Planned - Nursing,Avon Lodge Care Centre,6128.57, 09-Mar-2021
249,Revenue,CAHD,Covid 19- Spend on behalf of NHS,Respite Planned - Nursing,Avon Lodge Care Centre,4400.00, 09-Mar-2021
250,Revenue,CAHD,Covid 19- Spend on behalf of NHS,Respite Planned - Nursing,Avon Lodge Care Centre,6600.00, 09-Mar-2021
251,Revenue,CAHD,Covid 19- Spend on behalf of NHS,Respite Planned - Nursing,Avon Lodge Care Centre,10371.43, 09-Mar-2021
252,Revenue,CAHD,South Glos Users in South Glos Homes,Permanent Nursing,Avon Lodge Care Centre,735.68, 09-Mar-2021
253,Revenue,CAHD,Central - Commissioned Services,Permanent Nursing,Avon Lodge Care Centre,3884.80, 09-Mar-2021
254,Revenue,CAHD,South Glos Users in South Glos Homes,Permanent Nursing,Avon Lodge Care Centre,735.68, 09-Mar-2021
255,Revenue,CAHD,Central - Commissioned Services,Permanent Residential,Avon Lodge Care Centre,3400.00, 09-Mar-2021
256,Revenue,CAHD,Central - Commissioned Services,Permanent Nursing,Avon Lodge Care Centre,3400.00, 09-Mar-2021
257,Revenue,CAHD,Covid 19- Spend on behalf of NHS,Respite Planned - Nursing,Avon Lodge Care Centre,9428.57, 09-Mar-2021
258,Revenue,CAHD,North - Community based support,Permanent Nursing,Avon Lodge Care Centre,3060.00, 09-Mar-2021
259,Revenue,CAHD,South Glos Users in South Glos Homes,Permanent Nursing,Avon Lodge Care Centre,788.23, 09-Mar-2021
260,Revenue,CAHD,South Glos Users in South Glos Homes,Permanent Nursing,Avon Lodge Care Centre,683.13, 09-Mar-2021
261,Revenue,CAHD,Covid 19- Spend on behalf of NHS,Respite Planned - Nursing,Avon Lodge Care Centre,6757.14, 09-Mar-2021
262,Revenue,CAHD,Central - Commissioned Services,Permanent Nursing,Avon Lodge Care Centre,4885.72, 09-Mar-2021
263,Revenue,CAHD,Central - Commissioned Services,Permanent Nursing,Avon Lodge Care Centre,2850.00, 09-Mar-2021
264,Revenue,CAHD,Central - Commissioned Services,Permanent Nursing,Avon Lodge Care Centre,2442.86, 09-Mar-2021
265,Revenue,CAHD,Central - Commissioned Services,Permanent Nursing,Avon Lodge Care Centre,950.00, 09-Mar-2021
266,Revenue,CAHD,Central - Commissioned Services,Fees & Charges Income - General,Avon Lodge Care Centre,515.03, 09-Mar-2021
267,Revenue,CAHD,North - Community based support,Permanent Residential,Avon Lodge Care Centre,3460.00, 09-Mar-2021
268,Revenue,CAHD,North - Community based support,Respite Emergency - Residential,Avon Lodge Care Centre,3800.00, 09-Mar-2021
269,Revenue,CAHD,North - Community based support,Respite Emergency - Residential,Avon Lodge Care Centre,950.00, 09-Mar-2021
270,Revenue,CAHD,South - Commissioned Services,Permanent Nursing,Avon Lodge Care Centre,4530.04, 09-Mar-2021
271,Revenue,CAHD,South Glos Users in South Glos Homes,Permanent Nursing,Avon Lodge Care Centre,735.68, 09-Mar-2021
272,Revenue,CAHD,South - S117,Permanent Nursing,Avon Lodge Care Centre,3885.48, 09-Mar-2021
273,Revenue,CAHD,South Glos Users in South Glos Homes,Permanent Nursing,Avon Lodge Care Centre,735.68, 09-Mar-2021
274,Revenue,CAHD,South - Commissioned Services,Respite Planned - Nursing,Avon Lodge Care Centre,11862.85, 09-Mar-2021
275,Revenue,CAHD,South Glos Users in South Glos Homes,Permanent Nursing,Avon Lodge Care Centre,4860.74, 09-Mar-2021
276,Revenue,CAHD,South - Commissioned Services,Permanent Residential,Avon Lodge Care Centre,3060.00, 09-Mar-2021
277,Revenue,CAHD,South Glos Users in South Glos Homes,Permanent Nursing,Avon Lodge Care Centre,735.68, 09-Mar-2021
278,Revenue,CAHD,South Glos Users in South Glos Homes,Permanent Nursing,Avon Lodge Care Centre,735.68, 09-Mar-2021
279,Revenue,CAHD,South - Commissioned Services,Permanent Nursing,Avon Lodge Care Centre,19542.86, 09-Mar-2021
280,Revenue,CAHD,South - Commissioned Services,Permanent Nursing,Avon Lodge Care Centre,3800.00, 09-Mar-2021
281,Revenue,CAHD,South Glos Users in South Glos Homes,Permanent Nursing,Avon Lodge Care Centre,735.68, 09-Mar-2021
282,Revenue,CAHD,Covid  - Workforce capacity,Grants to Voluntary Bodies,Avon Lodge Care Centre,5030.88, 08-Mar-2021
283,Revenue,CAHD,South - Commissioned Services,Permanent Residential,Avon Valley Care Home,4000.00, 09-Mar-2021
284,Revenue,CAHD,South - Commissioned Services,Permanent Residential,Avon Valley Care Home,4800.00, 09-Mar-2021
285,Revenue,CAHD,South - Commissioned Services,Permanent Residential,Avon Valley Care Home,3960.00, 09-Mar-2021
286,Revenue,CAHD,South - Commissioned Services,Permanent Residential,Avon Valley Care Home,1131.43, 09-Mar-2021
287,Revenue,CAHD,South - Commissioned Services,Permanent Residential,Avon Valley Care Home,2828.57, 09-Mar-2021
288,Revenue,CAHD,South - Commissioned Services,Permanent Residential,Avon Valley Care Home,4000.00, 09-Mar-2021
289,Revenue,CAHD,South - Commissioned Services,Permanent Residential,Avon Valley Care Home,4800.00, 09-Mar-2021
290,Revenue,CAHD,South - Commissioned Services,Permanent Residential,Avon Valley Care Home,3960.00, 09-Mar-2021
291,Revenue,CAHD,South - Commissioned Services,Permanent Residential,Avon Valley Care Home,4000.00, 09-Mar-2021
292,Revenue,CAHD,South - Commissioned Services,Permanent Residential,Avon Valley Care Home,4000.00, 09-Mar-2021
293,Revenue,CAHD,North - Community based support,Permanent Residential,Avon Valley Care Home,3600.00, 09-Mar-2021
294,Revenue,CAHD,Central - Commissioned Services,Permanent Residential,Avon Valley Care Home,4000.00, 09-Mar-2021
295,Revenue,CAHD,South - Commissioned Services,Respite Emergency - Residential,Avon Valley Care Home,1000.00, 09-Mar-2021
296,Revenue,CAHD,Covid  - Workforce capacity,Grants to Voluntary Bodies,Avon Valley Care Home,4951.02, 25-Mar-2021
297,Revenue,CAHD,North - Community based support,Permanent Residential,Avonmere Care Home,4680.00, 09-Mar-2021
298,Revenue,CAHD,North - Community based support,Respite Planned - Residential,Avonmere Care Home,4011.43, 09-Mar-2021
299,Revenue,CAHD,North - Community based support,Respite Emergency - Residential,Avonmere Care Home,3510.00, 09-Mar-2021
300,Revenue,CAHD,North - Community based support,Permanent Residential,Avonmere Care Home,4892.00, 09-Mar-2021
301,Revenue,CAHD,Covid 19 -Adult Social Care,Respite Planned - Residential,Avonmere Care Home,4400.00, 09-Mar-2021
302,Revenue,CAHD,North - Community based support,Permanent Residential,Avonmere Care Home,4420.00, 09-Mar-2021
303,Revenue,CAHD,South - Commissioned Services,Respite Emergency - Residential,Avonmere Care Home,4800.00, 09-Mar-2021
304,Revenue,CAHD,Covid 19- Spend on behalf of NHS,Respite Planned - Residential,Avonmere Care Home,6914.29, 09-Mar-2021
305,Revenue,CAHD,North - Community based support,Permanent Residential,Avonmere Care Home,4600.00, 09-Mar-2021
306,Revenue,CAHD,North - Community based support,Permanent Residential,Avonmere Care Home,4892.00, 09-Mar-2021
307,Revenue,CAHD,Covid 19- Spend on behalf of NHS,Respite Planned - Residential,Avonmere Care Home,4400.00, 09-Mar-2021
308,Revenue,CAHD,Covid  - Workforce capacity,Grants to Voluntary Bodies,Avonmere Care Home,2235.95, 25-Mar-2021
309,Revenue,CAHD,Covid 19- Spend on behalf of NHS,Respite Planned - Residential,Badminton Place,6685.71, 09-Mar-2021
310,Revenue,CAHD,Covid 19- Spend on behalf of NHS,Respite Planned - Nursing,Badminton Place,3600.00, 09-Mar-2021
311,Revenue,CAHD,Covid 19- Spend on behalf of NHS,Respite Planned - Residential,Badminton Place,1885.71, 09-Mar-2021
312,Revenue,CAHD,Covid 19- Spend on behalf of NHS,Respite Planned - Nursing,Badminton Place,5314.29, 09-Mar-2021
313,Revenue,CAHD,Covid 19- Spend on behalf of NHS,Respite Planned - Nursing,Badminton Place,1885.71, 09-Mar-2021
314,Revenue,CAHD,Covid 19- Spend on behalf of NHS,Respite Planned - Nursing,Badminton Place,14228.57, 09-Mar-2021
315,Revenue,CAHD,Covid 19- Spend on behalf of NHS,Respite Planned - Residential,Badminton Place,4457.14, 09-Mar-2021
316,Revenue,CAHD,Covid 19- Spend on behalf of NHS,Respite Planned - Nursing,Badminton Place,4800.00, 09-Mar-2021
317,Revenue,CAHD,Covid 19- Spend on behalf of NHS,Respite Planned - Nursing,Badminton Place,2057.14, 09-Mar-2021
318,Revenue,CAHD,Covid 19- Spend on behalf of NHS,Respite Planned - Nursing,Badminton Place,2914.29, 09-Mar-2021
319,Revenue,CAHD,Covid 19- Spend on behalf of NHS,Respite Planned - Nursing,Badminton Place,6685.71, 09-Mar-2021
320,Revenue,CAHD,Covid 19- Spend on behalf of NHS,Respite Planned - Nursing,Badminton Place,514.29, 09-Mar-2021
321,Revenue,CAHD,Covid 19- Spend on behalf of NHS,Respite Planned - Nursing,Badminton Place,4800.00, 09-Mar-2021
322,Revenue,CAHD,Covid 19- Spend on behalf of NHS,Respite Planned - Nursing,Badminton Place,1885.71, 09-Mar-2021
323,Revenue,CAHD,Covid 19- Spend on behalf of NHS,Respite Planned - Nursing,Badminton Place,4800.00, 09-Mar-2021
324,Revenue,CAHD,Covid 19- Spend on behalf of NHS,Respite Planned - Nursing,Badminton Place,1200.00, 09-Mar-2021
325,Revenue,CAHD,Covid 19- Spend on behalf of NHS,Respite Planned - Nursing,Badminton Place,4800.00, 09-Mar-2021
326,Revenue,CAHD,Covid 19- Spend on behalf of NHS,Respite Planned - Nursing,Badminton Place,1028.57, 09-Mar-2021
327,Revenue,CAHD,Covid 19- Spend on behalf of NHS,Respite Planned - Nursing,Badminton Place,5657.14, 09-Mar-2021
328,Revenue,CAHD,Covid 19- Spend on behalf of NHS,Respite Planned - Nursing,Badminton Place,1542.86, 09-Mar-2021
329,Revenue,CAHD,Covid 19- Spend on behalf of NHS,Respite Planned - Nursing,Badminton Place,857.14, 09-Mar-2021
330,Revenue,CAHD,Covid 19- Spend on behalf of NHS,Respite Planned - Nursing,Badminton Place,10957.14, 09-Mar-2021
331,Revenue,CAHD,Covid 19- Spend on behalf of NHS,Respite Planned - Nursing,Badminton Place,5200.00, 09-Mar-2021
332,Revenue,CAHD,Covid 19- Spend on behalf of NHS,Respite Planned - Nursing,Badminton Place,5757.14, 09-Mar-2021
333,Revenue,CAHD,Covid 19- Spend on behalf of NHS,Respite Planned - Nursing,Badminton Place,6128.57, 09-Mar-2021
334,Revenue,CAHD,Covid 19- Spend on behalf of NHS,Respite Planned - Nursing,Badminton Place,6514.29, 09-Mar-2021
335,Revenue,CAHD,Covid 19- Spend on behalf of NHS,Respite Planned - Nursing,Badminton Place,514.29, 09-Mar-2021
336,Revenue,CAHD,Covid 19- Spend on behalf of NHS,Respite Planned - Nursing,Badminton Place,4285.71, 09-Mar-2021
337,Revenue,CAHD,Covid 19- Spend on behalf of NHS,Respite Planned - Nursing,Badminton Place,5142.86, 09-Mar-2021
338,Revenue,CAHD,Covid  - Workforce capacity,Grants to Voluntary Bodies,Badminton Place,1676.96, 08-Mar-2021
339,Revenue,CAHD,Verification of EYFSP Assessment,Other Public Bodies,Baker Street Nursery & Pre-School,2050.00, 18-Mar-2021
340,Revenue,CAHD,Pensions - Non DSG,Annual Pension,Bath & North East Somerset Council,102374.59, 23-Mar-2021
341,Revenue,CAHD,Covid 19 -Adult Social Care,Contribns & Reimbs - Other LAs,Bath & North East Somerset Council,96000.00, 02-Mar-2021
342,Revenue,CAHD,South Glos Users in South Glos Homes,Permanent Nursing,Beaufort Grange Care Home,4361.53, 09-Mar-2021
343,Revenue,CAHD,South Glos Users in South Glos Homes,Permanent Nursing,Beaufort Grange Care Home,735.68, 09-Mar-2021
344,Revenue,CAHD,North - Community based support,Respite Emergency - Residential,Beaufort Grange Care Home,2828.57, 09-Mar-2021
345,Revenue,CAHD,South Glos Users in South Glos Homes,Permanent Nursing,Beaufort Grange Care Home,735.68, 09-Mar-2021
346,Revenue,CAHD,South Glos Users in South Glos Homes,Permanent Nursing,Beaufort Grange Care Home,735.68, 09-Mar-2021
347,Revenue,CAHD,South Glos Users in South Glos Homes,Permanent Nursing,Beaufort Grange Care Home,735.68, 09-Mar-2021
348,Revenue,CAHD,South Glos Users in South Glos Homes,Permanent Nursing,Beaufort Grange Care Home,735.68, 09-Mar-2021
349,Revenue,CAHD,South Glos Users in South Glos Homes,Permanent Nursing,Beaufort Grange Care Home,5806.62, 09-Mar-2021
350,Revenue,CAHD,South Glos Users in South Glos Homes,Permanent Nursing,Beaufort Grange Care Home,735.68, 09-Mar-2021
351,Revenue,CAHD,South Glos Users in South Glos Homes,Permanent Nursing,Beaufort Grange Care Home,735.68, 09-Mar-2021
352,Revenue,CAHD,South Glos Users in South Glos Homes,Permanent Nursing,Beaufort Grange Care Home,735.68, 09-Mar-2021
353,Revenue,CAHD,North - S117,Permanent Nursing,Beaufort Grange Care Home,4877.04, 09-Mar-2021
354,Revenue,CAHD,South Glos Users in South Glos Homes,Permanent Nursing,Beaufort Grange Care Home,735.68, 09-Mar-2021
355,Revenue,CAHD,South Glos Users in South Glos Homes,Permanent Nursing,Beaufort Grange Care Home,735.68, 09-Mar-2021
356,Revenue,CAHD,Central - Commissioned Services,Permanent Nursing,Beaufort Grange Care Home,11784.00, 09-Mar-2021
357,Revenue,CAHD,South Glos Users in South Glos Homes,Permanent Nursing,Beaufort Grange Care Home,735.68, 09-Mar-2021
358,Revenue,CAHD,South Glos Users in South Glos Homes,Permanent Nursing,Beaufort Grange Care Home,735.68, 09-Mar-2021
359,Revenue,CAHD,South Glos Users in South Glos Homes,Permanent Nursing,Beaufort Grange Care Home,735.68, 09-Mar-2021
360,Revenue,CAHD,South Glos Users in South Glos Homes,Permanent Nursing,Beaufort Grange Care Home,735.68, 09-Mar-2021
361,Revenue,CAHD,South Glos Users in South Glos Homes,Permanent Nursing,Beaufort Grange Care Home,735.68, 09-Mar-2021
362,Revenue,CAHD,South Glos Users in South Glos Homes,Permanent Nursing,Beaufort Grange Care Home,735.68, 09-Mar-2021
363,Revenue,CAHD,Central - Commissioned Services,Respite Planned - Residential,Beaufort Grange Care Home,18662.86, 09-Mar-2021
364,Revenue,CAHD,South Glos Users in South Glos Homes,Permanent Nursing,Beaufort Grange Care Home,735.68, 09-Mar-2021
365,Revenue,CAHD,South Glos Users in South Glos Homes,Permanent Nursing,Beaufort Grange Care Home,735.68, 09-Mar-2021
366,Revenue,CAHD,South Glos Users in South Glos Homes,Permanent Nursing,Beaufort Grange Care Home,735.68, 09-Mar-2021
367,Revenue,CAHD,South Glos Users in South Glos Homes,Permanent Nursing,Beaufort Grange Care Home,735.68, 09-Mar-2021
368,Revenue,CAHD,South Glos Users in South Glos Homes,Permanent Nursing,Beaufort Grange Care Home,735.68, 09-Mar-2021
369,Revenue,CAHD,South Glos Users in South Glos Homes,Permanent Nursing,Beaufort Grange Care Home,735.68, 09-Mar-2021
370,Revenue,CAHD,South Glos Users in South Glos Homes,Permanent Nursing,Beaufort Grange Care Home,735.68, 09-Mar-2021
371,Revenue,CAHD,South Glos Users in South Glos Homes,Permanent Nursing,Beaufort Grange Care Home,735.68, 09-Mar-2021
372,Revenue,CAHD,Central - Commissioned Services,Permanent Nursing,Beaufort Grange Care Home,5500.00, 09-Mar-2021
373,Revenue,CAHD,South Glos Users in South Glos Homes,Permanent Nursing,Beaufort Grange Care Home,735.68, 09-Mar-2021
374,Revenue,CAHD,South Glos Users in South Glos Homes,Permanent Nursing,Beaufort Grange Care Home,735.68, 09-Mar-2021
375,Revenue,CAHD,Central - Commissioned Services,Respite Planned - Residential,Beaufort Grange Care Home,2900.00, 09-Mar-2021
376,Revenue,CAHD,South Glos Users in South Glos Homes,Permanent Nursing,Beaufort Grange Care Home,735.68, 09-Mar-2021
377,Revenue,CAHD,South Glos Users in South Glos Homes,Permanent Nursing,Beaufort Grange Care Home,735.68, 09-Mar-2021
378,Revenue,CAHD,South Glos Users in South Glos Homes,Permanent Nursing,Beaufort Grange Care Home,735.68, 09-Mar-2021
379,Revenue,CAHD,South Glos Users in South Glos Homes,Permanent Nursing,Beaufort Grange Care Home,735.68, 09-Mar-2021
380,Revenue,CAHD,South Glos Users in South Glos Homes,Permanent Nursing,Beaufort Grange Care Home,735.68, 09-Mar-2021
381,Revenue,CAHD,South Glos Users in South Glos Homes,Permanent Nursing,Beaufort Grange Care Home,735.68, 09-Mar-2021
382,Revenue,CAHD,South Glos Users in South Glos Homes,Permanent Nursing,Beaufort Grange Care Home,735.68, 09-Mar-2021
383,Revenue,CAHD,South Glos Users in South Glos Homes,Permanent Nursing,Beaufort Grange Care Home,735.68, 09-Mar-2021
384,Revenue,CAHD,South Glos Users in South Glos Homes,Permanent Nursing,Beaufort Grange Care Home,6358.38, 09-Mar-2021
385,Revenue,CAHD,South Glos Users in South Glos Homes,Permanent Nursing,Beaufort Grange Care Home,735.68, 09-Mar-2021
386,Revenue,CAHD,South Glos Users in South Glos Homes,Permanent Nursing,Beaufort Grange Care Home,6069.36, 09-Mar-2021
387,Revenue,CAHD,South Glos Users in South Glos Homes,Permanent Nursing,Beaufort Grange Care Home,735.68, 09-Mar-2021
388,Revenue,CAHD,South Glos Users in South Glos Homes,Permanent Nursing,Beaufort Grange Care Home,3757.22, 09-Mar-2021
389,Revenue,CAHD,South Glos Users in South Glos Homes,Permanent Nursing,Beaufort Grange Care Home,735.68, 09-Mar-2021
390,Revenue,CAHD,South Glos Users in South Glos Homes,Permanent Nursing,Beaufort Grange Care Home,735.68, 09-Mar-2021
391,Revenue,CAHD,South Glos Users in South Glos Homes,Permanent Nursing,Beaufort Grange Care Home,735.68, 09-Mar-2021
392,Revenue,CAHD,South Glos Users in South Glos Homes,Permanent Nursing,Beaufort Grange Care Home,735.68, 09-Mar-2021
393,Revenue,CAHD,South Glos Users in South Glos Homes,Permanent Nursing,Beaufort Grange Care Home,735.68, 09-Mar-2021
394,Revenue,CAHD,Central - Commissioned Services,Permanent Residential,Beaufort House,2924.56, 09-Mar-2021
395,Revenue,CAHD,Central - Commissioned Services,Permanent Residential,Beaufort House,2831.12, 09-Mar-2021
396,Revenue,CAHD,North - Community based support,Permanent Residential,Beaufort House,2622.84, 09-Mar-2021
397,Revenue,CAHD,South - Commissioned Services,Permanent Residential,Beaufort House,2587.56, 09-Mar-2021
398,Revenue,CAHD,Covid 19- Spend on behalf of NHS,Respite Planned - Nursing,Beaufort House,1728.57, 09-Mar-2021
399,Revenue,CAHD,Central - Commissioned Services,Permanent Residential,Beaufort House,3800.00, 09-Mar-2021
400,Revenue,CAHD,Central - Commissioned Services,Fees & Charges Income - General,Beaufort House,7977.86, 09-Mar-2021
401,Revenue,CAHD,Central - Commissioned Services,Fees & Charges Income - General,Beaufort House,1929.29, 09-Mar-2021
402,Revenue,CAHD,North - Community based support,Permanent Residential,Beaufort House,4000.00, 09-Mar-2021
403,Revenue,CAHD,North - Community based support,Permanent Residential,Beaufort House,2753.92, 09-Mar-2021
404,Revenue,CAHD,Central - Commissioned Services,Permanent Residential,Beaufort House,3600.00, 09-Mar-2021
405,Revenue,CAHD,Central - Commissioned Services,Fees & Charges Income - General,Beaufort House,2254.01, 09-Mar-2021
406,Revenue,CAHD,Central - Commissioned Services,Permanent Residential,Beaufort House,3200.00, 09-Mar-2021
407,Revenue,CAHD,Central - Commissioned Services,Permanent Residential,Beaufort House,3600.00, 09-Mar-2021
408,Revenue,CAHD,Central - Commissioned Services,Permanent Residential,Beaufort House,3600.00, 09-Mar-2021
409,Revenue,CAHD,Central - Bed Purchasing and Direct Payments,Permanent Residential,Beaufort House,3400.00, 09-Mar-2021
410,Revenue,CAHD,Covid  - Workforce capacity,Grants to Voluntary Bodies,Beaufort House,1197.83, 08-Mar-2021
411,Revenue,CAHD,South - Commissioned Services,Permanent Residential,Beech House,3018.84, 09-Mar-2021
412,Revenue,CAHD,South Glos Users in South Glos Homes,Permanent Nursing,Beech House,735.68, 09-Mar-2021
413,Revenue,CAHD,North - Community based support,Permanent Nursing,Beech House,4365.60, 09-Mar-2021
414,Revenue,CAHD,South Glos Users in South Glos Homes,Permanent Nursing,Beech House,735.68, 09-Mar-2021
415,Revenue,CAHD,North - Community based support,Permanent Residential,Beech House,4280.00, 09-Mar-2021
416,Revenue,CAHD,South Glos Users in South Glos Homes,Permanent Nursing,Beech House,735.68, 09-Mar-2021
417,Revenue,CAHD,South Glos Users in South Glos Homes,Permanent Nursing,Beech House,735.68, 09-Mar-2021
418,Revenue,CAHD,South Glos Users in South Glos Homes,Permanent Nursing,Beech House,735.68, 09-Mar-2021
419,Revenue,CAHD,South Glos Users in South Glos Homes,Permanent Nursing,Beech House,735.68, 09-Mar-2021
420,Revenue,CAHD,South Glos Users in South Glos Homes,Permanent Nursing,Beech House,735.68, 09-Mar-2021
421,Revenue,CAHD,South Glos Users in South Glos Homes,Permanent Nursing,Beech House,735.68, 09-Mar-2021
422,Revenue,CAHD,South Glos Users in South Glos Homes,Permanent Nursing,Beech House,3599.58, 09-Mar-2021
423,Revenue,CAHD,South Glos Users in South Glos Homes,Permanent Nursing,Beech House,735.68, 09-Mar-2021
424,Revenue,CAHD,South Glos Users in South Glos Homes,Permanent Nursing,Beech House,3547.03, 09-Mar-2021
425,Revenue,CAHD,North - Community based support,Permanent Nursing,Beech House,3821.43, 09-Mar-2021
426,Revenue,CAHD,South Glos Users in South Glos Homes,Permanent Nursing,Beech House,735.68, 09-Mar-2021
427,Revenue,CAHD,South Glos Users in South Glos Homes,Permanent Nursing,Beech House,4519.18, 09-Mar-2021
428,Revenue,CAHD,North - Community based support,Permanent Nursing,Beech House,4280.00, 09-Mar-2021
429,Revenue,CAHD,South Glos Users in South Glos Homes,Permanent Nursing,Beech House,735.68, 09-Mar-2021
430,Revenue,CAHD,North - Community based support,Permanent Nursing,Beech House,4280.00, 09-Mar-2021
431,Revenue,CAHD,South Glos Users in South Glos Homes,Permanent Nursing,Beech House,735.68, 09-Mar-2021
432,Revenue,CAHD,South Glos Users in South Glos Homes,Permanent Nursing,Beech House,1418.81, 09-Mar-2021
433,Revenue,CAHD,North - Community based support,Permanent Nursing,Beech House,4308.04, 09-Mar-2021
434,Revenue,CAHD,South Glos Users in South Glos Homes,Permanent Nursing,Beech House,735.68, 09-Mar-2021
435,Revenue,CAHD,South Glos Users in South Glos Homes,Permanent Nursing,Beech House,735.68, 09-Mar-2021
436,Revenue,CAHD,South Glos Users in South Glos Homes,Permanent Nursing,Beech House,3494.48, 09-Mar-2021
437,Revenue,CAHD,South Glos Users in South Glos Homes,Permanent Nursing,Beech House,735.68, 09-Mar-2021
438,Revenue,CAHD,North - Community based support,Permanent Nursing,Beech House,4360.00, 09-Mar-2021
439,Revenue,CAHD,South Glos Users in South Glos Homes,Permanent Nursing,Beech House,4781.92, 09-Mar-2021
440,Revenue,CAHD,South Glos Users in South Glos Homes,Permanent Nursing,Beech House,735.68, 09-Mar-2021
441,Revenue,CAHD,South Glos Users in South Glos Homes,Permanent Nursing,Beech House,735.68, 09-Mar-2021
442,Revenue,CAHD,South Glos Users in South Glos Homes,Permanent Nursing,Beech House,735.68, 09-Mar-2021
443,Revenue,CAHD,South Glos Users in South Glos Homes,Permanent Nursing,Beech House,735.68, 09-Mar-2021
444,Revenue,CAHD,Covid 19- Spend on behalf of NHS,Respite Planned - Residential,Beech House,4827.14, 09-Mar-2021
445,Revenue,CAHD,North - Community based support,Permanent Residential,Beech House,4360.00, 09-Mar-2021
446,Revenue,CAHD,Covid  - Workforce capacity,Grants to Voluntary Bodies,Beech House,5669.72, 18-Mar-2021
447,Revenue,CAHD,South Glos Users in South Glos Homes,Permanent Nursing,Beechwood Care Home,1044.00, 09-Mar-2021
448,Revenue,CAHD,CSC - Residential Placements,Permanent Residential,Beechwood Court Ltd,21854.54, 31-Mar-2021
449,Revenue,CAHD,Independent Special Placements - Pre 16,Other Private Contractors,Belgrave School,1964.00, 04-Mar-2021
450,Revenue,CAHD,South - S117,Permanent Residential,Bidna House,3692.64, 09-Mar-2021
451,Revenue,CAHD,CSC - Vinney Green Secure Unit,Mechanical & Electrical Maintenance,Binns Fencing Limited,1341.90, 30-Mar-2021
452,Revenue,CAHD,Placements OLA Special Schools and RB,Other L.A.s - General,Blaise High School,834.87, 23-Mar-2021
453,Revenue,CAHD,Statemented Support Payments to OLAs,Other L.A.s - General,Blaise High School,907.83, 23-Mar-2021
454,Revenue,CAHD,Central - Commissioned Services,Other Small Contracts,Blakehill Healthcare Ltd,4262.50, 17-Mar-2021
455,Revenue,CAHD,South - Commissioned Services,Other Small Contracts,Blakehill Healthcare Ltd,4251.18, 17-Mar-2021
456,Revenue,CAHD,North - Community based support,Other Small Contracts,Blakehill Healthcare Ltd,687.50, 17-Mar-2021
457,Revenue,CAHD,Covid 19 -Adult Social Care,Other Small Contracts,Blakehill Healthcare Ltd,37.50, 17-Mar-2021
458,Revenue,CAHD,Central - Commissioned Services,Other Small Contracts,Blakehill Healthcare Ltd,5018.75, 17-Mar-2021
459,Revenue,CAHD,South - Commissioned Services,Other Small Contracts,Blakehill Healthcare Ltd,4369.93, 17-Mar-2021
460,Revenue,CAHD,North - Community based support,Other Small Contracts,Blakehill Healthcare Ltd,2406.25, 17-Mar-2021
461,Revenue,CAHD,Central - Commissioned Services,Other Small Contracts,Blakehill Healthcare Ltd,5162.50, 17-Mar-2021
462,Revenue,CAHD,South - Commissioned Services,Other Small Contracts,Blakehill Healthcare Ltd,4251.18, 17-Mar-2021
463,Revenue,CAHD,North - Community based support,Other Small Contracts,Blakehill Healthcare Ltd,2781.25, 17-Mar-2021
464,Revenue,CAHD,Central - Commissioned Services,Other Small Contracts,Blakehill Healthcare Ltd,4606.25, 31-Mar-2021
465,Revenue,CAHD,South - Commissioned Services,Other Small Contracts,Blakehill Healthcare Ltd,4276.18, 31-Mar-2021
466,Revenue,CAHD,North - Community based support,Other Small Contracts,Blakehill Healthcare Ltd,5642.68, 31-Mar-2021
467,Revenue,CAHD,Central - Commissioned Services,Other Small Contracts,Blakehill Healthcare Ltd,4525.00, 31-Mar-2021
468,Revenue,CAHD,South - Commissioned Services,Other Small Contracts,Blakehill Healthcare Ltd,4269.93, 31-Mar-2021
469,Revenue,CAHD,North - Community based support,Other Small Contracts,Blakehill Healthcare Ltd,6088.06, 31-Mar-2021
470,Revenue,CAHD,Central - Commissioned Services,Other Small Contracts,Blakehill Healthcare Ltd,3931.25, 31-Mar-2021
471,Revenue,CAHD,South - Commissioned Services,Other Small Contracts,Blakehill Healthcare Ltd,4269.93, 31-Mar-2021
472,Revenue,CAHD,North - Community based support,Other Small Contracts,Blakehill Healthcare Ltd,6052.12, 31-Mar-2021
473,Revenue,CAHD,Covid 19- Spend on behalf of NHS,Project Funding,Blakehill Healthcare Ltd,880.00, 30-Mar-2021
474,Revenue,CAHD,Covid  - Workforce capacity,Grants to Voluntary Bodies,Blakehill Healthcare Ltd,1916.52, 11-Mar-2021
475,Revenue,CAHD,North - Community based support,Permanent Nursing,Blossom Fields Nursing Home,4039.20, 09-Mar-2021
476,Revenue,CAHD,South Glos Users in South Glos Homes,Permanent Nursing,Blossom Fields Nursing Home,735.68, 09-Mar-2021
477,Revenue,CAHD,North - Community based support,Permanent Residential,Blossom Fields Nursing Home,4327.71, 09-Mar-2021
478,Revenue,CAHD,North - Community based support,Permanent Residential,Blossom Fields Nursing Home,4039.20, 09-Mar-2021
479,Revenue,CAHD,South Glos Users in South Glos Homes,Permanent Nursing,Blossom Fields Nursing Home,788.23, 09-Mar-2021
480,Revenue,CAHD,South Glos Users in South Glos Homes,Permanent Nursing,Blossom Fields Nursing Home,735.68, 09-Mar-2021
481,Revenue,CAHD,South Glos Users in South Glos Homes,Permanent Nursing,Blossom Fields Nursing Home,735.68, 09-Mar-2021
482,Revenue,CAHD,South Glos Users in South Glos Homes,Permanent Nursing,Blossom Fields Nursing Home,525.49, 09-Mar-2021
483,Revenue,CAHD,North - Community based support,Permanent Nursing,Blossom Fields Nursing Home,4770.40, 09-Mar-2021
484,Revenue,CAHD,South Glos Users in South Glos Homes,Permanent Nursing,Blossom Fields Nursing Home,735.68, 09-Mar-2021
485,Revenue,CAHD,South Glos Users in South Glos Homes,Permanent Nursing,Blossom Fields Nursing Home,735.68, 09-Mar-2021
486,Revenue,CAHD,South - Commissioned Services,Permanent Nursing,Blossom Fields Nursing Home,4501.36, 09-Mar-2021
487,Revenue,CAHD,South Glos Users in South Glos Homes,Permanent Nursing,Blossom Fields Nursing Home,735.68, 09-Mar-2021
488,Revenue,CAHD,South Glos Users in South Glos Homes,Permanent Nursing,Blossom Fields Nursing Home,735.68, 09-Mar-2021
489,Revenue,CAHD,North - Community based support,Permanent Nursing,Blossom Fields Nursing Home,4799.88, 09-Mar-2021
490,Revenue,CAHD,South Glos Users in South Glos Homes,Permanent Nursing,Blossom Fields Nursing Home,735.68, 09-Mar-2021
491,Revenue,CAHD,South Glos Users in South Glos Homes,Permanent Nursing,Blossom Fields Nursing Home,735.68, 09-Mar-2021
492,Revenue,CAHD,South Glos Users in South Glos Homes,Permanent Nursing,Blossom Fields Nursing Home,735.68, 09-Mar-2021
493,Revenue,CAHD,North - Community based support,Permanent Nursing,Blossom Fields Nursing Home,4800.00, 09-Mar-2021
494,Revenue,CAHD,South Glos Users in South Glos Homes,Permanent Nursing,Blossom Fields Nursing Home,735.68, 09-Mar-2021
495,Revenue,CAHD,South Glos Users in South Glos Homes,Permanent Nursing,Blossom Fields Nursing Home,735.68, 09-Mar-2021
496,Revenue,CAHD,South Glos Users in South Glos Homes,Permanent Nursing,Blossom Fields Nursing Home,735.68, 09-Mar-2021
497,Revenue,CAHD,North - Community based support,Permanent Residential,Blossom Fields Nursing Home,3462.17, 09-Mar-2021
498,Revenue,CAHD,North - Community based support,Permanent Residential,Blossom Fields Nursing Home,3462.17, 09-Mar-2021
499,Revenue,CAHD,South Glos Users in South Glos Homes,Permanent Nursing,Blossom Fields Nursing Home,735.68, 09-Mar-2021
500,Revenue,CAHD,South Glos Users in South Glos Homes,Permanent Nursing,Blossom Fields Nursing Home,630.58, 09-Mar-2021
501,Revenue,CAHD,North - Community based support,Permanent Residential,Blossom Fields Nursing Home,577.03, 09-Mar-2021
502,Revenue,CAHD,South Glos Users in South Glos Homes,Permanent Nursing,Blossom Fields Nursing Home,735.68, 09-Mar-2021
503,Revenue,CAHD,South Glos Users in South Glos Homes,Permanent Nursing,Blossom Fields Nursing Home,735.68, 09-Mar-2021
504,Revenue,CAHD,Central - Commissioned Services,Permanent Nursing,Blossom Fields Nursing Home,4039.20, 09-Mar-2021
505,Revenue,CAHD,South Glos Users in South Glos Homes,Permanent Nursing,Blossom Fields Nursing Home,735.68, 09-Mar-2021
506,Revenue,CAHD,South Glos Users in South Glos Homes,Permanent Nursing,Blossom Fields Nursing Home,735.68, 09-Mar-2021
507,Revenue,CAHD,South Glos Users in South Glos Homes,Permanent Nursing,Blossom Fields Nursing Home,735.68, 09-Mar-2021
508,Revenue,CAHD,South Glos Users in South Glos Homes,Permanent Nursing,Blossom Fields Nursing Home,735.68, 09-Mar-2021
509,Revenue,CAHD,North - Community based support,Permanent Nursing,Blossom Fields Nursing Home,4039.20, 09-Mar-2021
510,Revenue,CAHD,South Glos Users in South Glos Homes,Permanent Nursing,Blossom Fields Nursing Home,735.68, 09-Mar-2021
511,Revenue,CAHD,South Glos Users in South Glos Homes,Permanent Nursing,Blossom Fields Nursing Home,3231.74, 09-Mar-2021
512,Revenue,CAHD,South Glos Users in South Glos Homes,Permanent Nursing,Blossom Fields Nursing Home,735.68, 09-Mar-2021
513,Revenue,CAHD,North - Community based support,Permanent Nursing,Blossom Fields Nursing Home,4039.20, 09-Mar-2021
514,Revenue,CAHD,South Glos Users in South Glos Homes,Permanent Nursing,Blossom Fields Nursing Home,735.68, 09-Mar-2021
515,Revenue,CAHD,Central - Commissioned Services,Respite Planned - Nursing,Blossom Fields Nursing Home,10386.51, 09-Mar-2021
516,Revenue,CAHD,South Glos Users in South Glos Homes,Permanent Nursing,Blossom Fields Nursing Home,735.68, 09-Mar-2021
517,Revenue,CAHD,South Glos Users in South Glos Homes,Permanent Nursing,Blossom Fields Nursing Home,735.68, 09-Mar-2021
518,Revenue,CAHD,North - Community based support,Permanent Nursing,Blossom Fields Nursing Home,3707.64, 09-Mar-2021
519,Revenue,CAHD,South Glos Users in South Glos Homes,Permanent Nursing,Blossom Fields Nursing Home,735.68, 09-Mar-2021
520,Revenue,CAHD,Covid  - Workforce capacity,Grants to Voluntary Bodies,Blossom Fields Nursing Home,2874.79, 18-Mar-2021
521,Revenue,CAHD,South - bed purchasing and direct  payments,Permanent Nursing,Blossom Fields Nursing Home,4039.20, 09-Mar-2021
522,Revenue,CAHD,South Glos Users in South Glos Homes,Permanent Nursing,Blossom Fields Nursing Home,735.68, 09-Mar-2021
523,Revenue,CAHD,North - Community based support,Fees & Charges Income - General,Blossom Fields Nursing Home,681.79, 09-Mar-2021
524,Revenue,CAHD,South Glos Users in South Glos Homes,Permanent Nursing,Blossom Fields Nursing Home,735.68, 09-Mar-2021
525,Revenue,CAHD,Central - Commissioned Services,Permanent Nursing,Blossom Fields Nursing Home,4039.20, 09-Mar-2021
526,Revenue,CAHD,South Glos Users in South Glos Homes,Permanent Nursing,Blossom Fields Nursing Home,735.68, 09-Mar-2021
527,Revenue,CAHD,South Glos Users in South Glos Homes,Permanent Nursing,Blossom Fields Nursing Home,735.68, 09-Mar-2021
528,Revenue,CAHD,South Glos Users in South Glos Homes,Permanent Nursing,Blossom Fields Nursing Home,5307.41, 09-Mar-2021
529,Revenue,CAHD,Central - Commissioned Services,Fees & Charges Income - General,Blossom Fields Nursing Home,577.39, 09-Mar-2021
530,Revenue,CAHD,South - Commissioned Services,Permanent Nursing,Blossom Fields Nursing Home,4683.04, 09-Mar-2021
531,Revenue,CAHD,South Glos Users in South Glos Homes,Permanent Nursing,Blossom Fields Nursing Home,735.68, 09-Mar-2021
532,Revenue,CAHD,Central - Commissioned Services,Permanent Nursing,Blossom Fields Nursing Home,5008.60, 09-Mar-2021
533,Revenue,CAHD,South Glos Users in South Glos Homes,Permanent Nursing,Blossom Fields Nursing Home,735.68, 09-Mar-2021
534,Revenue,CAHD,Central - Commissioned Services,Permanent Nursing,Blossom Fields Nursing Home,4039.20, 09-Mar-2021
535,Revenue,CAHD,South - Commissioned Services,Permanent Nursing,Blossom Fields Nursing Home,3854.40, 09-Mar-2021
536,Revenue,CAHD,South Glos Users in South Glos Homes,Permanent Nursing,Blossom Fields Nursing Home,735.68, 09-Mar-2021
537,Revenue,CAHD,Central - Commissioned Services,Fees & Charges Income - General,Blossom Fields Nursing Home,884.83, 09-Mar-2021
538,Revenue,CAHD,North - Community based support,Permanent Nursing,Blossom Fields Nursing Home,4039.20, 09-Mar-2021
539,Revenue,CAHD,South Glos Users in South Glos Homes,Permanent Nursing,Blossom Fields Nursing Home,735.68, 09-Mar-2021
540,Revenue,CAHD,Central - Commissioned Services,Permanent Nursing,Blossom Fields Nursing Home,4039.20, 09-Mar-2021
541,Revenue,CAHD,South Glos Users in South Glos Homes,Permanent Nursing,Blossom Fields Nursing Home,735.68, 09-Mar-2021
542,Revenue,CAHD,Central - Commissioned Services,Permanent Nursing,Blossom Fields Nursing Home,4683.04, 09-Mar-2021
543,Revenue,CAHD,South Glos Users in South Glos Homes,Permanent Nursing,Blossom Fields Nursing Home,735.68, 09-Mar-2021
544,Revenue,CAHD,South Glos Users in South Glos Homes,Permanent Nursing,Blossom Fields Nursing Home,735.68, 09-Mar-2021
545,Revenue,CAHD,Central - Commissioned Services,Permanent Nursing,Blossom Fields Nursing Home,4675.44, 09-Mar-2021
546,Revenue,CAHD,South Glos Users in South Glos Homes,Permanent Nursing,Blossom Fields Nursing Home,735.68, 09-Mar-2021
547,Revenue,CAHD,North - Community based support,Permanent Nursing,Blossom Fields Nursing Home,5200.00, 09-Mar-2021
548,Revenue,CAHD,South Glos Users in South Glos Homes,Permanent Nursing,Blossom Fields Nursing Home,735.68, 09-Mar-2021
549,Revenue,CAHD,South Glos Users in South Glos Homes,Permanent Nursing,Blossom Fields Nursing Home,735.68, 09-Mar-2021
550,Revenue,CAHD,North - S117,Permanent Residential,Blossom Fields Nursing Home,4800.00, 09-Mar-2021
551,Revenue,CAHD,South Glos Users in South Glos Homes,Permanent Nursing,Blossom Fields Nursing Home,735.68, 09-Mar-2021
552,Revenue,CAHD,South Glos Users in South Glos Homes,Permanent Nursing,Blossom Fields Nursing Home,735.68, 09-Mar-2021
553,Revenue,CAHD,South Glos Users in South Glos Homes,Permanent Nursing,Blossom Fields Nursing Home,735.68, 09-Mar-2021
554,Revenue,CAHD,North - S117,Permanent Residential,Blossom Fields Nursing Home,5000.00, 09-Mar-2021
555,Revenue,CAHD,South Glos Users in South Glos Homes,Permanent Nursing,Blossom Fields Nursing Home,735.68, 09-Mar-2021
556,Revenue,CAHD,South Glos Users in South Glos Homes,Permanent Nursing,Blossom Fields Nursing Home,735.68, 09-Mar-2021
557,Revenue,CAHD,Central - Commissioned Services,Permanent Nursing,Blossom Fields Nursing Home,4710.40, 09-Mar-2021
558,Revenue,CAHD,South Glos Users in South Glos Homes,Permanent Nursing,Blossom Fields Nursing Home,735.68, 09-Mar-2021
559,Revenue,CAHD,South Glos Users in South Glos Homes,Permanent Nursing,Blossom Fields Nursing Home,735.68, 09-Mar-2021
560,Revenue,CAHD,Central - Commissioned Services,Permanent Nursing,Blossom Fields Nursing Home,4039.20, 09-Mar-2021
561,Revenue,CAHD,South Glos Users in South Glos Homes,Permanent Nursing,Blossom Fields Nursing Home,735.68, 09-Mar-2021
562,Revenue,CAHD,South Glos Users in South Glos Homes,Permanent Nursing,Blossom Fields Nursing Home,735.68, 09-Mar-2021
563,Revenue,CAHD,South Glos Users in South Glos Homes,Permanent Nursing,Blossom Fields Nursing Home,735.68, 09-Mar-2021
564,Revenue,CAHD,South Glos Users in South Glos Homes,Permanent Nursing,Blossom Fields Nursing Home,735.68, 09-Mar-2021
565,Revenue,CAHD,South Glos Users in South Glos Homes,Permanent Nursing,Blossom Fields Nursing Home,735.68, 09-Mar-2021
566,Revenue,CAHD,Covid 19- Spend on behalf of NHS,Respite Planned - Nursing,Blossom Fields Nursing Home,4039.20, 09-Mar-2021
567,Revenue,CAHD,South Glos Users in South Glos Homes,Permanent Nursing,Blossom Fields Nursing Home,735.68, 09-Mar-2021
568,Revenue,CAHD,South Glos Users in South Glos Homes,Permanent Nursing,Blossom Fields Nursing Home,735.68, 09-Mar-2021
569,Revenue,CAHD,Central - Commissioned Services,Permanent Nursing,Blossom Fields Nursing Home,4039.20, 09-Mar-2021
570,Revenue,CAHD,South Glos Users in South Glos Homes,Permanent Nursing,Blossom Fields Nursing Home,735.68, 09-Mar-2021
571,Revenue,CAHD,Central - Commissioned Services,Permanent Nursing,Blossom Fields Nursing Home,5000.00, 09-Mar-2021
572,Revenue,CAHD,South Glos Users in South Glos Homes,Permanent Nursing,Blossom Fields Nursing Home,735.68, 09-Mar-2021
573,Revenue,CAHD,South - Commissioned Services,Fees & Charges Income - General,Blossom Fields Nursing Home,917.39, 09-Mar-2021
574,Revenue,CAHD,Central - Commissioned Services,Permanent Nursing,Blossom Fields Nursing Home,4039.20, 09-Mar-2021
575,Revenue,CAHD,South Glos Users in South Glos Homes,Permanent Nursing,Blossom Fields Nursing Home,735.68, 09-Mar-2021
576,Revenue,CAHD,South Glos Users in South Glos Homes,Permanent Nursing,Blossom Fields Nursing Home,735.68, 09-Mar-2021
577,Revenue,CAHD,South - Commissioned Services,Respite Planned - Nursing,Blossom Fields Nursing Home,1442.57, 09-Mar-2021
578,Revenue,CAHD,Covid  - Workforce capacity,Grants to Voluntary Bodies,Blossom Fields Nursing Home,5989.14, 18-Mar-2021
579,Revenue,CAHD,Statemented Support Payments to OLAs,Other L.A.s - General,Blue Coat CE VA Primary School,837.09, 23-Mar-2021
580,Revenue,CAHD,Statemented Support Payments to OLAs,Other L.A.s - General,Blue Coat CE VA Primary School,1292.50, 23-Mar-2021
581,Revenue,CAHD,North - Community based support,Permanent Residential,Bluebells,3699.60, 09-Mar-2021
582,Revenue,CAHD,EARLY YEARS DEPRIVATION PAYMENT,Preventative Assistance,Bluebells Pre School,605.23, 22-Mar-2021
583,Revenue,CAHD,Central - Commissioned Services,Other Small Contracts,Bluebird Care (South Gloucestershire),16267.97, 03-Mar-2021
584,Revenue,CAHD,South - Commissioned Services,Other Small Contracts,Bluebird Care (South Gloucestershire),3514.29, 03-Mar-2021
585,Revenue,CAHD,North - Community based support,Other Small Contracts,Bluebird Care (South Gloucestershire),5166.29, 03-Mar-2021
586,Revenue,CAHD,Resilience Team,Other Small Contracts,Bluebird Care (South Gloucestershire),113.25, 03-Mar-2021
587,Revenue,CAHD,Central - Commissioned Services,Other Small Contracts,Bluebird Care (South Gloucestershire),15997.82, 12-Mar-2021
588,Revenue,CAHD,South - Commissioned Services,Other Small Contracts,Bluebird Care (South Gloucestershire),3876.69, 12-Mar-2021
589,Revenue,CAHD,North - Community based support,Other Small Contracts,Bluebird Care (South Gloucestershire),4801.99, 12-Mar-2021
590,Revenue,CAHD,Resilience Team,Other Small Contracts,Bluebird Care (South Gloucestershire),105.70, 12-Mar-2021
591,Revenue,CAHD,Central - Commissioned Services,Other Small Contracts,Bluebird Care (South Gloucestershire),16067.87, 17-Mar-2021
592,Revenue,CAHD,South - Commissioned Services,Other Small Contracts,Bluebird Care (South Gloucestershire),4065.44, 17-Mar-2021
593,Revenue,CAHD,North - Community based support,Other Small Contracts,Bluebird Care (South Gloucestershire),4769.39, 17-Mar-2021
594,Revenue,CAHD,Resilience Team,Other Small Contracts,Bluebird Care (South Gloucestershire),120.80, 17-Mar-2021
595,Revenue,CAHD,Central - Commissioned Services,Other Small Contracts,Bluebird Care (South Gloucestershire),15905.15, 24-Mar-2021
596,Revenue,CAHD,South - Commissioned Services,Other Small Contracts,Bluebird Care (South Gloucestershire),3831.39, 24-Mar-2021
597,Revenue,CAHD,North - Community based support,Other Small Contracts,Bluebird Care (South Gloucestershire),4844.05, 24-Mar-2021
598,Revenue,CAHD,Resilience Team,Other Small Contracts,Bluebird Care (South Gloucestershire),128.35, 24-Mar-2021
599,Revenue,CAHD,Central - Commissioned Services,Other Small Contracts,Bluebird Care (South Gloucestershire),15814.25, 31-Mar-2021
600,Revenue,CAHD,South - Commissioned Services,Other Small Contracts,Bluebird Care (South Gloucestershire),3906.89, 31-Mar-2021
601,Revenue,CAHD,North - Community based support,Other Small Contracts,Bluebird Care (South Gloucestershire),4693.89, 31-Mar-2021
602,Revenue,CAHD,Resilience Team,Other Small Contracts,Bluebird Care (South Gloucestershire),120.80, 31-Mar-2021
603,Revenue,CAHD,Covid 19- Spend on behalf of NHS,Project Funding,Bluebird Care (South Gloucestershire),2360.00, 30-Mar-2021
604,Revenue,CAHD,Covid  - Workforce capacity,Grants to Voluntary Bodies,Bluebird Care (South Gloucestershire),5749.57, 08-Mar-2021
605,Revenue,CAHD,Sexual Health,Other Small Contracts,Boots UK Ltd,2031.85, 29-Mar-2021
606,Revenue,CAHD,Drug and Alcohol Programme,Other Small Contracts,Boots UK Ltd,3475.00, 29-Mar-2021
607,Revenue,CAHD,S28A cases,Permanent Residential,Bradbury House,6505.16, 09-Mar-2021
608,Revenue,CAHD,North - Community based support,Permanent Residential,Bradbury House,10016.24, 09-Mar-2021
609,Revenue,CAHD,Jointly Funded H&SC Packages,Permanent Residential,Bradbury House,8244.08, 09-Mar-2021
610,Revenue,CAHD,North - S117,Permanent Residential,Bradbury House,5969.84, 09-Mar-2021
611,Revenue,CAHD,South - Commissioned Services,Permanent Residential,Bradbury House,10168.08, 09-Mar-2021
612,Revenue,CAHD,Sexual Health,Other Small Contracts,Bradley Stoke Surgery,1824.67, 29-Mar-2021
613,Revenue,CAHD,Sexual Health,Other Small Contracts,Bradley Stoke Surgery,2133.55, 29-Mar-2021
614,Revenue,CAHD,NHS Health Checks,Other Small Contracts,Bradley Stoke Surgery,3007.21, 29-Mar-2021
615,Revenue,CAHD,Drug and Alcohol Programme,Other Small Contracts,Bradley Stoke Surgery,1082.67, 29-Mar-2021
616,Revenue,CAHD,Sexual Health,Other Small Contracts,Bradley Stoke Surgery,1824.67, 31-Mar-2021
617,Revenue,CAHD,Sexual Health,Other Small Contracts,Bradley Stoke Surgery,2133.55, 31-Mar-2021
618,Revenue,CAHD,NHS Health Checks,Other Small Contracts,Bradley Stoke Surgery,3007.21, 31-Mar-2021
619,Revenue,CAHD,Drug and Alcohol Programme,Other Small Contracts,Bradley Stoke Surgery,1082.67, 31-Mar-2021
620,Revenue,CAHD,Social Lettings Agency,Rent,Individual,699.32, 25-Mar-2021
621,Revenue,CAHD,Social Lettings Agency,Fees - General,Individual,20.57, 25-Mar-2021
622,Revenue,CAHD,Social Lettings Agency,Rent,Individual,766.10, 03-Mar-2021
623,Revenue,CAHD,Social Lettings Agency,Fees - General,Individual,8.15, 03-Mar-2021
624,Revenue,CAHD,North - Community based support,Permanent Residential,Bridge House Care Home,2848.00, 09-Mar-2021
625,Revenue,CAHD,North - Community based support,Permanent Residential,Bridge House Care Home,2678.04, 09-Mar-2021
626,Revenue,CAHD,Covid  - Workforce capacity,Grants to Voluntary Bodies,Bridge House Care Home,1038.12, 25-Mar-2021
627,Revenue,CAHD,North - Community based support,Permanent Residential,Bridgwater Court Care Home,10773.64, 09-Mar-2021
628,Revenue,CAHD,EARLY YEARS DEPRIVATION PAYMENT,Preventative Assistance,Bright Sparks,1151.29, 22-Mar-2021
629,Revenue,CAHD,Early Years Pupil Premium Grant,Preventative Assistance,Bright Sparks,907.36, 22-Mar-2021
630,Revenue,CAHD,EARLY YEARS DISABILITY  ACCES FUND,Preventative Assistance,Bright Sparks Pre School Ltd,615.00, 15-Mar-2021
631,Revenue,CAHD,EARLY YEARS DEPRIVATION PAYMENT,Preventative Assistance,Bright Sparks Pre School Ltd,839.26, 22-Mar-2021
632,Revenue,CAHD,Early Years Pupil Premium Grant,Preventative Assistance,Bright Sparks Pre School Ltd,661.44, 22-Mar-2021
633,Revenue,CAHD,Early Years High Needs Support,Other Private Contractors,Bright Sparks Pre-School,3111.86, 23-Mar-2021
634,Revenue,CAHD,EARLY YEARS DISABILITY  ACCES FUND,Preventative Assistance,Bright Sparks Pre-School,1667.00, 12-Mar-2021
635,Revenue,CAHD,Early Years Inclusion Fund,Other Public Bodies,Bright Sparks Pre-School,635.00, 12-Mar-2021
636,Revenue,CAHD,Early Years High Needs Support,Other Private Contractors,Bright Sparks Pre-School,910.07, 23-Mar-2021
637,Revenue,CAHD,Statemented Support Academies,Other Public Bodies,Bristol & South Gloucestershire UTC,1556.28, 24-Mar-2021
638,Revenue,CAHD,Statemented Support Academies,Other Public Bodies,Bristol & South Gloucestershire UTC,907.83, 24-Mar-2021
639,Revenue,CAHD,Statemented Support Payments to OLAs,Other L.A.s - General,Bristol Cathedral Choir School,942.58, 23-Mar-2021
640,Revenue,CAHD,Statemented Support Payments to OLAs,Other L.A.s - General,Bristol Cathedral Choir School,880.08, 23-Mar-2021
641,Revenue,CAHD,Statemented Support Payments to OLAs,Other L.A.s - General,Bristol Cathedral Choir School,1307.25, 23-Mar-2021
642,Revenue,CAHD,Sensory Support Services,Other L.A.s - General,Bristol City Council,153170.00, 23-Mar-2021
643,Revenue,CAHD,Sensory Support Services,Other L.A.s - General,Bristol City Council,122536.00, 23-Mar-2021
644,Revenue,CAHD,Placements OLA Special Schools and RB,Other L.A.s - General,Bristol City Council - Schools,1981.43, 23-Mar-2021
645,Revenue,CAHD,Placements OLA Special Schools and RB,Other L.A.s - General,Bristol City Council - Schools,646.00, 23-Mar-2021
646,Revenue,CAHD,Placements OLA Special Schools and RB,Other L.A.s - General,Bristol City Council - Schools,1268.03, 23-Mar-2021
647,Revenue,CAHD,Statemented Support Payments to OLAs,Other L.A.s - General,Bristol City Council - Schools,1625.17, 23-Mar-2021
648,Revenue,CAHD,Statemented Support Payments to OLAs,Other L.A.s - General,Bristol City Council - Schools,897.42, 23-Mar-2021
649,Revenue,CAHD,Placements OLA Special Schools and RB,Other L.A.s - General,Bristol City Council - Schools,792.40, 23-Mar-2021
650,Revenue,CAHD,Placements OLA Special Schools and RB,Other L.A.s - General,Bristol City Council - Schools,1268.03, 23-Mar-2021
651,Revenue,CAHD,Statemented Support Payments to OLAs,Other L.A.s - General,Bristol City Council - Schools,554.13, 23-Mar-2021
652,Revenue,CAHD,Placements OLA Special Schools and RB,Other L.A.s - General,Bristol City Council - Schools,2774.72, 23-Mar-2021
653,Revenue,CAHD,Placements OLA Special Schools and RB,Other L.A.s - General,Bristol City Council - Schools,646.00, 23-Mar-2021
654,Revenue,CAHD,Placements OLA Special Schools and RB,Other L.A.s - General,Bristol City Council - Schools,2774.72, 23-Mar-2021
655,Revenue,CAHD,Statemented Support Payments to OLAs,Other L.A.s - General,Bristol City Council - Schools,787.54, 23-Mar-2021
656,Revenue,CAHD,Statemented Support Payments to OLAs,Other L.A.s - General,Bristol City Council - Schools,635.33, 23-Mar-2021
657,Revenue,CAHD,Placements OLA Special Schools and RB,Other L.A.s - General,Bristol City Council - Schools,1981.43, 23-Mar-2021
658,Revenue,CAHD,Placements OLA Special Schools and RB,Other L.A.s - General,Bristol City Council - Schools,646.00, 23-Mar-2021
659,Revenue,CAHD,Placements OLA Special Schools and RB,Other L.A.s - General,Bristol City Council - Schools,1268.03, 23-Mar-2021
660,Revenue,CAHD,Placements OLA Special Schools and RB,Other L.A.s - General,Bristol City Council - Schools,1268.03, 23-Mar-2021
661,Revenue,CAHD,Placements OLA Special Schools and RB,Other L.A.s - General,Bristol City Council - Schools,1268.03, 23-Mar-2021
662,Revenue,CAHD,Placements OLA Special Schools and RB,Other L.A.s - General,Bristol City Council - Schools,792.40, 23-Mar-2021
663,Revenue,CAHD,Placements OLA Special Schools and RB,Other L.A.s - General,Bristol City Council - Schools,1981.43, 23-Mar-2021
664,Revenue,CAHD,Placements OLA Special Schools and RB,Other L.A.s - General,Bristol City Council - Schools,1981.43, 23-Mar-2021
665,Revenue,CAHD,Placements OLA Special Schools and RB,Other L.A.s - General,Bristol City Council - Schools,646.00, 23-Mar-2021
666,Revenue,CAHD,Placements OLA Special Schools and RB,Other L.A.s - General,Bristol City Council - Schools,792.58, 23-Mar-2021
667,Revenue,CAHD,Placements OLA Special Schools and RB,Other L.A.s - General,Bristol City Council - Schools,2774.72, 23-Mar-2021
668,Revenue,CAHD,Placements OLA Special Schools and RB,Other L.A.s - General,Bristol City Council - Schools,1981.43, 23-Mar-2021
669,Revenue,CAHD,Placements OLA Special Schools and RB,Other L.A.s - General,Bristol City Council - Schools,646.00, 23-Mar-2021
670,Revenue,CAHD,Placements OLA Special Schools and RB,Other L.A.s - General,Bristol City Council - Schools,792.40, 23-Mar-2021
671,Revenue,CAHD,Placements OLA Special Schools and RB,Other L.A.s - General,Bristol City Council - Schools,2774.72, 23-Mar-2021
672,Revenue,CAHD,Placements OLA Special Schools and RB,Other L.A.s - General,Bristol City Council - Schools,646.00, 23-Mar-2021
673,Revenue,CAHD,Placements OLA Special Schools and RB,Other L.A.s - General,Bristol City Council - Schools,1585.16, 23-Mar-2021
674,Revenue,CAHD,Placements OLA Special Schools and RB,Other L.A.s - General,Bristol City Council - Schools,516.77, 23-Mar-2021
675,Revenue,CAHD,Placements OLA Special Schools and RB,Other L.A.s - General,Bristol City Council - Schools,1981.43, 23-Mar-2021
676,Revenue,CAHD,Placements OLA Special Schools and RB,Other L.A.s - General,Bristol City Council - Schools,646.00, 23-Mar-2021
677,Revenue,CAHD,Placements OLA Special Schools and RB,Other L.A.s - General,Bristol City Council - Schools,1268.03, 23-Mar-2021
678,Revenue,CAHD,Placements OLA Special Schools and RB,Other L.A.s - General,Bristol City Council - Schools,1268.03, 23-Mar-2021
679,Revenue,CAHD,Schools Specific Grant Income,Other Public Bodies,Bristol City Council Schools General,630.00, 12-Mar-2021
680,Revenue,CAHD,South Hub Offices,"Holidays, Outings & Visits",Bristol Clifton & West of England Zoological,960.00, 12-Mar-2021
681,Revenue,CAHD,Placements OLA Special Schools and RB,Other L.A.s - General,Bristol Gateway School,1981.43, 23-Mar-2021
682,Revenue,CAHD,Placements OLA Special Schools and RB,Other L.A.s - General,Bristol Gateway School,1981.43, 23-Mar-2021
683,Revenue,CAHD,Placements OLA Special Schools and RB,Other L.A.s - General,Bristol Gateway School,1906.68, 23-Mar-2021
684,Revenue,CAHD,Placements OLA Special Schools and RB,Other L.A.s - General,Bristol Gateway School,792.40, 23-Mar-2021
685,Revenue,CAHD,Placements OLA Special Schools and RB,Other L.A.s - General,Bristol Gateway School,2774.72, 23-Mar-2021
686,Revenue,CAHD,SEN High Needs - Not at School Base,Other Private Contractors,Bristol Tuition Limited,713.50, 12-Mar-2021
687,Revenue,CAHD,Intermediate Care Accommodation,Water Charges,Bristol Wessex Billing Services Limited,517.59, 19-Mar-2021
688,Revenue,CAHD,Drug and Alcohol Programme,Water Charges,Bristol Wessex Billing Services Limited,765.21, 19-Mar-2021
689,Revenue,CAHD,User Involvement,Membership Fees,British Youth Council,565.00, 17-Mar-2021
690,Revenue,CAHD,Statemented Support Payments to OLAs,Other L.A.s - General,Broadlands Academy,1332.27, 23-Mar-2021
691,Revenue,CAHD,Statemented Support Payments to OLAs,Other L.A.s - General,Broadlands Academy,835.17, 23-Mar-2021
692,Revenue,CAHD,North - Community based support,Permanent Residential,Brockhills Farm,3300.00, 09-Mar-2021
693,Revenue,CAHD,North - Community based support,Permanent Residential,Brockhills Farm,11771.43, 09-Mar-2021
694,Revenue,CAHD,North - Community based support,Permanent Residential,Brockhills Farm,3200.00, 09-Mar-2021
695,Revenue,CAHD,Transport OLA Special Schools and RB,Guide Escort recharge,Brockwell Care,641.48, 30-Mar-2021
696,Revenue,CAHD,Supporting People Programme,Grants to Voluntary Bodies,Bromford  :  Merlin Housing Society,15637.00, 01-Mar-2021
697,Revenue,CAHD,Supporting People Programme,Grants to Voluntary Bodies,Bromford  :  Merlin Housing Society,2741.00, 01-Mar-2021
698,Revenue,CAHD,Supporting People Programme,Grants to Voluntary Bodies,Bromford  :  Merlin Housing Society,22940.00, 01-Mar-2021
699,Revenue,CAHD,Supporting People Programme,Grants to Voluntary Bodies,Bromford  :  Merlin Housing Society,1113.00, 01-Mar-2021
700,Revenue,CAHD,Homelessness Contingency,Other Supplies & Services,Bromford  :  Merlin Housing Society,700.00, 05-Mar-2021
701,Revenue,CAHD,Discretionary Housing Payment,Other Supplies & Services,Bromford Carinthia Housing Association Ltd,2589.34, 23-Mar-2021
702,Revenue,CAHD,Discretionary Housing Payment,Other Supplies & Services,Bromford Carinthia Housing Association Ltd,585.00, 24-Mar-2021
703,Revenue,CAHD,South Glos Users in South Glos Homes,Permanent Nursing,Brunelcare,735.68, 19-Mar-2021
704,Revenue,CAHD,South Glos Users in South Glos Homes,Permanent Nursing,Brunelcare,735.68, 19-Mar-2021
705,Revenue,CAHD,South Glos Users in South Glos Homes,Permanent Nursing,Brunelcare,735.68, 19-Mar-2021
706,Revenue,CAHD,South Glos Users in South Glos Homes,Permanent Nursing,Brunelcare,735.68, 19-Mar-2021
707,Revenue,CAHD,South Glos Users in South Glos Homes,Permanent Nursing,Brunelcare,735.68, 19-Mar-2021
708,Revenue,CAHD,South Glos Users in South Glos Homes,Permanent Nursing,Brunelcare,735.68, 19-Mar-2021
709,Revenue,CAHD,South Glos Users in South Glos Homes,Permanent Nursing,Brunelcare,735.68, 19-Mar-2021
710,Revenue,CAHD,South Glos Users in South Glos Homes,Permanent Nursing,Brunelcare,735.68, 19-Mar-2021
711,Revenue,CAHD,South Glos Users in South Glos Homes,Permanent Nursing,Brunelcare,735.68, 19-Mar-2021
712,Revenue,CAHD,South Glos Users in South Glos Homes,Permanent Nursing,Brunelcare,735.68, 19-Mar-2021
713,Revenue,CAHD,South Glos Users in South Glos Homes,Permanent Nursing,Brunelcare,735.68, 19-Mar-2021
714,Revenue,CAHD,North - S117,Permanent Nursing,Brunelcare,3380.28, 19-Mar-2021
715,Revenue,CAHD,North - S117,Permanent Nursing,Brunelcare,3380.28, 19-Mar-2021
716,Revenue,CAHD,South - Commissioned Services,Permanent Nursing,Brunelcare,3380.28, 19-Mar-2021
717,Revenue,CAHD,South - Commissioned Services,Permanent Nursing,Brunelcare,2454.60, 19-Mar-2021
718,Revenue,CAHD,South - Commissioned Services,Permanent Nursing,Brunelcare,2609.64, 19-Mar-2021
719,Revenue,CAHD,South - Commissioned Services,Permanent Nursing,Brunelcare,2719.40, 19-Mar-2021
720,Revenue,CAHD,South - Commissioned Services,Permanent Nursing,Brunelcare,2815.76, 19-Mar-2021
721,Revenue,CAHD,South - Commissioned Services,Permanent Nursing,Brunelcare,1946.44, 19-Mar-2021
722,Revenue,CAHD,Central - Commissioned Services,Permanent Nursing,Brunelcare,2773.32, 19-Mar-2021
723,Revenue,CAHD,North - Community based support,Permanent Nursing,Brunelcare,3380.28, 19-Mar-2021
724,Revenue,CAHD,North - Community based support,Permanent Nursing,Brunelcare,2704.36, 19-Mar-2021
725,Revenue,CAHD,Central - Commissioned Services,Respite Planned - Nursing,Brunelcare,4111.96, 19-Mar-2021
726,Revenue,CAHD,Central - Commissioned Services,Other Small Contracts,Brunelcare,292.80, 15-Mar-2021
727,Revenue,CAHD,South - Commissioned Services,Other Small Contracts,Brunelcare,15040.16, 15-Mar-2021
728,Revenue,CAHD,North - Community based support,Other Small Contracts,Brunelcare,351.36, 15-Mar-2021
729,Revenue,CAHD,Central - Commissioned Services,Other Small Contracts,Brunelcare,278.16, 05-Mar-2021
730,Revenue,CAHD,South - Commissioned Services,Other Small Contracts,Brunelcare,15118.24, 05-Mar-2021
731,Revenue,CAHD,North - Community based support,Other Small Contracts,Brunelcare,356.24, 05-Mar-2021
732,Revenue,CAHD,Central - Commissioned Services,Other Small Contracts,Brunelcare,302.56, 05-Mar-2021
733,Revenue,CAHD,South - Commissioned Services,Other Small Contracts,Brunelcare,15406.16, 05-Mar-2021
734,Revenue,CAHD,North - Community based support,Other Small Contracts,Brunelcare,356.24, 05-Mar-2021
735,Revenue,CAHD,Central - Commissioned Services,Other Small Contracts,Brunelcare,292.80, 19-Mar-2021
736,Revenue,CAHD,South - Commissioned Services,Other Small Contracts,Brunelcare,15494.00, 19-Mar-2021
737,Revenue,CAHD,South - Commissioned Services,Mentoring,Brunelcare,39.04, 19-Mar-2021
738,Revenue,CAHD,North - Community based support,Other Small Contracts,Brunelcare,356.24, 19-Mar-2021
739,Revenue,CAHD,Covid 19- Spend on behalf of NHS,Project Funding,Brunelcare,3000.00, 30-Mar-2021
740,Revenue,CAHD,Covid  - Workforce capacity,Grants to Voluntary Bodies,Brunelcare,5749.57, 11-Mar-2021
741,Revenue,CAHD,North - S117,Permanent Residential,Buckland Care,3600.00, 09-Mar-2021
742,Revenue,CAHD,Learning Difficulties Development Fund,Other Supplies & Services,Building Circles,3631.75, 04-Mar-2021
743,Revenue,CAHD,Early Years High Needs Support,Other Private Contractors,Busy Bees Day Nursery,1526.57, 23-Mar-2021
744,Revenue,CAHD,Early Years High Needs Support,Other Private Contractors,Busy Bees Day Nursery,910.07, 23-Mar-2021
745,Revenue,CAHD,EARLY YEARS DISABILITY  ACCES FUND,Preventative Assistance,Busy Bees Day Nursery Bradley Stoke,615.00, 01-Mar-2021
746,Revenue,CAHD,Training - Adult Services,Training Expenses,BW Training & Coaching Ltd,600.00, 17-Mar-2021
747,Revenue,CAHD,Training - Adult Services,Training Expenses,BW Training & Coaching Ltd,1000.00, 25-Mar-2021
748,Revenue,CAHD,CSC - Vinney Green Secure Unit,R & M by Departments,BWS Standfast Fire & Security Systems,3524.00, 02-Mar-2021
749,Revenue,CAHD,CSC - Vinney Green Secure Unit,R & M by Departments,BWS Standfast Fire & Security Systems,915.00, 30-Mar-2021
750,Revenue,CAHD,CSC - Agency Fostering,Foster Parent Allowances,By the Bridge Ltd,3938.20, 31-Mar-2021
751,Revenue,CAHD,CSC - Agency Fostering,Foster Parent Allowances,By the Bridge Ltd,3832.08, 31-Mar-2021
752,Revenue,CAHD,CSC - Agency Fostering,Foster Parent Allowances,By the Bridge Ltd,4360.15, 03-Mar-2021
753,Revenue,CAHD,CSC - Agency Fostering,Foster Parent Allowances,By the Bridge Ltd,4242.66, 03-Mar-2021
754,Revenue,CAHD,Social Lettings Agency,Rent,Individual,710.96, 26-Mar-2021
755,Revenue,CAHD,Social Lettings Agency,Fees - General,Individual,16.16, 26-Mar-2021
756,Revenue,CAHD,CSC - Vinney Green Secure Unit,R & M by Departments,C W Jones Carpet & Flooring Limited,1175.40, 26-Mar-2021
757,Revenue,CAHD,North - Community based support,Permanent Nursing,C31465Clevedon Court Nursing Home,3448.16, 09-Mar-2021
758,Revenue,CAHD,Virtual School for Looked After Children,Other Public Bodies,Cabot Learning Federation,15000.00, 19-Mar-2021
759,Revenue,CAHD,Statemented Support Payments to OLAs,Other L.A.s - General,Cabot Learning Federation,1544.49, 23-Mar-2021
760,Revenue,CAHD,Statemented Support Academies,Other Public Bodies,Cabot Learning Federation,918.71, 24-Mar-2021
761,Revenue,CAHD,Statemented Support Academies,Other Public Bodies,Cabot Learning Federation,1202.39, 24-Mar-2021
762,Revenue,CAHD,Statemented Support Academies,Other Public Bodies,Cabot Learning Federation,908.00, 24-Mar-2021
763,Revenue,CAHD,Statemented Support Academies,Other Public Bodies,Cabot Learning Federation,1666.67, 24-Mar-2021
764,Revenue,CAHD,Statemented Support Academies,Other Public Bodies,Cabot Learning Federation,1103.25, 24-Mar-2021
765,Revenue,CAHD,Statemented Support Academies,Other Public Bodies,Cabot Learning Federation,907.83, 24-Mar-2021
766,Revenue,CAHD,Statemented Support Academies,Other Public Bodies,Cabot Learning Federation,1899.58, 24-Mar-2021
767,Revenue,CAHD,Statemented Support Academies,Other Public Bodies,Cabot Learning Federation,788.22, 24-Mar-2021
768,Revenue,CAHD,Statemented Support Academies,Other Public Bodies,Cabot Learning Federation,957.92, 24-Mar-2021
769,Revenue,CAHD,Statemented Support Academies,Other Public Bodies,Cabot Learning Federation,1654.33, 24-Mar-2021
770,Revenue,CAHD,Statemented Support Academies,Other Public Bodies,Cabot Learning Federation,2206.25, 24-Mar-2021
771,Revenue,CAHD,Statemented Support Payments to OLAs,Other L.A.s - General,Cabot Learning Federation,1013.94, 23-Mar-2021
772,Revenue,CAHD,Statemented Support Academies,Other Public Bodies,Cabot Learning Federation,658.75, 24-Mar-2021
773,Revenue,CAHD,Statemented Support Academies,Other Public Bodies,Cabot Learning Federation,1854.42, 24-Mar-2021
774,Revenue,CAHD,Statemented Support Academies,Other Public Bodies,Cabot Learning Federation,632.67, 24-Mar-2021
775,Revenue,CAHD,Statemented Support Academies,Other Public Bodies,Cabot Learning Federation,695.61, 24-Mar-2021
776,Revenue,CAHD,Statemented Support Academies,Other Public Bodies,Cabot Learning Federation,918.75, 24-Mar-2021
777,Revenue,CAHD,Statemented Support Academies,Other Public Bodies,Cabot Learning Federation,975.58, 24-Mar-2021
778,Revenue,CAHD,Statemented Support Academies,Other Public Bodies,Cabot Learning Federation,1052.92, 24-Mar-2021
779,Revenue,CAHD,Academy Resource Base Funding,Other Public Bodies,Cabot Learning Federation,5945.24, 22-Mar-2021
780,Revenue,CAHD,Academy Resource Base Funding,Other Public Bodies,Cabot Learning Federation,1175.87, 22-Mar-2021
781,Revenue,CAHD,Academy Resource Base Funding,Other Public Bodies,Cabot Learning Federation,1702.96, 22-Mar-2021
782,Revenue,CAHD,Academy Resource Base Funding,Other Public Bodies,Cabot Learning Federation,1540.83, 22-Mar-2021
783,Revenue,CAHD,Academy Resource Base Funding,Other Public Bodies,Cabot Learning Federation,1175.87, 22-Mar-2021
784,Revenue,CAHD,Academy Resource Base Funding,Other Public Bodies,Cabot Learning Federation,1175.87, 22-Mar-2021
785,Revenue,CAHD,Academy Resource Base Funding,Other Public Bodies,Cabot Learning Federation,1540.83, 22-Mar-2021
786,Revenue,CAHD,Academy Resource Base Funding,Other Public Bodies,Cabot Learning Federation,1175.87, 22-Mar-2021
787,Revenue,CAHD,Academy Resource Base Funding,Other Public Bodies,Cabot Learning Federation,1175.87, 22-Mar-2021
788,Revenue,CAHD,Academy Resource Base Funding,Other Public Bodies,Cabot Learning Federation,1702.96, 22-Mar-2021
789,Revenue,CAHD,Academy Resource Base Funding,Other Public Bodies,Cabot Learning Federation,648.70, 22-Mar-2021
790,Revenue,CAHD,Academy Resource Base Funding,Other Public Bodies,Cabot Learning Federation,1013.74, 22-Mar-2021
791,Revenue,CAHD,Academy Resource Base Funding,Other Public Bodies,Cabot Learning Federation,648.70, 22-Mar-2021
792,Revenue,CAHD,Academy Resource Base Funding,Other Public Bodies,Cabot Learning Federation,1540.83, 22-Mar-2021
793,Revenue,CAHD,Academy Resource Base Funding,Other Public Bodies,Cabot Learning Federation,2189.53, 22-Mar-2021
794,Revenue,CAHD,Academy Resource Base Funding,Other Public Bodies,Cabot Learning Federation,1175.87, 22-Mar-2021
795,Revenue,CAHD,Academy Resource Base Funding,Other Public Bodies,Cabot Learning Federation,1175.87, 22-Mar-2021
796,Revenue,CAHD,Academy Resource Base Funding,Other Public Bodies,Cabot Learning Federation,1175.87, 22-Mar-2021
797,Revenue,CAHD,Academy Resource Base Funding,Other Public Bodies,Cabot Learning Federation,1175.87, 22-Mar-2021
798,Revenue,CAHD,Academy Resource Base Funding,Other Public Bodies,Cabot Learning Federation,1702.96, 22-Mar-2021
799,Revenue,CAHD,Academy Resource Base Funding,Other Public Bodies,Cabot Learning Federation,1702.96, 22-Mar-2021
800,Revenue,CAHD,Academy Resource Base Funding,Other Public Bodies,Cabot Learning Federation,11646.07, 22-Mar-2021
801,Revenue,CAHD,Academy Resource Base Funding,Other Public Bodies,Cabot Learning Federation,11646.07, 22-Mar-2021
802,Revenue,CAHD,Statemented Support Payments to OLAs,Other L.A.s - General,Cabot Learning Federation,872.46, 23-Mar-2021
803,Revenue,CAHD,Statemented Support Academies,Other Public Bodies,Cabot Learning Federation,1626.67, 24-Mar-2021
804,Revenue,CAHD,Statemented Support Academies,Other Public Bodies,Cabot Learning Federation,710.58, 24-Mar-2021
805,Revenue,CAHD,Statemented Support Academies,Other Public Bodies,Cabot Learning Federation,804.08, 24-Mar-2021
806,Revenue,CAHD,Statemented Support Academies,Other Public Bodies,Cabot Learning Federation,554.13, 24-Mar-2021
807,Revenue,CAHD,Statemented Support Academies,Other Public Bodies,Cabot Learning Federation,742.77, 24-Mar-2021
808,Revenue,CAHD,Statemented Support Academies,Other Public Bodies,Cabot Learning Federation,778.14, 24-Mar-2021
809,Revenue,CAHD,Statemented Support Academies,Other Public Bodies,Cabot Learning Federation,813.51, 24-Mar-2021
810,Revenue,CAHD,Schools Specific Grant Income,Other Public Bodies,Cabot Learning Federation,640.00, 01-Mar-2021
811,Revenue,CAHD,Schools Specific Grant Income - from OLA,Other Public Bodies,Cabot Learning Federation,650.00, 16-Mar-2021
812,Revenue,CAHD,Statemented Support Payments to OLAs,Other L.A.s - General,Cabot Learning Federation,601.29, 23-Mar-2021
813,Revenue,CAHD,Statemented Support Academies,Other Public Bodies,Cabot Learning Federation,1131.84, 24-Mar-2021
814,Revenue,CAHD,Statemented Support Academies,Other Public Bodies,Cabot Learning Federation,589.50, 24-Mar-2021
815,Revenue,CAHD,Statemented Support Academies,Other Public Bodies,Cabot Learning Federation,554.13, 24-Mar-2021
816,Revenue,CAHD,Statemented Support Academies,Other Public Bodies,Cabot Learning Federation,801.72, 24-Mar-2021
817,Revenue,CAHD,Statemented Support Academies,Other Public Bodies,Cabot Learning Federation,1096.47, 24-Mar-2021
818,Revenue,CAHD,Statemented Support Academies,Other Public Bodies,Cabot Learning Federation,730.98, 24-Mar-2021
819,Revenue,CAHD,Statemented Support Academies,Other Public Bodies,Cabot Learning Federation,907.83, 24-Mar-2021
820,Revenue,CAHD,Statemented Support Academies,Other Public Bodies,Cabot Learning Federation,801.92, 24-Mar-2021
821,Revenue,CAHD,Statemented Support Academies,Other Public Bodies,Cabot Learning Federation,530.55, 24-Mar-2021
822,Revenue,CAHD,Statemented Support Academies,Other Public Bodies,Cabot Learning Federation,931.41, 24-Mar-2021
823,Revenue,CAHD,Statemented Support Payments to OLAs,Other L.A.s - General,Cabot Learning Federation,1062.33, 23-Mar-2021
824,Revenue,CAHD,Schools Specific Grant Income,Other Public Bodies,Cabot Learning Federation,1620.00, 26-Mar-2021
825,Revenue,CAHD,Statemented Support Academies,Other Public Bodies,Cabot Learning Federation,577.50, 24-Mar-2021
826,Revenue,CAHD,Statemented Support Academies,Other Public Bodies,Cabot Learning Federation,1297.08, 24-Mar-2021
827,Revenue,CAHD,Statemented Support Academies,Other Public Bodies,Cabot Learning Federation,966.83, 24-Mar-2021
828,Revenue,CAHD,Statemented Support Academies,Other Public Bodies,Cabot Learning Federation,872.46, 24-Mar-2021
829,Revenue,CAHD,Statemented Support Payments to OLAs,Other L.A.s - General,Cabot Learning Federation,665.33, 23-Mar-2021
830,Revenue,CAHD,CSC - YOT Pooled Budget,Software Support & Maintenance,CACI Limited,8109.67, 15-Mar-2021
831,Revenue,CAHD,CSC - YOT Pooled Budget,Software Support & Maintenance,CACI Limited,4500.00, 30-Mar-2021
832,Revenue,CAHD,Sexual Health,Other Small Contracts,Cadbury Heath Healthcare,1288.00, 29-Mar-2021
833,Revenue,CAHD,Sexual Health,Other Small Contracts,Cadbury Heath Healthcare,1293.90, 29-Mar-2021
834,Revenue,CAHD,NHS Health Checks,Other Small Contracts,Cadbury Heath Healthcare,2514.67, 29-Mar-2021
835,Revenue,CAHD,Drug and Alcohol Programme,Other Small Contracts,Cadbury Heath Healthcare,3045.00, 29-Mar-2021
836,Revenue,CAHD,Early Years High Needs Support,Other Private Contractors,Caerleon Childcare,515.71, 23-Mar-2021
837,Revenue,CAHD,North - Community based support,Permanent Nursing,Caernarvon House,4710.40, 09-Mar-2021
838,Revenue,CAHD,North - S117,Permanent Nursing,Caernarvon House,3990.24, 09-Mar-2021
839,Revenue,CAHD,South - Commissioned Services,Permanent Nursing,Caernarvon House,4915.20, 09-Mar-2021
840,Revenue,CAHD,South - S117,Permanent Nursing,Caernarvon House,4915.20, 09-Mar-2021
841,Revenue,CAHD,South - Commissioned Services,Permanent Nursing,Caernarvon House,4800.00, 09-Mar-2021
842,Revenue,CAHD,CSC - Residential Placements,Permanent Residential,Cambian Childcare Ltd,19042.99, 25-Mar-2021
843,Revenue,CAHD,CSC - Residential Placements,Permanent Residential,Cambian Childcare Ltd,23250.00, 25-Mar-2021
844,Revenue,CAHD,CSC - Residential Placements,Permanent Residential,Cambian Childcare Ltd,24135.67, 25-Mar-2021
845,Revenue,CAHD,Schools Specific Grant Income,Other Public Bodies,Cambian Childcare Ltd,630.00, 01-Mar-2021
846,Revenue,CAHD,Post 16 High Needs Placements,Other Private Contractors,Cambian Whinfell School Limited,39075.30, 01-Mar-2021
847,Revenue,CAHD,Post 16 High Needs Placements,Other Private Contractors,Cambian Whinfell School Limited,44900.44, 17-Mar-2021
848,Revenue,CAHD,North - Community based support,Day Care / Social Activities,Camphill Communities Thornbury Limited,893.55, 05-Mar-2021
849,Revenue,CAHD,North - Community based support,Other Small Contracts,Camphill Communities Thornbury Limited,1632.54, 05-Mar-2021
850,Revenue,CAHD,North - Community based support,Supported Living,Camphill Communities Thornbury Limited,1081.92, 05-Mar-2021
851,Revenue,CAHD,North - Community based support,Day Care / Social Activities,Camphill Communities Thornbury Limited,1178.52, 12-Mar-2021
852,Revenue,CAHD,North - Community based support,Other Small Contracts,Camphill Communities Thornbury Limited,1613.22, 12-Mar-2021
853,Revenue,CAHD,North - Community based support,Supported Living,Camphill Communities Thornbury Limited,1077.09, 12-Mar-2021
854,Revenue,CAHD,North - Community based support,Day Care / Social Activities,Camphill Communities Thornbury Limited,1159.20, 19-Mar-2021
855,Revenue,CAHD,North - Community based support,Other Small Contracts,Camphill Communities Thornbury Limited,1627.71, 19-Mar-2021
856,Revenue,CAHD,North - Community based support,Supported Living,Camphill Communities Thornbury Limited,1062.60, 19-Mar-2021
857,Revenue,CAHD,North - Community based support,Day Care / Social Activities,Camphill Communities Thornbury Limited,1173.69, 26-Mar-2021
858,Revenue,CAHD,North - Community based support,Other Small Contracts,Camphill Communities Thornbury Limited,1627.71, 26-Mar-2021
859,Revenue,CAHD,North - Community based support,Supported Living,Camphill Communities Thornbury Limited,1067.43, 26-Mar-2021
860,Revenue,CAHD,Practitioner Training Grant (PT),Training Expenses,Capita Business Services Limited,7560.00, 25-Mar-2021
861,Revenue,CAHD,CSC - Asylum Seekers - Unaccompanied,Foster Parent Allowances,Capstone Foster Care (South West) Limited,3076.08, 11-Mar-2021
862,Revenue,CAHD,CSC - Agency Fostering,Foster Parent Allowances,Capstone Foster Care (South West) Limited,3160.08, 19-Mar-2021
863,Revenue,CAHD,CSC - Agency Fostering,Foster Parent Allowances,Capstone Foster Care (South West) Limited,3160.08, 03-Mar-2021
864,Revenue,CAHD,CSC - Agency Fostering,Foster Parent Allowances,Capstone Foster Care (South West) Limited,3316.04, 03-Mar-2021
865,Revenue,CAHD,CSC - Agency Fostering,Foster Parent Allowances,Capstone Foster Care (South West) Limited,2960.75, 18-Mar-2021
866,Revenue,CAHD,CSC - Agency Fostering,Foster Parent Allowances,Capstone Foster Care (South West) Limited,3671.33, 31-Mar-2021
867,Revenue,CAHD,CSC - Agency Fostering,Foster Parent Allowances,Capstone Foster Care (South West) Limited,3498.66, 31-Mar-2021
868,Revenue,CAHD,CSC - Agency Fostering,Foster Parent Allowances,Capstone Foster Care (South West) Limited,3498.66, 31-Mar-2021
869,Revenue,CAHD,CSC - Agency Fostering,Foster Parent Allowances,Capstone Foster Care (South West) Limited,3671.33, 31-Mar-2021
870,Revenue,CAHD,Central - Commissioned Services,Other Small Contracts,Care 1st Homecare,2999.30, 17-Mar-2021
871,Revenue,CAHD,Central - Commissioned Services,Other Small Contracts,Care 1st Homecare,2977.05, 17-Mar-2021
872,Revenue,CAHD,Central - Commissioned Services,Other Small Contracts,Care 1st Homecare,3479.82, 23-Mar-2021
873,Revenue,CAHD,North - Community based support,Supported Living,Care Horizons,5435.28, 09-Mar-2021
874,Revenue,CAHD,North - Community based support,Supported Living,Care Horizons,5435.28, 09-Mar-2021
875,Revenue,CAHD,Central - Commissioned Services,Other Small Contracts,Care Horizons Limited,1794.52, 12-Mar-2021
876,Revenue,CAHD,South - Commissioned Services,Other Small Contracts,Care Horizons Limited,857.82, 12-Mar-2021
877,Revenue,CAHD,North - Community based support,Day Care / Social Activities,Care Horizons Limited,197.20, 12-Mar-2021
878,Revenue,CAHD,North - Community based support,Other Small Contracts,Care Horizons Limited,512.72, 12-Mar-2021
879,Revenue,CAHD,Younger MH non-res purchasing,Other Small Contracts,Care Horizons Limited,231.71, 12-Mar-2021
880,Revenue,CAHD,Central - Commissioned Services,Other Small Contracts,Care Horizons Limited,1957.21, 12-Mar-2021
881,Revenue,CAHD,South - Commissioned Services,Other Small Contracts,Care Horizons Limited,847.96, 12-Mar-2021
882,Revenue,CAHD,North - Community based support,Day Care / Social Activities,Care Horizons Limited,414.12, 12-Mar-2021
883,Revenue,CAHD,North - Community based support,Other Small Contracts,Care Horizons Limited,512.72, 12-Mar-2021
884,Revenue,CAHD,Younger MH non-res purchasing,Other Small Contracts,Care Horizons Limited,236.64, 12-Mar-2021
885,Revenue,CAHD,Central - Commissioned Services,Other Small Contracts,Care Horizons Limited,2898.84, 24-Mar-2021
886,Revenue,CAHD,South - Commissioned Services,Other Small Contracts,Care Horizons Limited,788.80, 24-Mar-2021
887,Revenue,CAHD,North - Community based support,Day Care / Social Activities,Care Horizons Limited,414.12, 24-Mar-2021
888,Revenue,CAHD,North - Community based support,Other Small Contracts,Care Horizons Limited,512.72, 24-Mar-2021
889,Revenue,CAHD,Younger MH non-res purchasing,Other Small Contracts,Care Horizons Limited,157.76, 24-Mar-2021
890,Revenue,CAHD,Covid 19- Spend on behalf of NHS,Project Funding,Care Horizons Limited,920.00, 30-Mar-2021
891,Revenue,CAHD,Covid  - Workforce capacity,Grants to Voluntary Bodies,Care Horizons Limited,2235.95, 08-Mar-2021
892,Revenue,CAHD,Covid 19- Spend on behalf of NHS,Project Funding,Care Unite Ltd t/a Home Instead Senior Care,800.00, 30-Mar-2021
893,Revenue,CAHD,Covid  - Workforce capacity,Grants to Voluntary Bodies,Care Unite Ltd t/a Home Instead Senior Care,2156.09, 18-Mar-2021
894,Revenue,CAHD,Covid  - Workforce capacity,Grants to Voluntary Bodies,Caremark (Bristol & South Gloucestershire),798.55, 11-Mar-2021
895,Revenue,CAHD,Central - Commissioned Services,Other Small Contracts,Carepride Ltd,714.85, 03-Mar-2021
896,Revenue,CAHD,South - Commissioned Services,Other Small Contracts,Carepride Ltd,69.02, 03-Mar-2021
897,Revenue,CAHD,North - Community based support,Other Small Contracts,Carepride Ltd,231.71, 03-Mar-2021
898,Revenue,CAHD,Central - Commissioned Services,Other Small Contracts,Carepride Ltd,700.06, 31-Mar-2021
899,Revenue,CAHD,South - Commissioned Services,Other Small Contracts,Carepride Ltd,83.81, 31-Mar-2021
900,Revenue,CAHD,North - Community based support,Other Small Contracts,Carepride Ltd,221.85, 31-Mar-2021
901,Revenue,CAHD,Central - Commissioned Services,Other Small Contracts,Carepride Ltd,739.50, 03-Mar-2021
902,Revenue,CAHD,South - Commissioned Services,Other Small Contracts,Carepride Ltd,83.81, 03-Mar-2021
903,Revenue,CAHD,North - Community based support,Other Small Contracts,Carepride Ltd,231.71, 03-Mar-2021
904,Revenue,CAHD,Central - Commissioned Services,Other Small Contracts,Carepride Ltd,739.50, 15-Mar-2021
905,Revenue,CAHD,South - Commissioned Services,Other Small Contracts,Carepride Ltd,88.74, 15-Mar-2021
906,Revenue,CAHD,North - Community based support,Other Small Contracts,Carepride Ltd,231.71, 15-Mar-2021
907,Revenue,CAHD,Central - Commissioned Services,Other Small Contracts,Carepride Ltd,734.57, 23-Mar-2021
908,Revenue,CAHD,South - Commissioned Services,Other Small Contracts,Carepride Ltd,83.81, 23-Mar-2021
909,Revenue,CAHD,North - Community based support,Other Small Contracts,Carepride Ltd,226.78, 23-Mar-2021
910,Revenue,CAHD,Central - Commissioned Services,Other Small Contracts,Carepride Ltd,729.64, 31-Mar-2021
911,Revenue,CAHD,South - Commissioned Services,Other Small Contracts,Carepride Ltd,69.02, 31-Mar-2021
912,Revenue,CAHD,North - Community based support,Other Small Contracts,Carepride Ltd,226.78, 31-Mar-2021
913,Revenue,CAHD,Covid 19- Spend on behalf of NHS,Project Funding,Carepride Ltd,1640.00, 30-Mar-2021
914,Revenue,CAHD,Covid 19- Spend on behalf of NHS,Project Funding,Caring Comes 1st Limited,1320.00, 30-Mar-2021
915,Revenue,CAHD,Covid  - Workforce capacity,Grants to Voluntary Bodies,Caring Comes 1st Limited,2874.79, 11-Mar-2021
916,Revenue,CAHD,Supporting People Programme,Grants to Voluntary Bodies,Caring for Communities and People,12849.00, 04-Mar-2021
917,Revenue,CAHD,CSC - Vinney Green Secure Unit,R & M by Departments,Carlton Services UK Limited,892.00, 15-Mar-2021
918,Revenue,CAHD,CSC - Vinney Green Secure Unit,Catering Equipment,Carlton Services UK Limited,952.00, 26-Mar-2021
919,Revenue,CAHD,CSC - Legal Fees,Legal Fees,Individual,825.00, 08-Mar-2021
920,Revenue,CAHD,Social Lettings Agency,Rent,Individual,699.32, 19-Mar-2021
921,Revenue,CAHD,Social Lettings Agency,Fees - General,Individual,20.57, 19-Mar-2021
922,Revenue,CAHD,CSC - Legal Fees,Legal Fees,Individual,425.00, 08-Mar-2021
923,Revenue,CAHD,Statemented Support Academies,Other Public Bodies,Castle School Education Trust,530.55, 24-Mar-2021
924,Revenue,CAHD,Statemented Support Academies,Other Public Bodies,Castle School Education Trust,778.14, 24-Mar-2021
925,Revenue,CAHD,Statemented Support Academies,Other Public Bodies,Castle School Education Trust,821.50, 24-Mar-2021
926,Revenue,CAHD,Statemented Support Academies,Other Public Bodies,Castle School Education Trust,672.03, 24-Mar-2021
927,Revenue,CAHD,Statemented Support Academies,Other Public Bodies,Castle School Education Trust,577.71, 24-Mar-2021
928,Revenue,CAHD,Statemented Support Academies,Other Public Bodies,Castle School Education Trust,505.08, 24-Mar-2021
929,Revenue,CAHD,Statemented Support Academies,Other Public Bodies,Castle School Education Trust,613.08, 24-Mar-2021
930,Revenue,CAHD,Statemented Support Academies,Other Public Bodies,Castle School Education Trust,672.03, 24-Mar-2021
931,Revenue,CAHD,Statemented Support Academies,Other Public Bodies,Castle School Education Trust,1120.05, 24-Mar-2021
932,Revenue,CAHD,Statemented Support Academies,Other Public Bodies,Castle School Education Trust,636.66, 24-Mar-2021
933,Revenue,CAHD,Statemented Support Academies,Other Public Bodies,Castle School Education Trust,589.08, 24-Mar-2021
934,Revenue,CAHD,Statemented Support Academies,Other Public Bodies,Castle School Education Trust,954.99, 24-Mar-2021
935,Revenue,CAHD,Statemented Support Academies,Other Public Bodies,Castle School Education Trust,577.71, 24-Mar-2021
936,Revenue,CAHD,Statemented Support Academies,Other Public Bodies,Castle School Education Trust,1248.33, 24-Mar-2021
937,Revenue,CAHD,Statemented Support Academies,Other Public Bodies,Castle School Education Trust,624.87, 24-Mar-2021
938,Revenue,CAHD,Statemented Support Academies,Other Public Bodies,Castle School Education Trust,1190.79, 24-Mar-2021
939,Revenue,CAHD,Statemented Support Academies,Other Public Bodies,Castle School Education Trust,841.00, 24-Mar-2021
940,Revenue,CAHD,Statemented Support Academies,Other Public Bodies,Castle School Education Trust,1237.95, 24-Mar-2021
941,Revenue,CAHD,Statemented Support Academies,Other Public Bodies,Castle School Education Trust,1061.10, 24-Mar-2021
942,Revenue,CAHD,Statemented Support Academies,Other Public Bodies,Castle School Education Trust,518.76, 24-Mar-2021
943,Revenue,CAHD,Statemented Support Academies,Other Public Bodies,Castle School Education Trust,577.71, 24-Mar-2021
944,Revenue,CAHD,Statemented Support Academies,Other Public Bodies,Castle School Education Trust,1143.63, 24-Mar-2021
945,Revenue,CAHD,Statemented Support Academies,Other Public Bodies,Castle School Education Trust,2829.99, 24-Mar-2021
946,Revenue,CAHD,Statemented Support Academies,Other Public Bodies,Castle School Education Trust,754.25, 24-Mar-2021
947,Revenue,CAHD,Statemented Support Academies,Other Public Bodies,Castle School Education Trust,1485.54, 24-Mar-2021
948,Revenue,CAHD,Statemented Support Academies,Other Public Bodies,Castle School Education Trust,1177.50, 24-Mar-2021
949,Revenue,CAHD,Statemented Support Academies,Other Public Bodies,Castle School Education Trust,888.75, 24-Mar-2021
950,Revenue,CAHD,Statemented Support Academies,Other Public Bodies,Castle School Education Trust,1261.75, 24-Mar-2021
951,Revenue,CAHD,Statemented Support Academies,Other Public Bodies,Castle School Education Trust,1322.75, 24-Mar-2021
952,Revenue,CAHD,Statemented Support Academies,Other Public Bodies,Castle School Education Trust,801.92, 24-Mar-2021
953,Revenue,CAHD,Statemented Support Academies,Other Public Bodies,Castle School Education Trust,943.17, 24-Mar-2021
954,Revenue,CAHD,Statemented Support Academies,Other Public Bodies,Castle School Education Trust,1267.50, 24-Mar-2021
955,Revenue,CAHD,Academy Resource Base Funding,Other Public Bodies,Castle School Education Trust,3397.28, 22-Mar-2021
956,Revenue,CAHD,Academy Resource Base Funding,Other Public Bodies,Castle School Education Trust,1702.96, 22-Mar-2021
957,Revenue,CAHD,Academy Resource Base Funding,Other Public Bodies,Castle School Education Trust,1702.96, 22-Mar-2021
958,Revenue,CAHD,Academy Resource Base Funding,Other Public Bodies,Castle School Education Trust,1702.96, 22-Mar-2021
959,Revenue,CAHD,Academy Resource Base Funding,Other Public Bodies,Castle School Education Trust,1702.96, 22-Mar-2021
960,Revenue,CAHD,Academy Resource Base Funding,Other Public Bodies,Castle School Education Trust,1702.96, 22-Mar-2021
961,Revenue,CAHD,Academy Resource Base Funding,Other Public Bodies,Castle School Education Trust,1702.96, 22-Mar-2021
962,Revenue,CAHD,Academy Resource Base Funding,Other Public Bodies,Castle School Education Trust,2189.53, 22-Mar-2021
963,Revenue,CAHD,Academy Resource Base Funding,Other Public Bodies,Castle School Education Trust,1702.96, 22-Mar-2021
964,Revenue,CAHD,Academy Resource Base Funding,Other Public Bodies,Castle School Education Trust,1702.96, 22-Mar-2021
965,Revenue,CAHD,Academy Resource Base Funding,Other Public Bodies,Castle School Education Trust,1702.96, 22-Mar-2021
966,Revenue,CAHD,Academy Resource Base Funding,Other Public Bodies,Castle School Education Trust,2513.88, 22-Mar-2021
967,Revenue,CAHD,Academy Resource Base Funding,Other Public Bodies,Castle School Education Trust,1702.96, 22-Mar-2021
968,Revenue,CAHD,Academy Resource Base Funding,Other Public Bodies,Castle School Education Trust,2513.88, 22-Mar-2021
969,Revenue,CAHD,Academy Resource Base Funding,Other Public Bodies,Castle School Education Trust,2513.88, 22-Mar-2021
970,Revenue,CAHD,Academy Resource Base Funding,Other Public Bodies,Castle School Education Trust,7298.36, 26-Mar-2021
971,Revenue,CAHD,Statemented Support Academies,Other Public Bodies,Castle School Education Trust,672.03, 24-Mar-2021
972,Revenue,CAHD,Statemented Support Academies,Other Public Bodies,Castle School Education Trust,822.50, 24-Mar-2021
973,Revenue,CAHD,Statemented Support Academies,Other Public Bodies,Castle School Education Trust,872.46, 24-Mar-2021
974,Revenue,CAHD,Statemented Support Academies,Other Public Bodies,Castle School Education Trust,848.88, 24-Mar-2021
975,Revenue,CAHD,Statemented Support Academies,Other Public Bodies,Castle School Education Trust,541.58, 24-Mar-2021
976,Revenue,CAHD,Statemented Support Academies,Other Public Bodies,Castle School Education Trust,1444.17, 24-Mar-2021
977,Revenue,CAHD,Statemented Support Academies,Other Public Bodies,Castle School Education Trust,956.00, 24-Mar-2021
978,Revenue,CAHD,Statemented Support Academies,Other Public Bodies,Castle School Education Trust,1025.73, 24-Mar-2021
979,Revenue,CAHD,Statemented Support Academies,Other Public Bodies,Castle School Education Trust,1628.42, 24-Mar-2021
980,Revenue,CAHD,Statemented Support Academies,Other Public Bodies,Castle School Education Trust,560.17, 24-Mar-2021
981,Revenue,CAHD,Statemented Support Academies,Other Public Bodies,Castle School Education Trust,630.58, 24-Mar-2021
982,Revenue,CAHD,Statemented Support Academies,Other Public Bodies,Castle School Education Trust,778.14, 24-Mar-2021
983,Revenue,CAHD,Statemented Support Academies,Other Public Bodies,Castle School Education Trust,941.58, 24-Mar-2021
984,Revenue,CAHD,Statemented Support Academies,Other Public Bodies,Castle School Education Trust,613.08, 24-Mar-2021
985,Revenue,CAHD,Statemented Support Academies,Other Public Bodies,Castle School Educational Turust,1129.92, 24-Mar-2021
986,Revenue,CAHD,Statemented Support Academies,Other Public Bodies,Castle School Educational Turust,854.00, 24-Mar-2021
987,Revenue,CAHD,Statemented Support Academies,Other Public Bodies,Castle School Educational Turust,790.58, 24-Mar-2021
988,Revenue,CAHD,Statemented Support Academies,Other Public Bodies,Castle School Educational Turust,508.67, 24-Mar-2021
989,Revenue,CAHD,Statemented Support Academies,Other Public Bodies,Castle School Educational Turust,1148.20, 24-Mar-2021
990,Revenue,CAHD,Statemented Support Academies,Other Public Bodies,Castle School Educational Turust,1097.25, 24-Mar-2021
991,Revenue,CAHD,Statemented Support Academies,Other Public Bodies,Castle School Educational Turust,580.67, 24-Mar-2021
992,Revenue,CAHD,Statemented Support Academies,Other Public Bodies,Castle School Educational Turust,925.08, 24-Mar-2021
993,Revenue,CAHD,Social Lettings Agency,Rent,Individual,595.11, 01-Mar-2021
994,Revenue,CAHD,Social Lettings Agency,Fees - General,Individual,10.53, 01-Mar-2021
995,Revenue,CAHD,North - Community based support,Day Care / Social Activities,Causeway House,2176.64, 09-Mar-2021
996,Revenue,CAHD,South - Commissioned Services,Day Care / Social Activities,Causeway House,5358.20, 09-Mar-2021
997,Revenue,CAHD,18-25 Year Olds,Day Care / Social Activities,Causeway House,4502.92, 09-Mar-2021
998,Revenue,CAHD,Central - Commissioned Services,Day Care / Social Activities,Causeway House,3671.36, 09-Mar-2021
999,Revenue,CAHD,Central - Commissioned Services,Day Care / Social Activities,Causeway House,3969.44, 09-Mar-2021
1000,Revenue,CAHD,North - Community based support,Day Care / Social Activities,Causeway House,3290.72, 09-Mar-2021
1001,Revenue,CAHD,North - Community based support,Day Care / Social Activities,Causeway House,4902.56, 09-Mar-2021
1002,Revenue,CAHD,Central - Commissioned Services,Day Care / Social Activities,Causeway House,3725.16, 09-Mar-2021
1003,Revenue,CAHD,North - Community based support,Day Care / Social Activities,Causeway House,3212.08, 09-Mar-2021
1004,Revenue,CAHD,North - Community based support,Day Care / Social Activities,Causeway House,579.68, 09-Mar-2021
1005,Revenue,CAHD,Central - Commissioned Services,Permanent Residential,Cepen Lodge,31527.02, 09-Mar-2021
1006,Revenue,CAHD,Central - Commissioned Services,Permanent Residential,Cepen Lodge,8713.99, 09-Mar-2021
1007,Revenue,CAHD,Central - Commissioned Services,Permanent Residential,Cepen Lodge,2741.48, 09-Mar-2021
1008,Revenue,CAHD,South - Commissioned Services,Permanent Residential,Challenge House,2834.44, 09-Mar-2021
1009,Revenue,CAHD,South - Commissioned Services,Permanent Residential,Challenge House,2836.00, 09-Mar-2021
1010,Revenue,CAHD,North - S117,Permanent Residential,Challenge House,2571.40, 09-Mar-2021
1011,Revenue,CAHD,North - Community based support,Permanent Residential,Challenge House,2233.00, 09-Mar-2021
1012,Revenue,CAHD,North - Community based support,Permanent Residential,Challenge House,9600.00, 09-Mar-2021
1013,Revenue,CAHD,North - Community based support,Permanent Residential,Challenge House,2800.00, 09-Mar-2021
1014,Revenue,CAHD,Central - Commissioned Services,Permanent Residential,Challenge House,2365.64, 09-Mar-2021
1015,Revenue,CAHD,Central - Commissioned Services,Permanent Residential,Challenge House,2720.00, 09-Mar-2021
1016,Revenue,CAHD,North - Community based support,Permanent Residential,Challenge House,2834.40, 09-Mar-2021
1017,Revenue,CAHD,North - S117,Permanent Nursing,Challenge House,2453.28, 09-Mar-2021
1018,Revenue,CAHD,North - Community based support,Permanent Nursing,Challenge House,2453.28, 09-Mar-2021
1019,Revenue,CAHD,North - Community based support,Permanent Nursing,Challenge House,3205.48, 09-Mar-2021
1020,Revenue,CAHD,South Glos Users in South Glos Homes,Permanent Nursing,Challenge House,735.68, 09-Mar-2021
1021,Revenue,CAHD,South Glos Users in South Glos Homes,Permanent Nursing,Challenge House,735.68, 09-Mar-2021
1022,Revenue,CAHD,South Glos Users in South Glos Homes,Permanent Nursing,Challenge House,5596.42, 09-Mar-2021
1023,Revenue,CAHD,North - Community based support,Permanent Nursing,Challenge House,3400.00, 09-Mar-2021
1024,Revenue,CAHD,South Glos Users in South Glos Homes,Permanent Nursing,Challenge House,735.68, 09-Mar-2021
1025,Revenue,CAHD,South Glos Users in South Glos Homes,Permanent Nursing,Challenge House,735.68, 09-Mar-2021
1026,Revenue,CAHD,Covid 19- Spend on behalf of NHS,Respite Planned - Nursing,Challenge House,4181.14, 09-Mar-2021
1027,Revenue,CAHD,South Glos Users in South Glos Homes,Permanent Nursing,Challenge House,735.68, 09-Mar-2021
1028,Revenue,CAHD,Covid 19- Spend on behalf of NHS,Respite Planned - Residential,Challenge House,2314.29, 09-Mar-2021
1029,Revenue,CAHD,South - Commissioned Services,Permanent Nursing,Challenge House,2941.88, 09-Mar-2021
1030,Revenue,CAHD,South Glos Users in South Glos Homes,Permanent Nursing,Challenge House,735.68, 09-Mar-2021
1031,Revenue,CAHD,North - Community based support,Permanent Nursing,Challenge House,3272.64, 09-Mar-2021
1032,Revenue,CAHD,South Glos Users in South Glos Homes,Permanent Nursing,Challenge House,735.68, 09-Mar-2021
1033,Revenue,CAHD,Covid 19- Spend on behalf of NHS,Respite Planned - Residential,Challenge House,4500.00, 09-Mar-2021
1034,Revenue,CAHD,North - Community based support,Respite Planned - Residential,Challenge House,2307.14, 09-Mar-2021
1035,Revenue,CAHD,Covid 19- Spend on behalf of NHS,Respite Planned - Residential,Challenge House,3728.57, 09-Mar-2021
1036,Revenue,CAHD,South - Commissioned Services,Permanent Residential,Challenge House,3060.00, 09-Mar-2021
1037,Revenue,CAHD,South Glos Users in South Glos Homes,Permanent Nursing,Challenge House,735.68, 09-Mar-2021
1038,Revenue,CAHD,South Glos Users in South Glos Homes,Permanent Nursing,Challenge House,735.68, 09-Mar-2021
1039,Revenue,CAHD,South Glos Users in South Glos Homes,Permanent Nursing,Challenge House,735.68, 09-Mar-2021
1040,Revenue,CAHD,South Glos Users in South Glos Homes,Permanent Nursing,Challenge House,735.68, 09-Mar-2021
1041,Revenue,CAHD,South Glos Users in South Glos Homes,Permanent Nursing,Challenge House,735.68, 09-Mar-2021
1042,Revenue,CAHD,South Glos Users in South Glos Homes,Permanent Nursing,Challenge House,735.68, 09-Mar-2021
1043,Revenue,CAHD,Covid 19- Spend on behalf of NHS,Respite Planned - Residential,Challenge House,2185.71, 09-Mar-2021
1044,Revenue,CAHD,South - Commissioned Services,Respite Planned - Residential,Challenge House,3400.00, 09-Mar-2021
1045,Revenue,CAHD,South - Commissioned Services,Respite Planned - Residential,Challenge House,1700.00, 09-Mar-2021
1046,Revenue,CAHD,Covid 19- Spend on behalf of NHS,Respite Planned - Residential,Challenge House,5271.43, 09-Mar-2021
1047,Revenue,CAHD,South Glos Users in South Glos Homes,Permanent Nursing,Challenge House,735.68, 09-Mar-2021
1048,Revenue,CAHD,South Glos Users in South Glos Homes,Permanent Nursing,Challenge House,735.68, 09-Mar-2021
1049,Revenue,CAHD,South Glos Users in South Glos Homes,Permanent Nursing,Challenge House,6805.04, 09-Mar-2021
1050,Revenue,CAHD,South Glos Users in South Glos Homes,Permanent Nursing,Challenge House,735.68, 09-Mar-2021
1051,Revenue,CAHD,South Glos Users in South Glos Homes,Permanent Nursing,Challenge House,6647.39, 09-Mar-2021
1052,Revenue,CAHD,South Glos Users in South Glos Homes,Permanent Nursing,Challenge House,735.68, 09-Mar-2021
1053,Revenue,CAHD,South - Commissioned Services,Respite Planned - Residential,Challenge House,4628.57, 09-Mar-2021
1054,Revenue,CAHD,South - Commissioned Services,Respite Planned - Residential,Challenge House,3400.00, 09-Mar-2021
1055,Revenue,CAHD,North - Community based support,Permanent Nursing,Challenge House,2884.08, 09-Mar-2021
1056,Revenue,CAHD,South Glos Users in South Glos Homes,Permanent Nursing,Challenge House,735.68, 09-Mar-2021
1057,Revenue,CAHD,North - Community based support,Permanent Nursing,Challenge House,3243.60, 09-Mar-2021
1058,Revenue,CAHD,South Glos Users in South Glos Homes,Permanent Nursing,Challenge House,735.68, 09-Mar-2021
1059,Revenue,CAHD,North - Community based support,Permanent Nursing,Challenge House,3405.60, 09-Mar-2021
1060,Revenue,CAHD,South Glos Users in South Glos Homes,Permanent Nursing,Challenge House,735.68, 09-Mar-2021
1061,Revenue,CAHD,South - Commissioned Services,Respite Planned - Residential,Challenge House,4628.57, 09-Mar-2021
1062,Revenue,CAHD,South - Commissioned Services,Respite Planned - Residential,Challenge House,3400.00, 09-Mar-2021
1063,Revenue,CAHD,North - Community based support,Permanent Residential,Challenge House,3121.20, 09-Mar-2021
1064,Revenue,CAHD,South Glos Users in South Glos Homes,Permanent Nursing,Challenge House,735.68, 09-Mar-2021
1065,Revenue,CAHD,North - Community based support,Permanent Nursing,Challenge House,2884.08, 09-Mar-2021
1066,Revenue,CAHD,South Glos Users in South Glos Homes,Permanent Nursing,Challenge House,735.68, 09-Mar-2021
1067,Revenue,CAHD,South Glos Users in South Glos Homes,Permanent Nursing,Challenge House,735.68, 09-Mar-2021
1068,Revenue,CAHD,Covid  - Workforce capacity,Grants to Voluntary Bodies,Challenge House,2874.79, 08-Mar-2021
1069,Revenue,CAHD,Central - Commissioned Services,Permanent Nursing,Challenge House,2401.84, 09-Mar-2021
1070,Revenue,CAHD,North - Community based support,Permanent Residential,Challenge House,2174.20, 09-Mar-2021
1071,Revenue,CAHD,Training - Adult Services,Training Expenses,Individual,2000.00, 05-Mar-2021
1072,Revenue,CAHD,Statemented Support Academies,Other Public Bodies,Charlton Wood Primary Academy,702.17, 24-Mar-2021
1073,Revenue,CAHD,Central - Commissioned Services,Other Small Contracts,Cherish Able Care Limited,2168.67, 01-Mar-2021
1074,Revenue,CAHD,South - Commissioned Services,Other Small Contracts,Cherish Able Care Limited,7109.17, 01-Mar-2021
1075,Revenue,CAHD,North - Community based support,Other Small Contracts,Cherish Able Care Limited,1371.72, 01-Mar-2021
1076,Revenue,CAHD,Central - Commissioned Services,Other Small Contracts,Cherish Able Care Limited,2173.50, 12-Mar-2021
1077,Revenue,CAHD,South - Commissioned Services,Other Small Contracts,Cherish Able Care Limited,6800.05, 12-Mar-2021
1078,Revenue,CAHD,North - Community based support,Other Small Contracts,Cherish Able Care Limited,1391.04, 12-Mar-2021
1079,Revenue,CAHD,Central - Commissioned Services,Other Small Contracts,Cherish Able Care Limited,2154.18, 15-Mar-2021
1080,Revenue,CAHD,South - Commissioned Services,Other Small Contracts,Cherish Able Care Limited,7297.54, 15-Mar-2021
1081,Revenue,CAHD,North - Community based support,Other Small Contracts,Cherish Able Care Limited,1477.98, 15-Mar-2021
1082,Revenue,CAHD,Central - Commissioned Services,Other Small Contracts,Cherish Able Care Limited,2168.67, 19-Mar-2021
1083,Revenue,CAHD,South - Commissioned Services,Other Small Contracts,Cherish Able Care Limited,7287.88, 19-Mar-2021
1084,Revenue,CAHD,North - Community based support,Other Small Contracts,Cherish Able Care Limited,1371.72, 19-Mar-2021
1085,Revenue,CAHD,Central - Commissioned Services,Other Small Contracts,Cherish Able Care Limited,2221.80, 31-Mar-2021
1086,Revenue,CAHD,South - Commissioned Services,Other Small Contracts,Cherish Able Care Limited,7335.95, 31-Mar-2021
1087,Revenue,CAHD,North - Community based support,Other Small Contracts,Cherish Able Care Limited,990.15, 31-Mar-2021
1088,Revenue,CAHD,Covid 19- Spend on behalf of NHS,Project Funding,Cherish Able Care Limited,1800.00, 30-Mar-2021
1089,Revenue,CAHD,Covid  - Workforce capacity,Grants to Voluntary Bodies,Cherish Able Care Limited,3433.77, 08-Mar-2021
1090,Revenue,CAHD,South - Commissioned Services,Other Small Contracts,Cherry Orchards,6491.52, 02-Mar-2021
1091,Revenue,CAHD,North - Community based support,Other Small Contracts,Cherry Orchards,637.56, 09-Mar-2021
1092,Revenue,CAHD,18-25 Year Olds,Supported Living,Cherry Orchards,2030.52, 09-Mar-2021
1093,Revenue,CAHD,North - Community based support,Supported Living,Cherry Orchards,1042.96, 09-Mar-2021
1094,Revenue,CAHD,S28A cases,Permanent Residential,Chescombe Trust Ltd,9959.72, 09-Mar-2021
1095,Revenue,CAHD,Covid  - Workforce capacity,Grants to Voluntary Bodies,Chescombe Trust Ltd,4232.32, 25-Mar-2021
1096,Revenue,CAHD,EARLY YEARS DEPRIVATION PAYMENT,Preventative Assistance,Christchurch Pre School,605.24, 22-Mar-2021
1097,Revenue,CAHD,CSC - Legal Fees,Legal Fees,Individual,600.00, 08-Mar-2021
1098,Revenue,CAHD,18-25 Year Olds,Other Small Contracts,Cintre,896.40, 15-Mar-2021
1099,Revenue,CAHD,Central - Commissioned Services,Other Small Contracts,Cintre,159.36, 15-Mar-2021
1100,Revenue,CAHD,South - Commissioned Services,Other Small Contracts,Cintre,1235.04, 15-Mar-2021
1101,Revenue,CAHD,18-25 Year Olds,Other Small Contracts,Cintre,896.40, 15-Mar-2021
1102,Revenue,CAHD,Central - Commissioned Services,Other Small Contracts,Cintre,119.52, 15-Mar-2021
1103,Revenue,CAHD,South - Commissioned Services,Other Small Contracts,Cintre,1215.12, 15-Mar-2021
1104,Revenue,CAHD,18-25 Year Olds,Other Small Contracts,Cintre,896.40, 17-Mar-2021
1105,Revenue,CAHD,Central - Commissioned Services,Other Small Contracts,Cintre,239.04, 17-Mar-2021
1106,Revenue,CAHD,South - Commissioned Services,Other Small Contracts,Cintre,1245.00, 17-Mar-2021
1107,Revenue,CAHD,18-25 Year Olds,Other Small Contracts,Cintre,896.40, 31-Mar-2021
1108,Revenue,CAHD,Central - Commissioned Services,Other Small Contracts,Cintre,199.20, 31-Mar-2021
1109,Revenue,CAHD,South - Commissioned Services,Other Small Contracts,Cintre,1334.64, 31-Mar-2021
1110,Revenue,CAHD,Research & Conferences,Consultants Fees,Claire Leandro Ltd,1375.00, 12-Mar-2021
1111,Revenue,CAHD,South - Commissioned Services,Permanent Residential,Cleeve Lodge,3760.12, 09-Mar-2021
1112,Revenue,CAHD,South - Commissioned Services,Permanent Residential,Cleeve Lodge,1334.60, 09-Mar-2021
1113,Revenue,CAHD,North - S117,Permanent Residential,Cleeve Lodge,3200.00, 09-Mar-2021
1114,Revenue,CAHD,Central - Commissioned Services,Permanent Residential,Cleeve Lodge,3200.00, 09-Mar-2021
1115,Revenue,CAHD,South - Commissioned Services,Permanent Residential,Cleeve Lodge,4400.00, 09-Mar-2021
1116,Revenue,CAHD,Covid 19- Spend on behalf of NHS,Respite Planned - Residential,Cleeve Lodge,1500.00, 09-Mar-2021
1117,Revenue,CAHD,North - Community based support,Permanent Residential,Cleeve Lodge,4400.00, 09-Mar-2021
1118,Revenue,CAHD,South - Commissioned Services,Permanent Residential,Cleeve Lodge,4000.00, 09-Mar-2021
1119,Revenue,CAHD,Covid 19- Spend on behalf of NHS,Respite Planned - Residential,Cleeve Lodge,1392.86, 09-Mar-2021
1120,Revenue,CAHD,South - Commissioned Services,Permanent Residential,Cleeve Lodge,2950.88, 09-Mar-2021
1121,Revenue,CAHD,South - Commissioned Services,Permanent Residential,Cleeve Lodge,6857.14, 09-Mar-2021
1122,Revenue,CAHD,South - Commissioned Services,Permanent Residential,Cleeve Lodge,3000.00, 09-Mar-2021
1123,Revenue,CAHD,South - Commissioned Services,Permanent Residential,Cleeve Lodge,4800.00, 09-Mar-2021
1124,Revenue,CAHD,Covid  - Workforce capacity,Grants to Voluntary Bodies,Cleeve Lodge,1357.54, 08-Mar-2021
1125,Revenue,CAHD,Tobacco Control,Drugs & Medical Supplies,Cleeve Wood Pharmacy,563.81, 29-Mar-2021
1126,Revenue,CAHD,Tobacco Control,Drugs & Medical Supplies,Cleeve Wood Pharmacy,563.81, 31-Mar-2021
1127,Revenue,CAHD,Sexual Health,Other Small Contracts,Close Farm Surgery,724.50, 29-Mar-2021
1128,Revenue,CAHD,Sexual Health,Other Small Contracts,Close Farm Surgery,791.48, 29-Mar-2021
1129,Revenue,CAHD,NHS Health Checks,Other Small Contracts,Close Farm Surgery,1165.33, 29-Mar-2021
1130,Revenue,CAHD,Drug and Alcohol Programme,Other Small Contracts,Close Farm Surgery,778.17, 29-Mar-2021
1131,Revenue,CAHD,Sexual Health,Other Small Contracts,Close Farm Surgery,724.50, 31-Mar-2021
1132,Revenue,CAHD,Sexual Health,Other Small Contracts,Close Farm Surgery,791.48, 31-Mar-2021
1133,Revenue,CAHD,NHS Health Checks,Other Small Contracts,Close Farm Surgery,1165.33, 31-Mar-2021
1134,Revenue,CAHD,Drug and Alcohol Programme,Other Small Contracts,Close Farm Surgery,778.17, 31-Mar-2021
1135,Revenue,CAHD,Central - Commissioned Services,Other Small Contracts,Clover Health and Home Care Ltd,1285.02, 09-Mar-2021
1136,Revenue,CAHD,Central - Commissioned Services,Other Small Contracts,Clover Health and Home Care Ltd,1401.84, 17-Mar-2021
1137,Revenue,CAHD,Central - Commissioned Services,Other Small Contracts,Clover Health and Home Care Ltd,1136.34, 17-Mar-2021
1138,Revenue,CAHD,Central - Commissioned Services,Other Small Contracts,Clover Health and Home Care Ltd,1270.79, 17-Mar-2021
1139,Revenue,CAHD,Central - Commissioned Services,Other Small Contracts,Clover Health and Home Care Ltd,870.84, 17-Mar-2021
1140,Revenue,CAHD,Covid 19- Spend on behalf of NHS,Project Funding,Clover Health and Home Care Ltd,800.00, 30-Mar-2021
1141,Revenue,CAHD,Covid  - Workforce capacity,Grants to Voluntary Bodies,Clover Health and Home Care Ltd,1357.54, 18-Mar-2021
1142,Revenue,CAHD,North - Community based support,Permanent Residential,Collingwood Care Home,3000.00, 09-Mar-2021
1143,Revenue,CAHD,Covid  - Workforce capacity,Grants to Voluntary Bodies,Collingwood Care Home,2794.93, 08-Mar-2021
1144,Revenue,CAHD,South - Commissioned Services,Permanent Residential,Community Theraputic Services,7893.40, 09-Mar-2021
1145,Revenue,CAHD,Jointly Funded H&SC Packages,Permanent Residential,Community Theraputic Services,4875.84, 09-Mar-2021
1146,Revenue,CAHD,North - Community based support,Permanent Residential,Community Theraputic Services,8119.76, 09-Mar-2021
1147,Revenue,CAHD,Jointly Funded H&SC Packages,Permanent Residential,Community Theraputic Services,2027.52, 09-Mar-2021
1148,Revenue,CAHD,Sexual Health,Other Small Contracts,Concord Medical Centre,2254.00, 29-Mar-2021
1149,Revenue,CAHD,Sexual Health,Other Small Contracts,Concord Medical Centre,2181.75, 29-Mar-2021
1150,Revenue,CAHD,NHS Health Checks,Other Small Contracts,Concord Medical Centre,1479.67, 29-Mar-2021
1151,Revenue,CAHD,Drug and Alcohol Programme,Other Small Contracts,Concord Medical Centre,812.00, 29-Mar-2021
1152,Revenue,CAHD,Sexual Health,Other Small Contracts,Concord Medical Centre,2254.00, 31-Mar-2021
1153,Revenue,CAHD,Sexual Health,Other Small Contracts,Concord Medical Centre,2181.75, 31-Mar-2021
1154,Revenue,CAHD,NHS Health Checks,Other Small Contracts,Concord Medical Centre,1479.67, 31-Mar-2021
1155,Revenue,CAHD,Drug and Alcohol Programme,Other Small Contracts,Concord Medical Centre,812.00, 31-Mar-2021
1156,Revenue,CAHD,Sexual Health,Other Small Contracts,Coniston Medical Practice,1307.67, 29-Mar-2021
1157,Revenue,CAHD,NHS Health Checks,Other Small Contracts,Coniston Medical Practice,605.67, 29-Mar-2021
1158,Revenue,CAHD,Drug and Alcohol Programme,Other Small Contracts,Coniston Medical Practice,1454.83, 29-Mar-2021
1159,Revenue,CAHD,Sexual Health,Other Small Contracts,Coniston Medical Practice,1307.67, 31-Mar-2021
1160,Revenue,CAHD,NHS Health Checks,Other Small Contracts,Coniston Medical Practice,605.67, 31-Mar-2021
1161,Revenue,CAHD,Drug and Alcohol Programme,Other Small Contracts,Coniston Medical Practice,1454.83, 31-Mar-2021
1162,Revenue,CAHD,Bed and Breakfast,Bed & Breakfast,Connolly & Callaghan Limited,735.00, 01-Mar-2021
1163,Revenue,CAHD,Bed and Breakfast,Bed & Breakfast,Connolly & Callaghan Limited,500.40, 01-Mar-2021
1164,Revenue,CAHD,Covid 19 - Housing,Bed & Breakfast,Connolly & Callaghan Limited,420.00, 01-Mar-2021
1165,Revenue,CAHD,Bed and Breakfast,Bed & Breakfast,Connolly & Callaghan Limited,422.80, 01-Mar-2021
1166,Revenue,CAHD,Bed and Breakfast,Bed & Breakfast,Connolly & Callaghan Limited,772.10, 01-Mar-2021
1167,Revenue,CAHD,Bed and Breakfast,Bed & Breakfast,Connolly & Callaghan Limited,508.20, 01-Mar-2021
1168,Revenue,CAHD,Bed and Breakfast,Bed & Breakfast,Connolly & Callaghan Limited,548.80, 01-Mar-2021
1169,Revenue,CAHD,Bed and Breakfast,Bed & Breakfast,Connolly & Callaghan Limited,811.30, 01-Mar-2021
1170,Revenue,CAHD,Bed and Breakfast,Bed & Breakfast,Connolly & Callaghan Limited,735.00, 09-Mar-2021
1171,Revenue,CAHD,Bed and Breakfast,Bed & Breakfast,Connolly & Callaghan Limited,583.80, 09-Mar-2021
1172,Revenue,CAHD,Bed and Breakfast,Bed & Breakfast,Connolly & Callaghan Limited,422.80, 09-Mar-2021
1173,Revenue,CAHD,Bed and Breakfast,Bed & Breakfast,Connolly & Callaghan Limited,772.10, 09-Mar-2021
1174,Revenue,CAHD,Covid 19 - Housing,Bed & Breakfast,Connolly & Callaghan Limited,420.00, 09-Mar-2021
1175,Revenue,CAHD,Bed and Breakfast,Bed & Breakfast,Connolly & Callaghan Limited,508.20, 09-Mar-2021
1176,Revenue,CAHD,Bed and Breakfast,Bed & Breakfast,Connolly & Callaghan Limited,548.80, 09-Mar-2021
1177,Revenue,CAHD,Bed and Breakfast,Bed & Breakfast,Connolly & Callaghan Limited,508.80, 17-Mar-2021
1178,Revenue,CAHD,Bed and Breakfast,Bed & Breakfast,Connolly & Callaghan Limited,422.80, 17-Mar-2021
1179,Revenue,CAHD,Bed and Breakfast,Bed & Breakfast,Connolly & Callaghan Limited,772.10, 17-Mar-2021
1180,Revenue,CAHD,Bed and Breakfast,Bed & Breakfast,Connolly & Callaghan Limited,508.20, 17-Mar-2021
1181,Revenue,CAHD,Bed and Breakfast,Bed & Breakfast,Connolly & Callaghan Limited,548.80, 17-Mar-2021
1182,Revenue,CAHD,Bed and Breakfast,Bed & Breakfast,Connolly & Callaghan Limited,548.80, 17-Mar-2021
1183,Revenue,CAHD,Bed and Breakfast,Bed & Breakfast,Connolly & Callaghan Limited,593.60, 24-Mar-2021
1184,Revenue,CAHD,Bed and Breakfast,Bed & Breakfast,Connolly & Callaghan Limited,422.80, 24-Mar-2021
1185,Revenue,CAHD,Bed and Breakfast,Bed & Breakfast,Connolly & Callaghan Limited,807.10, 24-Mar-2021
1186,Revenue,CAHD,Bed and Breakfast,Bed & Breakfast,Connolly & Callaghan Limited,508.20, 24-Mar-2021
1187,Revenue,CAHD,Bed and Breakfast,Bed & Breakfast,Connolly & Callaghan Limited,548.80, 24-Mar-2021
1188,Revenue,CAHD,CSC - Fostering Carer Support,Care Mgt/Asesmnt Staff Pay,Core Assets Expert Services Ltd T/A Carter Brown,700.00, 12-Mar-2021
1189,Revenue,CAHD,CSC - Fostering Carer Support,Care Mgt/Asesmnt Staff Pay,Core Assets Expert Services Ltd T/A Carter Brown,2600.00, 15-Mar-2021
1190,Revenue,CAHD,Independent Special Placements - Pre 16,Other Private Contractors,Cotswold Chine School,46820.89, 19-Mar-2021
1191,Revenue,CAHD,Central - Commissioned Services,Permanent Nursing,Cotswold House Care Home,3484.32, 09-Mar-2021
1192,Revenue,CAHD,North - Community based support,Permanent Residential,Court House Residential C.H.,3400.00, 09-Mar-2021
1193,Revenue,CAHD,Covid 19- Spend on behalf of NHS,Project Funding,Courtfield Healthcare Ltd,640.00, 30-Mar-2021
1194,Revenue,CAHD,Covid  - Workforce capacity,Grants to Voluntary Bodies,Courtfield Healthcare Ltd,1117.97, 25-Mar-2021
1195,Revenue,CAHD,Sexual Health,Other Small Contracts,Courtside Surgery,1824.67, 29-Mar-2021
1196,Revenue,CAHD,Sexual Health,Other Small Contracts,Courtside Surgery,2295.07, 29-Mar-2021
1197,Revenue,CAHD,NHS Health Checks,Other Small Contracts,Courtside Surgery,1947.33, 29-Mar-2021
1198,Revenue,CAHD,Drug and Alcohol Programme,Other Small Contracts,Courtside Surgery,1624.00, 29-Mar-2021
1199,Revenue,CAHD,Sexual Health,Other Small Contracts,Courtside Surgery,1824.67, 31-Mar-2021
1200,Revenue,CAHD,Sexual Health,Other Small Contracts,Courtside Surgery,2295.07, 31-Mar-2021
1201,Revenue,CAHD,NHS Health Checks,Other Small Contracts,Courtside Surgery,1947.33, 31-Mar-2021
1202,Revenue,CAHD,Drug and Alcohol Programme,Other Small Contracts,Courtside Surgery,1624.00, 31-Mar-2021
1203,Revenue,CAHD,S28A cases,Permanent Residential,Creedy Court,10597.96, 09-Mar-2021
1204,Revenue,CAHD,S28A cases,Permanent Residential,Creedy Court,8904.92, 09-Mar-2021
1205,Revenue,CAHD,North - Community based support,Permanent Residential,Creedy Court,14054.00, 09-Mar-2021
1206,Revenue,CAHD,EARLY YEARS DISABILITY  ACCES FUND,Preventative Assistance,Crossbows pre-school,635.00, 22-Mar-2021
1207,Revenue,CAHD,EARLY YEARS DEPRIVATION PAYMENT,Preventative Assistance,Crossways Pre-School,685.93, 22-Mar-2021
1208,Revenue,CAHD,Early Years Pupil Premium Grant,Preventative Assistance,Crossways Pre-School,540.60, 22-Mar-2021
1209,Revenue,CAHD,Flexible Homelessness Support Grant,Other Supplies & Services,Curo Places Limited,3000.00, 25-Mar-2021
1210,Revenue,CAHD,Flexible Homelessness Support Grant,Other Supplies & Services,Curo Places Limited,5000.00, 25-Mar-2021
1211,Revenue,CAHD,Flexible Homelessness Support Grant,Other Small Contracts,Curo Places Limited,15421.00, 25-Mar-2021
1212,Revenue,CAHD,Central - Commissioned Services,Supported Living,Cygnet Healthcare Limited,3304.00, 09-Mar-2021
1213,Revenue,CAHD,Drug and Alcohol Programme,Other Small Contracts,D H I,2050.00, 25-Mar-2021
1214,Revenue,CAHD,South - Commissioned Services,Permanent Residential,Daneswood,12759.56, 09-Mar-2021
1215,Revenue,CAHD,South - Commissioned Services,Day Care / Social Activities,Daneswood,1441.60, 09-Mar-2021
1216,Revenue,CAHD,North - Community based support,Permanent Residential,Daneswood,13579.68, 09-Mar-2021
1217,Revenue,CAHD,South - S117,Permanent Nursing,Danshell Healthcare Group,11437.64, 09-Mar-2021
1218,Revenue,CAHD,Jointly Funded H&SC Packages,Permanent Nursing,Danshell Healthcare Group,1697.16, 09-Mar-2021
1219,Revenue,CAHD,Learning Difficulties PSL,Rent,Individual,2400.00, 22-Mar-2021
1220,Revenue,CAHD,CSC - Vinney Green Secure Unit,R & M by Departments,Dart Valley Systems Limited,626.00, 19-Mar-2021
1221,Revenue,CAHD,Drug and Alcohol Programme,Other Small Contracts,Day Lewis - Horfield Branch,975.00, 29-Mar-2021
1222,Revenue,CAHD,Drug and Alcohol Programme,Other Small Contracts,Day Lewis - Horfield Branch,975.00, 31-Mar-2021
1223,Revenue,CAHD,North - Community based support,Day Care / Social Activities,Deafblind Uk,641.76, 02-Mar-2021
1224,Revenue,CAHD,South - Commissioned Services,Day Care / Social Activities,Deafblind Uk,836.58, 30-Mar-2021
1225,Revenue,CAHD,North - Community based support,Day Care / Social Activities,Deafblind Uk,641.76, 30-Mar-2021
1226,Revenue,CAHD,Central - Commissioned Services,Permanent Residential,Debt Recovery,8347.44, 09-Mar-2021
1227,Revenue,CAHD,South - Commissioned Services,Permanent Residential,Debt Recovery,8532.72, 09-Mar-2021
1228,Revenue,CAHD,North - Community based support,Permanent Nursing,Debt Recovery,8956.24, 09-Mar-2021
1229,Revenue,CAHD,North - Community based support,Permanent Nursing,Debt Recovery,7374.40, 09-Mar-2021
1230,Revenue,CAHD,Central - Commissioned Services,Permanent Residential,Debt Recovery,9234.08, 09-Mar-2021
1231,Revenue,CAHD,North - Community based support,Permanent Nursing,Debt Recovery,11209.92, 09-Mar-2021
1232,Revenue,CAHD,Jointly Funded H&SC Packages,Permanent Nursing,Debt Recovery,768.48, 09-Mar-2021
1233,Revenue,CAHD,North - Community based support,Permanent Nursing,Debt Recovery,7172.32, 09-Mar-2021
1234,Revenue,CAHD,Central - Commissioned Services,Permanent Nursing,Debt Recovery,11136.72, 09-Mar-2021
1235,Revenue,CAHD,North - Community based support,Permanent Residential,Debt Recovery,7287.84, 09-Mar-2021
1236,Revenue,CAHD,North - Community based support,Permanent Nursing,Debt Recovery,12549.92, 09-Mar-2021
1237,Revenue,CAHD,North - Community based support,Permanent Nursing,Debt Recovery,726.95, 09-Mar-2021
1238,Revenue,CAHD,North - Community based support,Permanent Nursing,Debt Recovery,8242.48, 09-Mar-2021
1239,Revenue,CAHD,South - Commissioned Services,Permanent Nursing,Debt Recovery,6437.72, 09-Mar-2021
1240,Revenue,CAHD,South Glos Users in South Glos Homes,Permanent Nursing,Deerhurst Nursing Home,735.68, 09-Mar-2021
1241,Revenue,CAHD,South - Commissioned Services,Permanent Nursing,Deerhurst Nursing Home,3881.40, 09-Mar-2021
1242,Revenue,CAHD,South Glos Users in South Glos Homes,Permanent Nursing,Deerhurst Nursing Home,735.68, 09-Mar-2021
1243,Revenue,CAHD,South - Commissioned Services,Permanent Nursing,Deerhurst Nursing Home,4160.00, 09-Mar-2021
1244,Revenue,CAHD,South Glos Users in South Glos Homes,Permanent Nursing,Deerhurst Nursing Home,2101.94, 09-Mar-2021
1245,Revenue,CAHD,South - Commissioned Services,Fees & Charges Income - General,Deerhurst Nursing Home,2718.17, 09-Mar-2021
1246,Revenue,CAHD,South - Commissioned Services,Permanent Nursing,Deerhurst Nursing Home,4400.00, 09-Mar-2021
1247,Revenue,CAHD,South Glos Users in South Glos Homes,Permanent Nursing,Deerhurst Nursing Home,735.68, 09-Mar-2021
1248,Revenue,CAHD,South - Commissioned Services,Day Care / Social Activities,Deerhurst Nursing Home,568.16, 09-Mar-2021
1249,Revenue,CAHD,South Glos Users in South Glos Homes,Permanent Nursing,Deerhurst Nursing Home,735.68, 09-Mar-2021
1250,Revenue,CAHD,South Glos Users in South Glos Homes,Permanent Nursing,Deerhurst Nursing Home,735.68, 09-Mar-2021
1251,Revenue,CAHD,South - Commissioned Services,Permanent Nursing,Deerhurst Nursing Home,4006.00, 09-Mar-2021
1252,Revenue,CAHD,South Glos Users in South Glos Homes,Permanent Nursing,Deerhurst Nursing Home,735.68, 09-Mar-2021
1253,Revenue,CAHD,North - Community based support,Permanent Nursing,Deerhurst Nursing Home,3891.20, 09-Mar-2021
1254,Revenue,CAHD,South - Commissioned Services,Permanent Nursing,Deerhurst Nursing Home,3965.12, 09-Mar-2021
1255,Revenue,CAHD,South Glos Users in South Glos Homes,Permanent Nursing,Deerhurst Nursing Home,735.68, 09-Mar-2021
1256,Revenue,CAHD,North - Community based support,Permanent Nursing,Deerhurst Nursing Home,4140.00, 09-Mar-2021
1257,Revenue,CAHD,South - Commissioned Services,Permanent Nursing,Deerhurst Nursing Home,4129.40, 09-Mar-2021
1258,Revenue,CAHD,South - Commissioned Services,Permanent Nursing,Deerhurst Nursing Home,4088.08, 09-Mar-2021
1259,Revenue,CAHD,South Glos Users in South Glos Homes,Permanent Nursing,Deerhurst Nursing Home,735.68, 09-Mar-2021
1260,Revenue,CAHD,South Glos Users in South Glos Homes,Permanent Nursing,Deerhurst Nursing Home,735.68, 09-Mar-2021
1261,Revenue,CAHD,South Glos Users in South Glos Homes,Permanent Nursing,Deerhurst Nursing Home,735.68, 09-Mar-2021
1262,Revenue,CAHD,North - Community based support,Permanent Nursing,Deerhurst Nursing Home,4088.08, 09-Mar-2021
1263,Revenue,CAHD,South Glos Users in South Glos Homes,Permanent Nursing,Deerhurst Nursing Home,735.68, 09-Mar-2021
1264,Revenue,CAHD,South - Commissioned Services,Permanent Nursing,Deerhurst Nursing Home,4086.08, 09-Mar-2021
1265,Revenue,CAHD,South Glos Users in South Glos Homes,Permanent Nursing,Deerhurst Nursing Home,735.68, 09-Mar-2021
1266,Revenue,CAHD,South Glos Users in South Glos Homes,Permanent Nursing,Deerhurst Nursing Home,735.68, 09-Mar-2021
1267,Revenue,CAHD,South - Commissioned Services,Permanent Nursing,Deerhurst Nursing Home,3969.04, 09-Mar-2021
1268,Revenue,CAHD,South Glos Users in South Glos Homes,Permanent Nursing,Deerhurst Nursing Home,735.68, 09-Mar-2021
1269,Revenue,CAHD,South - Commissioned Services,Permanent Nursing,Deerhurst Nursing Home,4535.08, 09-Mar-2021
1270,Revenue,CAHD,South Glos Users in South Glos Homes,Permanent Nursing,Deerhurst Nursing Home,2285.86, 09-Mar-2021
1271,Revenue,CAHD,South Glos Users in South Glos Homes,Permanent Nursing,Deerhurst Nursing Home,735.68, 09-Mar-2021
1272,Revenue,CAHD,South Glos Users in South Glos Homes,Permanent Nursing,Deerhurst Nursing Home,735.68, 09-Mar-2021
1273,Revenue,CAHD,South - Commissioned Services,Permanent Nursing,Deerhurst Nursing Home,4132.00, 09-Mar-2021
1274,Revenue,CAHD,South Glos Users in South Glos Homes,Permanent Nursing,Deerhurst Nursing Home,735.68, 09-Mar-2021
1275,Revenue,CAHD,South Glos Users in South Glos Homes,Permanent Nursing,Deerhurst Nursing Home,3993.69, 09-Mar-2021
1276,Revenue,CAHD,South Glos Users in South Glos Homes,Permanent Nursing,Deerhurst Nursing Home,735.68, 09-Mar-2021
1277,Revenue,CAHD,South Glos Users in South Glos Homes,Permanent Nursing,Deerhurst Nursing Home,735.68, 09-Mar-2021
1278,Revenue,CAHD,South Glos Users in South Glos Homes,Permanent Nursing,Deerhurst Nursing Home,735.68, 09-Mar-2021
1279,Revenue,CAHD,North - Community based support,Permanent Nursing,Deerhurst Nursing Home,4006.00, 09-Mar-2021
1280,Revenue,CAHD,South Glos Users in South Glos Homes,Permanent Nursing,Deerhurst Nursing Home,735.68, 09-Mar-2021
1281,Revenue,CAHD,South - Commissioned Services,Permanent Nursing,Deerhurst Nursing Home,4085.36, 09-Mar-2021
1282,Revenue,CAHD,South Glos Users in South Glos Homes,Permanent Nursing,Deerhurst Nursing Home,735.68, 09-Mar-2021
1283,Revenue,CAHD,South Glos Users in South Glos Homes,Permanent Nursing,Deerhurst Nursing Home,735.68, 09-Mar-2021
1284,Revenue,CAHD,South Glos Users in South Glos Homes,Permanent Nursing,Deerhurst Nursing Home,735.68, 09-Mar-2021
1285,Revenue,CAHD,South - Commissioned Services,Permanent Nursing,Deerhurst Nursing Home,4006.00, 09-Mar-2021
1286,Revenue,CAHD,South Glos Users in South Glos Homes,Permanent Nursing,Deerhurst Nursing Home,4492.90, 09-Mar-2021
1287,Revenue,CAHD,South Glos Users in South Glos Homes,Permanent Nursing,Deerhurst Nursing Home,735.68, 09-Mar-2021
1288,Revenue,CAHD,South - Commissioned Services,Permanent Residential,Deerhurst Nursing Home,4129.00, 09-Mar-2021
1289,Revenue,CAHD,South Glos Users in South Glos Homes,Permanent Nursing,Deerhurst Nursing Home,735.68, 09-Mar-2021
1290,Revenue,CAHD,South Glos Users in South Glos Homes,Permanent Nursing,Deerhurst Nursing Home,735.68, 09-Mar-2021
1291,Revenue,CAHD,South Glos Users in South Glos Homes,Permanent Nursing,Deerhurst Nursing Home,5465.05, 09-Mar-2021
1292,Revenue,CAHD,South Glos Users in South Glos Homes,Permanent Nursing,Deerhurst Nursing Home,735.68, 09-Mar-2021
1293,Revenue,CAHD,South Glos Users in South Glos Homes,Permanent Nursing,Deerhurst Nursing Home,5044.66, 09-Mar-2021
1294,Revenue,CAHD,South Glos Users in South Glos Homes,Permanent Nursing,Deerhurst Nursing Home,735.68, 09-Mar-2021
1295,Revenue,CAHD,South - Commissioned Services,Permanent Nursing,Deerhurst Nursing Home,4006.00, 09-Mar-2021
1296,Revenue,CAHD,South - Commissioned Services,Permanent Residential,Deerhurst Nursing Home,3891.20, 09-Mar-2021
1297,Revenue,CAHD,South Glos Users in South Glos Homes,Permanent Nursing,Deerhurst Nursing Home,735.68, 09-Mar-2021
1298,Revenue,CAHD,North - Community based support,Permanent Nursing,Deerhurst Nursing Home,3094.88, 09-Mar-2021
1299,Revenue,CAHD,South Glos Users in South Glos Homes,Permanent Nursing,Deerhurst Nursing Home,735.68, 09-Mar-2021
1300,Revenue,CAHD,South Glos Users in South Glos Homes,Permanent Nursing,Deerhurst Nursing Home,735.68, 09-Mar-2021
1301,Revenue,CAHD,South Glos Users in South Glos Homes,Permanent Nursing,Deerhurst Nursing Home,735.68, 09-Mar-2021
1302,Revenue,CAHD,South Glos Users in South Glos Homes,Permanent Nursing,Deerhurst Nursing Home,735.68, 09-Mar-2021
1303,Revenue,CAHD,South Glos Users in South Glos Homes,Permanent Nursing,Deerhurst Nursing Home,3967.42, 09-Mar-2021
1304,Revenue,CAHD,South Glos Users in South Glos Homes,Permanent Nursing,Deerhurst Nursing Home,735.68, 09-Mar-2021
1305,Revenue,CAHD,South Glos Users in South Glos Homes,Permanent Nursing,Deerhurst Nursing Home,735.68, 09-Mar-2021
1306,Revenue,CAHD,Covid  - Workforce capacity,Grants to Voluntary Bodies,Deerhurst Nursing Home,8544.51, 08-Mar-2021
1307,Revenue,CAHD,South - Commissioned Services,Supported Living,Design House,2714.44, 09-Mar-2021
1308,Revenue,CAHD,South - Commissioned Services,Other Small Contracts,Design House,3124.28, 09-Mar-2021
1309,Revenue,CAHD,South - Commissioned Services,Supported Living,Design House,3195.40, 09-Mar-2021
1310,Revenue,CAHD,South - Commissioned Services,Supported Living,Design House,3053.16, 09-Mar-2021
1311,Revenue,CAHD,South - Commissioned Services,Day Care / Social Activities,Design House,526.72, 09-Mar-2021
1312,Revenue,CAHD,18-25 Year Olds,Supported Living,Design House,3013.92, 09-Mar-2021
1313,Revenue,CAHD,Central - Commissioned Services,Day Care / Social Activities,Design House,2991.44, 09-Mar-2021
1314,Revenue,CAHD,South - Commissioned Services,Day Care / Social Activities,Design House,1317.04, 09-Mar-2021
1315,Revenue,CAHD,South - Commissioned Services,Supported Living,Design House,2691.36, 09-Mar-2021
1316,Revenue,CAHD,South - Commissioned Services,Supported Living,Design House,2691.36, 09-Mar-2021
1317,Revenue,CAHD,South - Commissioned Services,Other Small Contracts,Design House,2192.32, 09-Mar-2021
1318,Revenue,CAHD,South - Commissioned Services,Supported Living,Design House,1934.44, 09-Mar-2021
1319,Revenue,CAHD,South - Commissioned Services,Day Care / Social Activities,Design House,526.72, 09-Mar-2021
1320,Revenue,CAHD,South - Commissioned Services,Other Small Contracts,Design House,2566.92, 09-Mar-2021
1321,Revenue,CAHD,South - Commissioned Services,Supported Living,Design House,4393.28, 09-Mar-2021
1322,Revenue,CAHD,North - Community based support,Supported Living,Design House,3115.32, 09-Mar-2021
1323,Revenue,CAHD,South - Commissioned Services,Day Care / Social Activities,Design House,1536.08, 09-Mar-2021
1324,Revenue,CAHD,South - Commissioned Services,Supported Living,Design House,2983.16, 09-Mar-2021
1325,Revenue,CAHD,South - Commissioned Services,Supported Living,Design House,2593.64, 09-Mar-2021
1326,Revenue,CAHD,South - Commissioned Services,Supported Living,Design House,2302.64, 09-Mar-2021
1327,Revenue,CAHD,South - Commissioned Services,Supported Living,Design House,2302.64, 09-Mar-2021
1328,Revenue,CAHD,Bed and Breakfast,Bed & Breakfast,Designz Ltd,518.00, 01-Mar-2021
1329,Revenue,CAHD,Bed and Breakfast,Bed & Breakfast,Designz Ltd,518.00, 11-Mar-2021
1330,Revenue,CAHD,Bed and Breakfast,Bed & Breakfast,Designz Ltd,518.00, 16-Mar-2021
1331,Revenue,CAHD,Bed and Breakfast,Bed & Breakfast,Designz Ltd,518.00, 22-Mar-2021
1332,Revenue,CAHD,Community Support - North,Preventative Assistance,Direct Healthcare Group,1232.00, 09-Mar-2021
1333,Revenue,CAHD,Training - Adult Services,Training Expenses,Do The Write Thing,850.00, 03-Mar-2021
1334,Revenue,CAHD,Training Budget - Children`s Social Serv,Training Expenses,Do The Write Thing,850.00, 04-Mar-2021
1335,Revenue,CAHD,Sexual Health,Other Small Contracts,Downend Health Group,3085.83, 29-Mar-2021
1336,Revenue,CAHD,Sexual Health,Other Small Contracts,Downend Health Group,2391.66, 29-Mar-2021
1337,Revenue,CAHD,NHS Health Checks,Other Small Contracts,Downend Health Group,4906.67, 29-Mar-2021
1338,Revenue,CAHD,Drug and Alcohol Programme,Other Small Contracts,Downend Health Group,5717.83, 29-Mar-2021
1339,Revenue,CAHD,Sexual Health,Other Small Contracts,Downend Health Group,3085.83, 31-Mar-2021
1340,Revenue,CAHD,Sexual Health,Other Small Contracts,Downend Health Group,2391.66, 31-Mar-2021
1341,Revenue,CAHD,NHS Health Checks,Other Small Contracts,Downend Health Group,4906.67, 31-Mar-2021
1342,Revenue,CAHD,Drug and Alcohol Programme,Other Small Contracts,Downend Health Group,5717.83, 31-Mar-2021
1343,Revenue,CAHD,Statemented Support Academies,Other Public Bodies,Downend School,978.57, 24-Mar-2021
1344,Revenue,CAHD,Statemented Support Academies,Other Public Bodies,Downend School,660.24, 24-Mar-2021
1345,Revenue,CAHD,Statemented Support Academies,Other Public Bodies,Downend School,1025.73, 24-Mar-2021
1346,Revenue,CAHD,Statemented Support Academies,Other Public Bodies,Downend School,1013.94, 24-Mar-2021
1347,Revenue,CAHD,Statemented Support Academies,Other Public Bodies,Downend School,801.72, 24-Mar-2021
1348,Revenue,CAHD,Statemented Support Academies,Other Public Bodies,Downend School,530.67, 24-Mar-2021
1349,Revenue,CAHD,Statemented Support Academies,Other Public Bodies,Downend School,1108.26, 24-Mar-2021
1350,Revenue,CAHD,Statemented Support Academies,Other Public Bodies,Downend School,554.13, 24-Mar-2021
1351,Revenue,CAHD,Statemented Support Academies,Other Public Bodies,Downend School,666.00, 24-Mar-2021
1352,Revenue,CAHD,Statemented Support Academies,Other Public Bodies,Downend School,1079.67, 24-Mar-2021
1353,Revenue,CAHD,Statemented Support Academies,Other Public Bodies,Downend School,1438.38, 24-Mar-2021
1354,Revenue,CAHD,Statemented Support Academies,Other Public Bodies,Downend School,1709.55, 24-Mar-2021
1355,Revenue,CAHD,Statemented Support Academies,Other Public Bodies,Downend School,1192.50, 24-Mar-2021
1356,Revenue,CAHD,Statemented Support Academies,Other Public Bodies,Downend School,1544.49, 24-Mar-2021
1357,Revenue,CAHD,Schools Block Growth Contingency,Other Public Bodies,Downend School,78811.78, 12-Mar-2021
1358,Revenue,CAHD,Training - Adult Services,Training Expenses,Individual,750.00, 17-Mar-2021
1359,Revenue,CAHD,Social Lettings Agency,Rent,Individual,743.75, 22-Mar-2021
1360,Revenue,CAHD,Social Lettings Agency,Fees - General,Individual,13.16, 22-Mar-2021
1361,Revenue,CAHD,School Awards Ceremony,External Lecturers Fees,Dr Helen Curran,500.00, 25-Mar-2021
1362,Revenue,CAHD,ELS - Skills,Computer Equipment - Purchase,DSG Retail Limited,1465.23, 19-Mar-2021
1363,Revenue,CAHD,CSC - Care Leavers Support Costs,Leaving Care,Durham County Council,32705.00, 05-Mar-2021
1364,Revenue,CAHD,CSC - Therapeutic Foster Care Programm,Fostering Plus Enhanced Fee,Individual,573.00, 05-Mar-2021
1365,Revenue,CAHD,CSC - Therapeutic Foster Care Programm,Fostering Plus Enhanced Fee,Individual,573.00, 12-Mar-2021
1366,Revenue,CAHD,CSC - Therapeutic Foster Care Programm,Fostering Plus Enhanced Fee,Individual,573.00, 19-Mar-2021
1367,Revenue,CAHD,CSC - Therapeutic Foster Care Programm,Fostering Plus Enhanced Fee,Individual,573.00, 26-Mar-2021
1368,Revenue,CAHD,North - Community based support,Permanent Residential,East Court,2763.56, 09-Mar-2021
1369,Revenue,CAHD,CSC - Residential Placements,Permanent Residential,East Sussex County Council,33580.00, 25-Mar-2021
1370,Revenue,CAHD,User Involvement,Training Expenses,Easy Read Online,940.00, 19-Mar-2021
1371,Revenue,CAHD,Central - Commissioned Services,Permanent Residential,Edendale Lodge,3000.00, 09-Mar-2021
1372,Revenue,CAHD,Training - Adult Services,Training Expenses,Edge Training & Consultancy Limited,875.00, 05-Mar-2021
1373,Revenue,CAHD,South - Commissioned Services,Permanent Residential,Edgemont House Ltd,3200.00, 09-Mar-2021
1374,Revenue,CAHD,South - bed purchasing and direct  payments,Permanent Residential,Edgemont House Ltd,3264.00, 09-Mar-2021
1375,Revenue,CAHD,South - Commissioned Services,Permanent Residential,Edgemont House Ltd,765.00, 09-Mar-2021
1376,Revenue,CAHD,South - Commissioned Services,Permanent Residential,Edgemont House Ltd,2295.00, 09-Mar-2021
1377,Revenue,CAHD,South - Commissioned Services,Fees & Charges Income - General,Edgemont House Ltd,595.40, 09-Mar-2021
1378,Revenue,CAHD,Covid  - Workforce capacity,Grants to Voluntary Bodies,Edgemont House Ltd,1277.68, 08-Mar-2021
1379,Revenue,CAHD,South - Commissioned Services,Permanent Nursing,Edgemont View Ltd,3500.00, 09-Mar-2021
1380,Revenue,CAHD,South Glos Users in South Glos Homes,Permanent Nursing,Edgemont View Ltd,735.68, 09-Mar-2021
1381,Revenue,CAHD,South - Commissioned Services,Permanent Nursing,Edgemont View Ltd,4125.00, 09-Mar-2021
1382,Revenue,CAHD,South - Commissioned Services,Fees & Charges Income - General,Edgemont View Ltd,773.57, 09-Mar-2021
1383,Revenue,CAHD,South - Commissioned Services,Permanent Nursing,Edgemont View Ltd,8051.44, 09-Mar-2021
1384,Revenue,CAHD,South - Commissioned Services,Permanent Nursing,Edgemont View Ltd,3500.00, 09-Mar-2021
1385,Revenue,CAHD,South Glos Users in South Glos Homes,Permanent Nursing,Edgemont View Ltd,735.68, 09-Mar-2021
1386,Revenue,CAHD,South Glos Users in South Glos Homes,Permanent Nursing,Edgemont View Ltd,735.68, 09-Mar-2021
1387,Revenue,CAHD,South - Commissioned Services,Respite Emergency - Residential,Edgemont View Ltd,582.86, 09-Mar-2021
1388,Revenue,CAHD,South - Commissioned Services,Permanent Nursing,Edgemont View Ltd,3400.00, 09-Mar-2021
1389,Revenue,CAHD,South Glos Users in South Glos Homes,Permanent Nursing,Edgemont View Ltd,735.68, 09-Mar-2021
1390,Revenue,CAHD,South Glos Users in South Glos Homes,Permanent Nursing,Edgemont View Ltd,735.68, 09-Mar-2021
1391,Revenue,CAHD,South - Commissioned Services,Permanent Nursing,Edgemont View Ltd,3600.00, 09-Mar-2021
1392,Revenue,CAHD,South Glos Users in South Glos Homes,Permanent Nursing,Edgemont View Ltd,735.68, 09-Mar-2021
1393,Revenue,CAHD,South Glos Users in South Glos Homes,Permanent Nursing,Edgemont View Ltd,7356.80, 09-Mar-2021
1394,Revenue,CAHD,South - Commissioned Services,Permanent Nursing,Edgemont View Ltd,3500.00, 09-Mar-2021
1395,Revenue,CAHD,South Glos Users in South Glos Homes,Permanent Nursing,Edgemont View Ltd,735.68, 09-Mar-2021
1396,Revenue,CAHD,South - Commissioned Services,Permanent Nursing,Edgemont View Ltd,8864.29, 09-Mar-2021
1397,Revenue,CAHD,South - Commissioned Services,Permanent Nursing,Edgemont View Ltd,3400.00, 09-Mar-2021
1398,Revenue,CAHD,South - Commissioned Services,Respite Planned - Residential,Edgemont View Ltd,1600.00, 09-Mar-2021
1399,Revenue,CAHD,South Glos Users in South Glos Homes,Permanent Nursing,Edgemont View Ltd,735.68, 09-Mar-2021
1400,Revenue,CAHD,South Glos Users in South Glos Homes,Permanent Nursing,Edgemont View Ltd,735.68, 09-Mar-2021
1401,Revenue,CAHD,South Glos Users in South Glos Homes,Permanent Nursing,Edgemont View Ltd,735.68, 09-Mar-2021
1402,Revenue,CAHD,South Glos Users in South Glos Homes,Permanent Nursing,Edgemont View Ltd,735.68, 09-Mar-2021
1403,Revenue,CAHD,South - Commissioned Services,Permanent Nursing,Edgemont View Ltd,3655.68, 09-Mar-2021
1404,Revenue,CAHD,South Glos Users in South Glos Homes,Permanent Nursing,Edgemont View Ltd,735.68, 09-Mar-2021
1405,Revenue,CAHD,South - Commissioned Services,Respite Planned - Nursing,Edgemont View Ltd,4896.00, 09-Mar-2021
1406,Revenue,CAHD,South - Commissioned Services,Respite Planned - Nursing,Edgemont View Ltd,4196.57, 09-Mar-2021
1407,Revenue,CAHD,Covid  - Workforce capacity,Grants to Voluntary Bodies,Edgemont View Ltd,1836.67, 08-Mar-2021
1408,Revenue,CAHD,Planning and Partnerships Procurement,Other Supplies & Services,Eldercare,2670.50, 03-Mar-2021
1409,Revenue,CAHD,Planning and Partnerships Procurement,Other Supplies & Services,Eldercare,450.00, 03-Mar-2021
1410,Revenue,CAHD,Planning and Partnerships Procurement,Other Supplies & Services,Eldercare,2668.75, 31-Mar-2021
1411,Revenue,CAHD,Planning and Partnerships Procurement,Other Supplies & Services,Eldercare,2621.08, 02-Mar-2021
1412,Revenue,CAHD,Planning and Partnerships Procurement,Other Supplies & Services,Eldercare,2378.95, 30-Mar-2021
1413,Revenue,CAHD,Supporting People Programme,Grants to Voluntary Bodies,Elim Housing Association Limited,5362.00, 01-Mar-2021
1414,Revenue,CAHD,Community Support - North,Preventative Assistance,Elite Hygiene Services Limited,2080.00, 09-Mar-2021
1415,Revenue,CAHD,Social Lettings Agency,Rent,Individual,1169.28, 12-Mar-2021
1416,Revenue,CAHD,Social Lettings Agency,Fees - General,Individual,15.12, 12-Mar-2021
1417,Revenue,CAHD,CSC - Vinney Green Secure Unit,Training Expenses,Elysium Healthcare Ltd,675.00, 25-Mar-2021
1418,Revenue,CAHD,Sexual Health,Other Small Contracts,Emersons Green Medical Centre,1046.50, 29-Mar-2021
1419,Revenue,CAHD,Sexual Health,Other Small Contracts,Emersons Green Medical Centre,1025.47, 29-Mar-2021
1420,Revenue,CAHD,NHS Health Checks,Other Small Contracts,Emersons Green Medical Centre,743.67, 29-Mar-2021
1421,Revenue,CAHD,Drug and Alcohol Programme,Other Small Contracts,Emersons Green Medical Centre,1522.50, 29-Mar-2021
1422,Revenue,CAHD,Sexual Health,Other Small Contracts,Emersons Green Medical Centre,1046.50, 31-Mar-2021
1423,Revenue,CAHD,Sexual Health,Other Small Contracts,Emersons Green Medical Centre,1025.47, 31-Mar-2021
1424,Revenue,CAHD,NHS Health Checks,Other Small Contracts,Emersons Green Medical Centre,743.67, 31-Mar-2021
1425,Revenue,CAHD,Drug and Alcohol Programme,Other Small Contracts,Emersons Green Medical Centre,1522.50, 31-Mar-2021
1426,Revenue,CAHD,Special ISB,Other Public Bodies,Enable Trust,7643.88, 22-Mar-2021
1427,Revenue,CAHD,Special ISB,Other Public Bodies,Enable Trust,1540.83, 22-Mar-2021
1428,Revenue,CAHD,Special ISB,Other Public Bodies,Enable Trust,1175.87, 22-Mar-2021
1429,Revenue,CAHD,Special ISB,Other Public Bodies,Enable Trust,1175.87, 22-Mar-2021
1430,Revenue,CAHD,Special ISB,Other Public Bodies,Enable Trust,892.05, 22-Mar-2021
1431,Revenue,CAHD,Special ISB,Other Public Bodies,Enable Trust,1540.83, 22-Mar-2021
1432,Revenue,CAHD,Special ISB,Other Public Bodies,Enable Trust,1540.83, 22-Mar-2021
1433,Revenue,CAHD,Special ISB,Other Public Bodies,Enable Trust,1175.87, 22-Mar-2021
1434,Revenue,CAHD,Special ISB,Other Public Bodies,Enable Trust,1175.87, 22-Mar-2021
1435,Revenue,CAHD,Special ISB,Other Public Bodies,Enable Trust,1175.87, 22-Mar-2021
1436,Revenue,CAHD,Special ISB,Other Public Bodies,Enable Trust,1540.83, 22-Mar-2021
1437,Revenue,CAHD,Special ISB,Other Public Bodies,Enable Trust,648.70, 22-Mar-2021
1438,Revenue,CAHD,Special ISB,Other Public Bodies,Enable Trust,892.05, 22-Mar-2021
1439,Revenue,CAHD,Special ISB,Other Public Bodies,Enable Trust,892.05, 22-Mar-2021
1440,Revenue,CAHD,Special ISB,Other Public Bodies,Enable Trust,1175.87, 22-Mar-2021
1441,Revenue,CAHD,Special ISB,Other Public Bodies,Enable Trust,1175.87, 22-Mar-2021
1442,Revenue,CAHD,Special ISB,Other Public Bodies,Enable Trust,1175.87, 22-Mar-2021
1443,Revenue,CAHD,Special ISB,Other Public Bodies,Enable Trust,1540.83, 22-Mar-2021
1444,Revenue,CAHD,Special ISB,Other Public Bodies,Enable Trust,648.70, 22-Mar-2021
1445,Revenue,CAHD,Special ISB,Other Public Bodies,Enable Trust,1702.96, 22-Mar-2021
1446,Revenue,CAHD,Special ISB,Other Public Bodies,Enable Trust,1540.83, 22-Mar-2021
1447,Revenue,CAHD,Special ISB,Other Public Bodies,Enable Trust,1175.87, 22-Mar-2021
1448,Revenue,CAHD,Special ISB,Other Public Bodies,Enable Trust,1175.87, 22-Mar-2021
1449,Revenue,CAHD,Special ISB,Other Public Bodies,Enable Trust,892.05, 22-Mar-2021
1450,Revenue,CAHD,Special ISB,Other Public Bodies,Enable Trust,1175.87, 22-Mar-2021
1451,Revenue,CAHD,Special ISB,Other Public Bodies,Enable Trust,892.05, 22-Mar-2021
1452,Revenue,CAHD,Special ISB,Other Public Bodies,Enable Trust,2189.53, 22-Mar-2021
1453,Revenue,CAHD,Special ISB,Other Public Bodies,Enable Trust,1175.87, 22-Mar-2021
1454,Revenue,CAHD,Special ISB,Other Public Bodies,Enable Trust,1175.87, 22-Mar-2021
1455,Revenue,CAHD,Special ISB,Other Public Bodies,Enable Trust,1175.87, 22-Mar-2021
1456,Revenue,CAHD,Special ISB,Other Public Bodies,Enable Trust,1175.87, 22-Mar-2021
1457,Revenue,CAHD,Special ISB,Other Public Bodies,Enable Trust,1175.87, 22-Mar-2021
1458,Revenue,CAHD,Special ISB,Other Public Bodies,Enable Trust,2189.53, 22-Mar-2021
1459,Revenue,CAHD,Special ISB,Other Public Bodies,Enable Trust,1175.87, 22-Mar-2021
1460,Revenue,CAHD,Special ISB,Other Public Bodies,Enable Trust,1540.83, 22-Mar-2021
1461,Revenue,CAHD,Special ISB,Other Public Bodies,Enable Trust,892.05, 22-Mar-2021
1462,Revenue,CAHD,Special ISB,Other Public Bodies,Enable Trust,1540.83, 22-Mar-2021
1463,Revenue,CAHD,Special ISB,Other Public Bodies,Enable Trust,1175.87, 22-Mar-2021
1464,Revenue,CAHD,Special ISB,Other Public Bodies,Enable Trust,1540.83, 22-Mar-2021
1465,Revenue,CAHD,Special ISB,Other Public Bodies,Enable Trust,1175.87, 22-Mar-2021
1466,Revenue,CAHD,Special ISB,Other Public Bodies,Enable Trust,1540.83, 22-Mar-2021
1467,Revenue,CAHD,Special ISB,Other Public Bodies,Enable Trust,1175.87, 22-Mar-2021
1468,Revenue,CAHD,Special ISB,Other Public Bodies,Enable Trust,1175.87, 22-Mar-2021
1469,Revenue,CAHD,Special ISB,Other Public Bodies,Enable Trust,1175.87, 22-Mar-2021
1470,Revenue,CAHD,Special ISB,Other Public Bodies,Enable Trust,1175.87, 22-Mar-2021
1471,Revenue,CAHD,Special ISB,Other Public Bodies,Enable Trust,2189.53, 22-Mar-2021
1472,Revenue,CAHD,Special ISB,Other Public Bodies,Enable Trust,1540.83, 22-Mar-2021
1473,Revenue,CAHD,Special ISB,Other Public Bodies,Enable Trust,892.05, 22-Mar-2021
1474,Revenue,CAHD,Special ISB,Other Public Bodies,Enable Trust,892.05, 22-Mar-2021
1475,Revenue,CAHD,Special ISB,Other Public Bodies,Enable Trust,1540.83, 22-Mar-2021
1476,Revenue,CAHD,Special ISB,Other Public Bodies,Enable Trust,1540.83, 22-Mar-2021
1477,Revenue,CAHD,Special ISB,Other Public Bodies,Enable Trust,1175.87, 22-Mar-2021
1478,Revenue,CAHD,Special ISB,Other Public Bodies,Enable Trust,1175.87, 22-Mar-2021
1479,Revenue,CAHD,Special ISB,Other Public Bodies,Enable Trust,1540.83, 22-Mar-2021
1480,Revenue,CAHD,Special ISB,Other Public Bodies,Enable Trust,1540.83, 22-Mar-2021
1481,Revenue,CAHD,Special ISB,Other Public Bodies,Enable Trust,1175.87, 22-Mar-2021
1482,Revenue,CAHD,Special ISB,Other Public Bodies,Enable Trust,1175.87, 22-Mar-2021
1483,Revenue,CAHD,Special ISB,Other Public Bodies,Enable Trust,1175.87, 22-Mar-2021
1484,Revenue,CAHD,Special ISB,Other Public Bodies,Enable Trust,1175.87, 22-Mar-2021
1485,Revenue,CAHD,Special ISB,Other Public Bodies,Enable Trust,1540.83, 22-Mar-2021
1486,Revenue,CAHD,Special ISB,Other Public Bodies,Enable Trust,2189.53, 22-Mar-2021
1487,Revenue,CAHD,Special ISB,Other Public Bodies,Enable Trust,2189.53, 22-Mar-2021
1488,Revenue,CAHD,Special ISB,Other Public Bodies,Enable Trust,1175.87, 22-Mar-2021
1489,Revenue,CAHD,Special ISB,Other Public Bodies,Enable Trust,648.70, 22-Mar-2021
1490,Revenue,CAHD,Special ISB,Other Public Bodies,Enable Trust,1175.87, 22-Mar-2021
1491,Revenue,CAHD,Special ISB,Other Public Bodies,Enable Trust,1175.87, 22-Mar-2021
1492,Revenue,CAHD,Special ISB,Other Public Bodies,Enable Trust,892.05, 22-Mar-2021
1493,Revenue,CAHD,Special ISB,Other Public Bodies,Enable Trust,1175.87, 22-Mar-2021
1494,Revenue,CAHD,Special ISB,Other Public Bodies,Enable Trust,892.05, 22-Mar-2021
1495,Revenue,CAHD,Special ISB,Other Public Bodies,Enable Trust,1540.83, 22-Mar-2021
1496,Revenue,CAHD,Special ISB,Other Public Bodies,Enable Trust,1175.87, 22-Mar-2021
1497,Revenue,CAHD,Special ISB,Other Public Bodies,Enable Trust,892.05, 22-Mar-2021
1498,Revenue,CAHD,Special ISB,Other Public Bodies,Enable Trust,1540.83, 22-Mar-2021
1499,Revenue,CAHD,Special ISB,Other Public Bodies,Enable Trust,1540.83, 22-Mar-2021
1500,Revenue,CAHD,Special ISB,Other Public Bodies,Enable Trust,1175.87, 22-Mar-2021
1501,Revenue,CAHD,Special ISB,Other Public Bodies,Enable Trust,2189.53, 22-Mar-2021
1502,Revenue,CAHD,Special ISB,Other Public Bodies,Enable Trust,2189.53, 22-Mar-2021
1503,Revenue,CAHD,Special ISB,Other Public Bodies,Enable Trust,2189.53, 22-Mar-2021
1504,Revenue,CAHD,Special ISB,Other Public Bodies,Enable Trust,892.05, 22-Mar-2021
1505,Revenue,CAHD,Special ISB,Other Public Bodies,Enable Trust,892.05, 22-Mar-2021
1506,Revenue,CAHD,Special ISB,Other Public Bodies,Enable Trust,1702.96, 22-Mar-2021
1507,Revenue,CAHD,Special ISB,Other Public Bodies,Enable Trust,8041.46, 22-Mar-2021
1508,Revenue,CAHD,Special ISB,Other Public Bodies,Enable Trust,1175.87, 22-Mar-2021
1509,Revenue,CAHD,Special ISB,Other Public Bodies,Enable Trust,849.32, 22-Mar-2021
1510,Revenue,CAHD,Special ISB,Other Public Bodies,Enable Trust,1175.87, 22-Mar-2021
1511,Revenue,CAHD,Special ISB,Other Public Bodies,Enable Trust,1702.96, 22-Mar-2021
1512,Revenue,CAHD,Special ISB,Other Public Bodies,Enable Trust,892.05, 22-Mar-2021
1513,Revenue,CAHD,Special ISB,Other Public Bodies,Enable Trust,1702.96, 22-Mar-2021
1514,Revenue,CAHD,Special ISB,Other Public Bodies,Enable Trust,1175.87, 22-Mar-2021
1515,Revenue,CAHD,Special ISB,Other Public Bodies,Enable Trust,2189.53, 22-Mar-2021
1516,Revenue,CAHD,Special ISB,Other Public Bodies,Enable Trust,2189.53, 22-Mar-2021
1517,Revenue,CAHD,Special ISB,Other Public Bodies,Enable Trust,1508.33, 22-Mar-2021
1518,Revenue,CAHD,Special ISB,Other Public Bodies,Enable Trust,892.05, 22-Mar-2021
1519,Revenue,CAHD,Special ISB,Other Public Bodies,Enable Trust,892.05, 22-Mar-2021
1520,Revenue,CAHD,Special ISB,Other Public Bodies,Enable Trust,2513.88, 22-Mar-2021
1521,Revenue,CAHD,Special ISB,Other Public Bodies,Enable Trust,892.05, 22-Mar-2021
1522,Revenue,CAHD,Special ISB,Other Public Bodies,Enable Trust,892.05, 22-Mar-2021
1523,Revenue,CAHD,Special ISB,Other Public Bodies,Enable Trust,1702.96, 22-Mar-2021
1524,Revenue,CAHD,Special ISB,Other Public Bodies,Enable Trust,1702.96, 22-Mar-2021
1525,Revenue,CAHD,Special ISB,Other Public Bodies,Enable Trust,1702.96, 22-Mar-2021
1526,Revenue,CAHD,Special ISB,Other Public Bodies,Enable Trust,1702.96, 22-Mar-2021
1527,Revenue,CAHD,Special ISB,Other Public Bodies,Enable Trust,1175.87, 22-Mar-2021
1528,Revenue,CAHD,Special ISB,Other Public Bodies,Enable Trust,1175.87, 22-Mar-2021
1529,Revenue,CAHD,Special ISB,Other Public Bodies,Enable Trust,1702.96, 22-Mar-2021
1530,Revenue,CAHD,Special ISB,Other Public Bodies,Enable Trust,1175.87, 22-Mar-2021
1531,Revenue,CAHD,Special ISB,Other Public Bodies,Enable Trust,1702.96, 22-Mar-2021
1532,Revenue,CAHD,Special ISB,Other Public Bodies,Enable Trust,1175.87, 22-Mar-2021
1533,Revenue,CAHD,Special ISB,Other Public Bodies,Enable Trust,1702.96, 22-Mar-2021
1534,Revenue,CAHD,Special ISB,Other Public Bodies,Enable Trust,1175.87, 22-Mar-2021
1535,Revenue,CAHD,Special ISB,Other Public Bodies,Enable Trust,1175.87, 22-Mar-2021
1536,Revenue,CAHD,Special ISB,Other Public Bodies,Enable Trust,1175.87, 22-Mar-2021
1537,Revenue,CAHD,Special ISB,Other Public Bodies,Enable Trust,1175.87, 22-Mar-2021
1538,Revenue,CAHD,Special ISB,Other Public Bodies,Enable Trust,1175.87, 22-Mar-2021
1539,Revenue,CAHD,Special ISB,Other Public Bodies,Enable Trust,1175.87, 22-Mar-2021
1540,Revenue,CAHD,Special ISB,Other Public Bodies,Enable Trust,2189.53, 22-Mar-2021
1541,Revenue,CAHD,Special ISB,Other Public Bodies,Enable Trust,1702.96, 22-Mar-2021
1542,Revenue,CAHD,Special ISB,Other Public Bodies,Enable Trust,1702.96, 22-Mar-2021
1543,Revenue,CAHD,Special ISB,Other Public Bodies,Enable Trust,892.05, 22-Mar-2021
1544,Revenue,CAHD,Special ISB,Other Public Bodies,Enable Trust,648.70, 22-Mar-2021
1545,Revenue,CAHD,Special ISB,Other Public Bodies,Enable Trust,1175.87, 22-Mar-2021
1546,Revenue,CAHD,Special ISB,Other Public Bodies,Enable Trust,892.05, 22-Mar-2021
1547,Revenue,CAHD,Special ISB,Other Public Bodies,Enable Trust,1175.87, 22-Mar-2021
1548,Revenue,CAHD,Special ISB,Other Public Bodies,Enable Trust,1702.96, 22-Mar-2021
1549,Revenue,CAHD,Special ISB,Other Public Bodies,Enable Trust,1540.83, 22-Mar-2021
1550,Revenue,CAHD,Special ISB,Other Public Bodies,Enable Trust,892.05, 22-Mar-2021
1551,Revenue,CAHD,Special ISB,Other Public Bodies,Enable Trust,1702.96, 22-Mar-2021
1552,Revenue,CAHD,Special ISB,Other Public Bodies,Enable Trust,1175.87, 22-Mar-2021
1553,Revenue,CAHD,Special ISB,Other Public Bodies,Enable Trust,1175.87, 22-Mar-2021
1554,Revenue,CAHD,Special ISB,Other Public Bodies,Enable Trust,1175.87, 22-Mar-2021
1555,Revenue,CAHD,Special ISB,Other Public Bodies,Enable Trust,892.05, 22-Mar-2021
1556,Revenue,CAHD,Special ISB,Other Public Bodies,Enable Trust,892.05, 22-Mar-2021
1557,Revenue,CAHD,Special ISB,Other Public Bodies,Enable Trust,892.05, 22-Mar-2021
1558,Revenue,CAHD,Special ISB,Other Public Bodies,Enable Trust,1175.87, 22-Mar-2021
1559,Revenue,CAHD,Special ISB,Other Public Bodies,Enable Trust,892.05, 22-Mar-2021
1560,Revenue,CAHD,Special ISB,Other Public Bodies,Enable Trust,892.05, 22-Mar-2021
1561,Revenue,CAHD,Special ISB,Other Public Bodies,Enable Trust,1175.87, 22-Mar-2021
1562,Revenue,CAHD,Special ISB,Other Public Bodies,Enable Trust,1175.87, 22-Mar-2021
1563,Revenue,CAHD,Special ISB,Other Public Bodies,Enable Trust,892.05, 22-Mar-2021
1564,Revenue,CAHD,Special ISB,Other Public Bodies,Enable Trust,892.05, 22-Mar-2021
1565,Revenue,CAHD,Special ISB,Other Public Bodies,Enable Trust,1175.87, 22-Mar-2021
1566,Revenue,CAHD,Special ISB,Other Public Bodies,Enable Trust,1175.87, 22-Mar-2021
1567,Revenue,CAHD,Special ISB,Other Public Bodies,Enable Trust,1175.87, 22-Mar-2021
1568,Revenue,CAHD,Special ISB,Other Public Bodies,Enable Trust,1702.96, 22-Mar-2021
1569,Revenue,CAHD,Special ISB,Other Public Bodies,Enable Trust,1175.87, 22-Mar-2021
1570,Revenue,CAHD,Special ISB,Other Public Bodies,Enable Trust,892.05, 22-Mar-2021
1571,Revenue,CAHD,Special ISB,Other Public Bodies,Enable Trust,892.05, 22-Mar-2021
1572,Revenue,CAHD,Special ISB,Other Public Bodies,Enable Trust,2189.53, 22-Mar-2021
1573,Revenue,CAHD,Special ISB,Other Public Bodies,Enable Trust,1175.87, 22-Mar-2021
1574,Revenue,CAHD,Special ISB,Other Public Bodies,Enable Trust,892.05, 22-Mar-2021
1575,Revenue,CAHD,Special ISB,Other Public Bodies,Enable Trust,2189.53, 22-Mar-2021
1576,Revenue,CAHD,Special ISB,Other Public Bodies,Enable Trust,1540.83, 22-Mar-2021
1577,Revenue,CAHD,Special ISB,Other Public Bodies,Enable Trust,648.70, 22-Mar-2021
1578,Revenue,CAHD,Special ISB,Other Public Bodies,Enable Trust,1175.87, 22-Mar-2021
1579,Revenue,CAHD,Special ISB,Other Public Bodies,Enable Trust,2189.53, 22-Mar-2021
1580,Revenue,CAHD,Special ISB,Other Public Bodies,Enable Trust,1175.87, 22-Mar-2021
1581,Revenue,CAHD,Special ISB,Other Public Bodies,Enable Trust,2189.53, 22-Mar-2021
1582,Revenue,CAHD,Special ISB,Other Public Bodies,Enable Trust,1021.76, 22-Mar-2021
1583,Revenue,CAHD,Special ISB,Other Public Bodies,Enable Trust,1702.96, 22-Mar-2021
1584,Revenue,CAHD,Special ISB,Other Public Bodies,Enable Trust,1702.96, 22-Mar-2021
1585,Revenue,CAHD,Special ISB,Other Public Bodies,Enable Trust,1702.96, 22-Mar-2021
1586,Revenue,CAHD,Special ISB,Other Public Bodies,Enable Trust,2513.88, 22-Mar-2021
1587,Revenue,CAHD,Special ISB,Other Public Bodies,Enable Trust,2189.53, 22-Mar-2021
1588,Revenue,CAHD,Special ISB,Other Public Bodies,Enable Trust,1702.96, 22-Mar-2021
1589,Revenue,CAHD,Special ISB,Other Public Bodies,Enable Trust,1702.96, 22-Mar-2021
1590,Revenue,CAHD,Special ISB,Other Public Bodies,Enable Trust,1175.87, 22-Mar-2021
1591,Revenue,CAHD,Special ISB,Other Public Bodies,Enable Trust,1702.96, 22-Mar-2021
1592,Revenue,CAHD,Special ISB,Other Public Bodies,Enable Trust,2513.88, 22-Mar-2021
1593,Revenue,CAHD,Special ISB,Other Public Bodies,Enable Trust,2513.88, 22-Mar-2021
1594,Revenue,CAHD,Special ISB,Other Public Bodies,Enable Trust,1313.74, 22-Mar-2021
1595,Revenue,CAHD,Special ISB,Other Public Bodies,Enable Trust,1175.87, 22-Mar-2021
1596,Revenue,CAHD,Special ISB,Other Public Bodies,Enable Trust,2189.53, 22-Mar-2021
1597,Revenue,CAHD,Special ISB,Other Public Bodies,Enable Trust,1175.87, 22-Mar-2021
1598,Revenue,CAHD,Special ISB,Other Public Bodies,Enable Trust,1540.83, 22-Mar-2021
1599,Revenue,CAHD,Special ISB,Other Public Bodies,Enable Trust,1702.96, 22-Mar-2021
1600,Revenue,CAHD,Special ISB,Other Public Bodies,Enable Trust,1702.96, 22-Mar-2021
1601,Revenue,CAHD,Special ISB,Other Public Bodies,Enable Trust,1095.52, 01-Mar-2021
1602,Revenue,CAHD,Specialist Assessments High Needs,Other Private Contractors,Enable Trust,700.00, 11-Mar-2021
1603,Revenue,CAHD,Specialist Assessments High Needs,Other Private Contractors,Enable Trust,7220.00, 12-Mar-2021
1604,Revenue,CAHD,CSC - Agency Fostering,Foster Parent Allowances,Enhanced Foster Care Limited,4839.10, 04-Mar-2021
1605,Revenue,CAHD,CSC - Agency Fostering,Foster Parent Allowances,Enhanced Foster Care Limited,4839.10, 08-Mar-2021
1606,Revenue,CAHD,CSC - Agency Fostering,Foster Parent Allowances,Enhanced Foster Care Limited,4370.80, 08-Mar-2021
1607,Revenue,CAHD,CSC - Agency Fostering,Foster Parent Allowances,Enhanced Foster Care Limited,4370.80, 08-Mar-2021
1608,Revenue,CAHD,CSC - Agency Fostering,Foster Parent Allowances,Enhanced Foster Care Limited,2809.80, 04-Mar-2021
1609,Revenue,CAHD,CSC - Agency Fostering,Foster Parent Allowances,Enhanced Foster Care Limited,2809.80, 04-Mar-2021
1610,Revenue,CAHD,North - Community based support,Other Small Contracts,Epiphany In Care,4118.40, 17-Mar-2021
1611,Revenue,CAHD,North - Community based support,Other Small Contracts,Epiphany In Care,10819.20, 01-Mar-2021
1612,Revenue,CAHD,Central - Commissioned Services,Other Small Contracts,Epiphany In Care,1188.00, 01-Mar-2021
1613,Revenue,CAHD,North - Community based support,Other Small Contracts,Epiphany In Care,4118.40, 22-Mar-2021
1614,Revenue,CAHD,Central - Commissioned Services,Other Small Contracts,Epiphany In Care,1029.60, 26-Mar-2021
1615,Revenue,CAHD,North - S117,Permanent Residential,Evolve House,3276.80, 09-Mar-2021
1616,Revenue,CAHD,Placements OLA Special Schools and RB,Other L.A.s - General,Excalibur Academies Trust T/A,2238.78, 23-Mar-2021
1617,Revenue,CAHD,Covid 19- Spend on behalf of NHS,Project Funding,Excel Living Limited,1000.00, 30-Mar-2021
1618,Revenue,CAHD,Direct Payments -Central costs,Other Supplies & Services,Experian Limited,1820.00, 16-Mar-2021
1619,Revenue,CAHD,Social Lettings Agency,Prop.Serv. General Repairs,Express Property Services Limited,303.00, 17-Mar-2021
1620,Revenue,CAHD,Social Lettings Agency,Prop.Serv. General Repairs,Express Property Services Limited,170.00, 17-Mar-2021
1621,Revenue,CAHD,Social Lettings Agency,Prop.Serv. General Repairs,Express Property Services Limited,335.00, 17-Mar-2021
1622,Revenue,CAHD,Social Lettings Agency,Prop.Serv. General Repairs,Express Property Services Limited,193.60, 17-Mar-2021
1623,Revenue,CAHD,Social Lettings Agency,Prop.Serv. General Repairs,Express Property Services Limited,395.00, 17-Mar-2021
1624,Revenue,CAHD,Social Lettings Agency,Prop.Serv. General Repairs,Express Property Services Limited,487.50, 17-Mar-2021
1625,Revenue,CAHD,Social Lettings Agency,Prop.Serv. General Repairs,Express Property Services Limited,77.00, 17-Mar-2021
1626,Revenue,CAHD,Social Lettings Agency,Prop.Serv. General Repairs,Express Property Services Limited,189.00, 17-Mar-2021
1627,Revenue,CAHD,Social Lettings Agency,Prop.Serv. General Repairs,Express Property Services Limited,210.00, 17-Mar-2021
1628,Revenue,CAHD,Social Lettings Agency,Prop.Serv. General Repairs,Express Property Services Limited,195.00, 17-Mar-2021
1629,Revenue,CAHD,Social Lettings Agency,Prop.Serv. General Repairs,Express Property Services Limited,60.00, 17-Mar-2021
1630,Revenue,CAHD,Social Lettings Agency,Prop.Serv. General Repairs,Express Property Services Limited,70.00, 17-Mar-2021
1631,Revenue,CAHD,Social Lettings Agency,Prop.Serv. General Repairs,Express Property Services Limited,115.00, 17-Mar-2021
1632,Revenue,CAHD,Homeless - Private Sector Leasing,Prop.Serv. General Repairs,Express Property Services Limited,48.00, 17-Mar-2021
1633,Revenue,CAHD,Homeless - Private Sector Leasing,Prop.Serv. General Repairs,Express Property Services Limited,108.00, 17-Mar-2021
1634,Revenue,CAHD,Homeless - Private Sector Leasing,Prop.Serv. General Repairs,Express Property Services Limited,317.00, 17-Mar-2021
1635,Revenue,CAHD,Homeless - Private Sector Leasing,Prop.Serv. General Repairs,Express Property Services Limited,519.00, 17-Mar-2021
1636,Revenue,CAHD,Homeless - Private Sector Leasing,Prop.Serv. General Repairs,Express Property Services Limited,68.00, 17-Mar-2021
1637,Revenue,CAHD,Extra Care Housing,Private & Voluntary Home Care,Extra Care Charitable Trust,27505.67, 12-Mar-2021
1638,Revenue,CAHD,Covid 19- Spend on behalf of NHS,Project Funding,Extra Care Charitable Trust,1720.00, 30-Mar-2021
1639,Revenue,CAHD,Covid  - Workforce capacity,Grants to Voluntary Bodies,Extra Care Charitable Trust,5030.88, 25-Mar-2021
1640,Revenue,CAHD,North - Community based support,Permanent Residential,Eyre Court,27771.43, 09-Mar-2021
1641,Revenue,CAHD,North - Community based support,Permanent Residential,Eyre Court,5400.00, 09-Mar-2021
1642,Revenue,CAHD,Covid  - Workforce capacity,Grants to Voluntary Bodies,Eyre Court,3833.05, 25-Mar-2021
1643,Revenue,CAHD,South - Commissioned Services,Permanent Nursing,Fairview Court,3886.76, 09-Mar-2021
1644,Revenue,CAHD,South Glos Users in South Glos Homes,Permanent Nursing,Fairview Court,735.68, 09-Mar-2021
1645,Revenue,CAHD,South Glos Users in South Glos Homes,Permanent Nursing,Fairview Court,735.68, 09-Mar-2021
1646,Revenue,CAHD,South - Commissioned Services,Permanent Nursing,Fairview Court,21942.86, 09-Mar-2021
1647,Revenue,CAHD,South - Commissioned Services,Permanent Nursing,Fairview Court,4800.00, 09-Mar-2021
1648,Revenue,CAHD,South - Commissioned Services,Fees & Charges Income - General,Fairview Court,3880.29, 09-Mar-2021
1649,Revenue,CAHD,South Glos Users in South Glos Homes,Permanent Nursing,Fairview Court,735.68, 09-Mar-2021
1650,Revenue,CAHD,South - Commissioned Services,Permanent Nursing,Fairview Court,4137.76, 09-Mar-2021
1651,Revenue,CAHD,South Glos Users in South Glos Homes,Permanent Nursing,Fairview Court,735.68, 09-Mar-2021
1652,Revenue,CAHD,South Glos Users in South Glos Homes,Permanent Nursing,Fairview Court,735.68, 09-Mar-2021
1653,Revenue,CAHD,South Glos Users in South Glos Homes,Permanent Nursing,Fairview Court,735.68, 09-Mar-2021
1654,Revenue,CAHD,South - Commissioned Services,Permanent Nursing,Fairview Court,4800.00, 09-Mar-2021
1655,Revenue,CAHD,South Glos Users in South Glos Homes,Permanent Nursing,Fairview Court,735.68, 09-Mar-2021
1656,Revenue,CAHD,South - Commissioned Services,Permanent Nursing,Fairview Court,3618.72, 09-Mar-2021
1657,Revenue,CAHD,South Glos Users in South Glos Homes,Permanent Nursing,Fairview Court,735.68, 09-Mar-2021
1658,Revenue,CAHD,South Glos Users in South Glos Homes,Permanent Nursing,Fairview Court,735.68, 09-Mar-2021
1659,Revenue,CAHD,South - Commissioned Services,Permanent Nursing,Fairview Court,4800.00, 09-Mar-2021
1660,Revenue,CAHD,South Glos Users in South Glos Homes,Permanent Nursing,Fairview Court,735.68, 09-Mar-2021
1661,Revenue,CAHD,South - S117,Permanent Nursing,Fairview Court,4257.32, 09-Mar-2021
1662,Revenue,CAHD,South Glos Users in South Glos Homes,Permanent Nursing,Fairview Court,735.68, 09-Mar-2021
1663,Revenue,CAHD,South - bed purchasing and direct  payments,Permanent Nursing,Fairview Court,2039.12, 09-Mar-2021
1664,Revenue,CAHD,South - Commissioned Services,Permanent Nursing,Fairview Court,2039.12, 09-Mar-2021
1665,Revenue,CAHD,South Glos Users in South Glos Homes,Permanent Nursing,Fairview Court,735.68, 09-Mar-2021
1666,Revenue,CAHD,South Glos Users in South Glos Homes,Permanent Nursing,Fairview Court,735.68, 09-Mar-2021
1667,Revenue,CAHD,South Glos Users in South Glos Homes,Permanent Nursing,Fairview Court,735.68, 09-Mar-2021
1668,Revenue,CAHD,South - Commissioned Services,Permanent Nursing,Fairview Court,4800.00, 09-Mar-2021
1669,Revenue,CAHD,South Glos Users in South Glos Homes,Permanent Nursing,Fairview Court,735.68, 09-Mar-2021
1670,Revenue,CAHD,South Glos Users in South Glos Homes,Permanent Nursing,Fairview Court,735.68, 09-Mar-2021
1671,Revenue,CAHD,South Glos Users in South Glos Homes,Permanent Nursing,Fairview Court,735.68, 09-Mar-2021
1672,Revenue,CAHD,South - Commissioned Services,Permanent Residential,Fairview Court,4048.64, 09-Mar-2021
1673,Revenue,CAHD,South Glos Users in South Glos Homes,Permanent Nursing,Fairview Court,735.68, 09-Mar-2021
1674,Revenue,CAHD,South Glos Users in South Glos Homes,Permanent Nursing,Fairview Court,735.68, 09-Mar-2021
1675,Revenue,CAHD,South - Commissioned Services,Permanent Nursing,Fairview Court,3800.00, 09-Mar-2021
1676,Revenue,CAHD,South Glos Users in South Glos Homes,Permanent Nursing,Fairview Court,735.68, 09-Mar-2021
1677,Revenue,CAHD,South Glos Users in South Glos Homes,Permanent Nursing,Fairview Court,735.68, 09-Mar-2021
1678,Revenue,CAHD,North - Community based support,Permanent Residential,Fairview Court,3321.44, 09-Mar-2021
1679,Revenue,CAHD,South - bed purchasing and direct  payments,Permanent Nursing,Fairview Court,4137.76, 09-Mar-2021
1680,Revenue,CAHD,South Glos Users in South Glos Homes,Permanent Nursing,Fairview Court,735.68, 09-Mar-2021
1681,Revenue,CAHD,South Glos Users in South Glos Homes,Permanent Nursing,Fairview Court,735.68, 09-Mar-2021
1682,Revenue,CAHD,South - Commissioned Services,Permanent Nursing,Fairview Court,4800.00, 09-Mar-2021
1683,Revenue,CAHD,South Glos Users in South Glos Homes,Permanent Nursing,Fairview Court,735.68, 09-Mar-2021
1684,Revenue,CAHD,South Glos Users in South Glos Homes,Permanent Nursing,Fairview Court,735.68, 09-Mar-2021
1685,Revenue,CAHD,South Glos Users in South Glos Homes,Permanent Nursing,Fairview Court,735.68, 09-Mar-2021
1686,Revenue,CAHD,South - Commissioned Services,Permanent Nursing,Fairview Court,3553.36, 09-Mar-2021
1687,Revenue,CAHD,South Glos Users in South Glos Homes,Permanent Nursing,Fairview Court,735.68, 09-Mar-2021
1688,Revenue,CAHD,North - Community based support,Permanent Nursing,Fairview Court,3886.76, 09-Mar-2021
1689,Revenue,CAHD,South Glos Users in South Glos Homes,Permanent Nursing,Fairview Court,735.68, 09-Mar-2021
1690,Revenue,CAHD,South - Commissioned Services,Permanent Nursing,Fairview Court,3192.96, 09-Mar-2021
1691,Revenue,CAHD,South Glos Users in South Glos Homes,Permanent Nursing,Fairview Court,735.68, 09-Mar-2021
1692,Revenue,CAHD,South - Commissioned Services,Permanent Nursing,Fairview Court,3618.72, 09-Mar-2021
1693,Revenue,CAHD,South Glos Users in South Glos Homes,Permanent Nursing,Fairview Court,735.68, 09-Mar-2021
1694,Revenue,CAHD,South - Commissioned Services,Permanent Nursing,Fairview Court,4028.00, 09-Mar-2021
1695,Revenue,CAHD,South Glos Users in South Glos Homes,Permanent Nursing,Fairview Court,735.68, 09-Mar-2021
1696,Revenue,CAHD,South - Commissioned Services,Permanent Nursing,Fairview Court,4137.76, 09-Mar-2021
1697,Revenue,CAHD,South Glos Users in South Glos Homes,Permanent Nursing,Fairview Court,735.68, 09-Mar-2021
1698,Revenue,CAHD,Covid  - Workforce capacity,Grants to Voluntary Bodies,Fairview Court,5749.57, 08-Mar-2021
1699,Revenue,CAHD,Covid 19- Spend on behalf of NHS,Respite Planned - Residential,Fairview House,2307.14, 09-Mar-2021
1700,Revenue,CAHD,South - Commissioned Services,Permanent Residential,Fairview House,2349.60, 09-Mar-2021
1701,Revenue,CAHD,South - Commissioned Services,Fees & Charges Income - General,Fairview House,1580.37, 09-Mar-2021
1702,Revenue,CAHD,South - Commissioned Services,Permanent Residential,Fairview House,3400.00, 09-Mar-2021
1703,Revenue,CAHD,South - Commissioned Services,Permanent Residential,Fairview House,3600.00, 09-Mar-2021
1704,Revenue,CAHD,South - Commissioned Services,Permanent Residential,Fairview House,3468.00, 09-Mar-2021
1705,Revenue,CAHD,South - Commissioned Services,Permanent Residential,Fairview House,3800.00, 09-Mar-2021
1706,Revenue,CAHD,South - Commissioned Services,Permanent Residential,Fairview House,3800.00, 09-Mar-2021
1707,Revenue,CAHD,Covid 19- Spend on behalf of NHS,Respite Planned - Residential,Fairview House,542.86, 09-Mar-2021
1708,Revenue,CAHD,Covid  - Workforce capacity,Grants to Voluntary Bodies,Fairview House,1197.83, 08-Mar-2021
1709,Revenue,CAHD,North - Community based support,Permanent Residential,Faith House,2861.88, 09-Mar-2021
1710,Revenue,CAHD,Central - Commissioned Services,Permanent Residential,Faith House,3128.00, 09-Mar-2021
1711,Revenue,CAHD,North - Community based support,Permanent Residential,Faith House,3039.60, 09-Mar-2021
1712,Revenue,CAHD,South - Commissioned Services,Permanent Residential,Faith House,2958.00, 09-Mar-2021
1713,Revenue,CAHD,Covid  - Workforce capacity,Grants to Voluntary Bodies,Faith House,1357.54, 08-Mar-2021
1714,Revenue,CAHD,Post 16 High Needs Placements,Other Private Contractors,Farleigh FEC-Frome Priory,5487.02, 18-Mar-2021
1715,Revenue,CAHD,North - Community based support,Permanent Nursing,Field House Care Home,3522.56, 09-Mar-2021
1716,Revenue,CAHD,North - Community based support,Permanent Nursing,Field House Care Home,3403.60, 09-Mar-2021
1717,Revenue,CAHD,North - Community based support,Permanent Nursing,Field House Care Home,3589.48, 09-Mar-2021
1718,Revenue,CAHD,Central - Commissioned Services,Permanent Nursing,Field House Care Home,3760.00, 09-Mar-2021
1719,Revenue,CAHD,Central - Commissioned Services,Permanent Nursing,Field House Care Home,3740.00, 09-Mar-2021
1720,Revenue,CAHD,North - Community based support,Permanent Nursing,Field House Care Home,2271.72, 09-Mar-2021
1721,Revenue,CAHD,Central - Commissioned Services,Permanent Nursing,Field House Care Home,3740.00, 09-Mar-2021
1722,Revenue,CAHD,North - Community based support,Permanent Nursing,Field House Care Home,2271.72, 09-Mar-2021
1723,Revenue,CAHD,North - Community based support,Permanent Nursing,Field House Care Home,3506.00, 09-Mar-2021
1724,Revenue,CAHD,Statemented Support Payments to OLAs,Other L.A.s - General,Filton Avenue Primary School,1131.84, 23-Mar-2021
1725,Revenue,CAHD,Statemented Support Payments to OLAs,Other L.A.s - General,Filton Avenue Primary School,1332.27, 23-Mar-2021
1726,Revenue,CAHD,South - Commissioned Services,Permanent Nursing,First Floor  Lingfield House,3480.00, 09-Mar-2021
1727,Revenue,CAHD,Covid 19- Spend on behalf of NHS,Respite Planned - Residential,First Floor  Lingfield House,3600.00, 09-Mar-2021
1728,Revenue,CAHD,Covid 19- Spend on behalf of NHS,Respite Planned - Nursing,First Floor  Lingfield House,5700.00, 09-Mar-2021
1729,Revenue,CAHD,Covid 19- Spend on behalf of NHS,Respite Planned - Nursing,First Floor  Lingfield House,3800.00, 09-Mar-2021
1730,Revenue,CAHD,Covid 19- Spend on behalf of NHS,Respite Planned - Nursing,First Floor  Lingfield House,542.86, 09-Mar-2021
1731,Revenue,CAHD,South - Commissioned Services,Permanent Nursing,First Floor  Lingfield House,2554.36, 09-Mar-2021
1732,Revenue,CAHD,South Glos Users in South Glos Homes,Permanent Nursing,First Floor  Lingfield House,735.68, 09-Mar-2021
1733,Revenue,CAHD,South Glos Users in South Glos Homes,Permanent Nursing,First Floor  Lingfield House,3809.77, 09-Mar-2021
1734,Revenue,CAHD,South Glos Users in South Glos Homes,Permanent Nursing,First Floor  Lingfield House,735.68, 09-Mar-2021
1735,Revenue,CAHD,South Glos Users in South Glos Homes,Permanent Nursing,First Floor  Lingfield House,2574.88, 09-Mar-2021
1736,Revenue,CAHD,South - Commissioned Services,Permanent Residential,First Floor  Lingfield House,3160.00, 09-Mar-2021
1737,Revenue,CAHD,Covid 19- Spend on behalf of NHS,Respite Planned - Nursing,First Floor  Lingfield House,9500.00, 09-Mar-2021
1738,Revenue,CAHD,Covid 19- Spend on behalf of NHS,Respite Planned - Nursing,First Floor  Lingfield House,3528.57, 09-Mar-2021
1739,Revenue,CAHD,Covid 19- Spend on behalf of NHS,Respite Planned - Nursing,First Floor  Lingfield House,2171.43, 09-Mar-2021
1740,Revenue,CAHD,Covid 19- Spend on behalf of NHS,Respite Planned - Nursing,First Floor  Lingfield House,8414.29, 09-Mar-2021
1741,Revenue,CAHD,South - Commissioned Services,Permanent Residential,First Floor  Lingfield House,3360.00, 09-Mar-2021
1742,Revenue,CAHD,South Glos Users in South Glos Homes,Permanent Nursing,First Floor  Lingfield House,3047.82, 09-Mar-2021
1743,Revenue,CAHD,South - Commissioned Services,Permanent Residential,First Floor  Lingfield House,3480.00, 09-Mar-2021
1744,Revenue,CAHD,Covid  - Workforce capacity,Grants to Voluntary Bodies,First Floor  Lingfield House,3673.34, 08-Mar-2021
1745,Revenue,CAHD,North - Community based support,Permanent Residential,First Floor  Q4  The Square,8810.20, 09-Mar-2021
1746,Revenue,CAHD,Jointly Funded H&SC Packages,Permanent Residential,First Floor  Q4  The Square,5594.24, 09-Mar-2021
1747,Revenue,CAHD,North - Community based support,Permanent Residential,First Floor  Q4  The Square,8531.24, 09-Mar-2021
1748,Revenue,CAHD,Jointly Funded H&SC Packages,Permanent Residential,First Floor  Q4  The Square,2577.68, 09-Mar-2021
1749,Revenue,CAHD,EARLY YEARS DISABILITY  ACCES FUND,Preventative Assistance,First Friends (Mangotsfield),1800.00, 15-Mar-2021
1750,Revenue,CAHD,EARLY YEARS DEPRIVATION PAYMENT,Preventative Assistance,First Step Pre-School Ltd,1307.64, 22-Mar-2021
1751,Revenue,CAHD,Early Years Pupil Premium Grant,Preventative Assistance,First Step Pre-School Ltd,1030.58, 22-Mar-2021
1752,Revenue,CAHD,Early Years High Needs Support,Other Private Contractors,First Steps Day Nursery,910.07, 23-Mar-2021
1753,Revenue,CAHD,CSC - Agency Fostering,Foster Parent Allowances,Five Rivers Child Care Limited,4367.14, 01-Mar-2021
1754,Revenue,CAHD,CSC - Agency Fostering,Foster Parent Allowances,Five Rivers Child Care Limited,4512.71, 12-Mar-2021
1755,Revenue,CAHD,CSC - Agency Fostering,Foster Parent Allowances,Five Rivers Child Care Limited,4367.14, 02-Mar-2021
1756,Revenue,CAHD,CSC - Parent & Child Assessments,Foster Parent Allowances,Five Rivers Child Care Limited,5757.14, 09-Mar-2021
1757,Revenue,CAHD,CSC - Agency Fostering,Foster Parent Allowances,Five Rivers Child Care Limited,3276.00, 19-Mar-2021
1758,Revenue,CAHD,CSC - Agency Fostering,Foster Parent Allowances,Five Rivers Child Care Limited,3276.00, 19-Mar-2021
1759,Revenue,CAHD,CSC - Agency Fostering,Foster Parent Allowances,Five Rivers Child Care Limited,2008.56, 19-Mar-2021
1760,Revenue,CAHD,CSC - Agency Fostering,Foster Parent Allowances,Five Rivers Child Care Limited,3276.00, 19-Mar-2021
1761,Revenue,CAHD,CSC - Agency Fostering,Foster Parent Allowances,Five Rivers Child Care Limited,3114.16, 19-Mar-2021
1762,Revenue,CAHD,Early Years Inclusion Fund,Other Public Bodies,Flying Start,1800.00, 12-Mar-2021
1763,Revenue,CAHD,CSC - Agency Fostering,Foster Parent Allowances,Foster Care Associates Limited,3810.00, 12-Mar-2021
1764,Revenue,CAHD,CSC - Agency Fostering,Foster Parent Allowances,Foster Care Associates Limited,3405.08, 12-Mar-2021
1765,Revenue,CAHD,CSC - Agency Fostering,Foster Parent Allowances,Foster Care Associates Limited,3556.00, 12-Mar-2021
1766,Revenue,CAHD,CSC - Agency Fostering,Foster Parent Allowances,Fostering Matters Ltd,3179.96, 15-Mar-2021
1767,Revenue,CAHD,CSC - Agency Fostering,Foster Parent Allowances,Fostering Matters Ltd,3179.96, 15-Mar-2021
1768,Revenue,CAHD,Training Budget - Children`s Social Serv,Training Expenses,Fostering Network,1020.00, 11-Mar-2021
1769,Revenue,CAHD,CSC - Parent & Child Assessments,Foster Parent Allowances,Fostering Solutions Limited,5248.50, 03-Mar-2021
1770,Revenue,CAHD,Covid 19 -Adult Social Care,Other Small Contracts,Fourways Care Limited,39.84, 03-Mar-2021
1771,Revenue,CAHD,Central - Commissioned Services,Other Small Contracts,Fourways Care Limited,174.00, 03-Mar-2021
1772,Revenue,CAHD,South - Commissioned Services,Other Small Contracts,Fourways Care Limited,683.64, 03-Mar-2021
1773,Revenue,CAHD,North - Community based support,Other Small Contracts,Fourways Care Limited,9148.98, 03-Mar-2021
1774,Revenue,CAHD,Resilience Team,Other Small Contracts,Fourways Care Limited,229.08, 03-Mar-2021
1775,Revenue,CAHD,Central - Commissioned Services,Other Small Contracts,Fourways Care Limited,174.00, 15-Mar-2021
1776,Revenue,CAHD,South - Commissioned Services,Other Small Contracts,Fourways Care Limited,877.86, 15-Mar-2021
1777,Revenue,CAHD,North - Community based support,Other Small Contracts,Fourways Care Limited,8968.80, 15-Mar-2021
1778,Revenue,CAHD,Resilience Team,Other Small Contracts,Fourways Care Limited,239.04, 15-Mar-2021
1779,Revenue,CAHD,Central - Commissioned Services,Other Small Contracts,Fourways Care Limited,174.00, 24-Mar-2021
1780,Revenue,CAHD,South - Commissioned Services,Other Small Contracts,Fourways Care Limited,887.82, 24-Mar-2021
1781,Revenue,CAHD,North - Community based support,Other Small Contracts,Fourways Care Limited,8974.68, 24-Mar-2021
1782,Revenue,CAHD,Resilience Team,Other Small Contracts,Fourways Care Limited,34.86, 24-Mar-2021
1783,Revenue,CAHD,Central - Commissioned Services,Other Small Contracts,Fourways Care Limited,174.00, 24-Mar-2021
1784,Revenue,CAHD,South - Commissioned Services,Other Small Contracts,Fourways Care Limited,887.82, 24-Mar-2021
1785,Revenue,CAHD,North - Community based support,Other Small Contracts,Fourways Care Limited,8595.91, 24-Mar-2021
1786,Revenue,CAHD,Central - Commissioned Services,Other Small Contracts,Fourways Care Limited,180.00, 31-Mar-2021
1787,Revenue,CAHD,South - Commissioned Services,Other Small Contracts,Fourways Care Limited,883.86, 31-Mar-2021
1788,Revenue,CAHD,North - Community based support,Other Small Contracts,Fourways Care Limited,8846.22, 31-Mar-2021
1789,Revenue,CAHD,Covid 19- Spend on behalf of NHS,Project Funding,Fourways Care Limited,1240.00, 30-Mar-2021
1790,Revenue,CAHD,Covid  - Workforce capacity,Grants to Voluntary Bodies,Fourways Care Limited,2874.79, 11-Mar-2021
1791,Revenue,CAHD,Supporting People Programme,Grants to Voluntary Bodies,Freeways Trust Limited,1067.00, 01-Mar-2021
1792,Revenue,CAHD,Central - Commissioned Services,Other Small Contracts,Freeways Trust Limited,785.60, 17-Mar-2021
1793,Revenue,CAHD,South - Commissioned Services,Day Care / Social Activities,Freeways Trust Limited,893.62, 17-Mar-2021
1794,Revenue,CAHD,North - Community based support,Other Small Contracts,Freeways Trust Limited,500.82, 17-Mar-2021
1795,Revenue,CAHD,North - Community based support,Other Small Contracts,Freeways Trust Limited,864.16, 18-Mar-2021
1796,Revenue,CAHD,Central - Commissioned Services,Permanent Residential,Freeways Trust Ltd,3968.00, 09-Mar-2021
1797,Revenue,CAHD,Central - Commissioned Services,Permanent Residential,Freeways Trust Ltd,4006.56, 09-Mar-2021
1798,Revenue,CAHD,Central - Commissioned Services,Permanent Residential,Freeways Trust Ltd,4462.28, 09-Mar-2021
1799,Revenue,CAHD,Central - Commissioned Services,Permanent Residential,Freeways Trust Ltd,5152.32, 09-Mar-2021
1800,Revenue,CAHD,North - Community based support,Permanent Residential,Freeways Trust Ltd,4009.36, 09-Mar-2021
1801,Revenue,CAHD,Central - Commissioned Services,Permanent Residential,Freeways Trust Ltd,4281.32, 09-Mar-2021
1802,Revenue,CAHD,Central - Commissioned Services,Permanent Residential,Freeways Trust Ltd,49082.28, 09-Mar-2021
